Department,Entity,Transaction Date,Expense Type,Expense Area,Supplier,Transaction No.,Amount
DEPARTMENT OF ENERGY AND CLIMATE CHANGE,THE COAL AUTHORITY,23/06/2016,Subsistence Allowances,Application Management,Accruals - Staff Expenses Control,2268,20.24
DEPARTMENT OF ENERGY AND CLIMATE CHANGE,THE COAL AUTHORITY,23/06/2016,Fares - Public Transport,Application Management,Accruals - Staff Expenses Control,2271,24.5
DEPARTMENT OF ENERGY AND CLIMATE CHANGE,THE COAL AUTHORITY,23/06/2016,Fares - Rail,Application Management,Accruals - Staff Expenses Control,2271,9.7
DEPARTMENT OF ENERGY AND CLIMATE CHANGE,THE COAL AUTHORITY,03/04/2016,Software Licenses - On Premise,Application Management,RBS GPC March 2016,2460,873
DEPARTMENT OF ENERGY AND CLIMATE CHANGE,THE COAL AUTHORITY,03/04/2016,Training & Education,Application Management,RBS GPC March 2016,2460,2039.81
DEPARTMENT OF ENERGY AND CLIMATE CHANGE,THE COAL AUTHORITY,03/05/2016,Software Licenses - On Premise,Application Management,RBS GPC April 2016,2463,8.77
DEPARTMENT OF ENERGY AND CLIMATE CHANGE,THE COAL AUTHORITY,08/06/2016,Applications Consultancy,Application Management,Scisys Uk Ltd,2076,14173.5
DEPARTMENT OF ENERGY AND CLIMATE CHANGE,THE COAL AUTHORITY,22/06/2016,Fares - Rail,Board,Accruals - Staff Expenses Control,2253,311.5
DEPARTMENT OF ENERGY AND CLIMATE CHANGE,THE COAL AUTHORITY,22/06/2016,Incidentals,Board,Accruals - Staff Expenses Control,2253,25
DEPARTMENT OF ENERGY AND CLIMATE CHANGE,THE COAL AUTHORITY,22/06/2016,Mileage Payments,Board,Accruals - Staff Expenses Control,2253,229.05
DEPARTMENT OF ENERGY AND CLIMATE CHANGE,THE COAL AUTHORITY,22/06/2016,Fares - Rail,Board,Accruals - Staff Expenses Control,2256,285.35
DEPARTMENT OF ENERGY AND CLIMATE CHANGE,THE COAL AUTHORITY,23/06/2016,Fares - Public Transport,Board,Accruals - Staff Expenses Control,2266,13.5
DEPARTMENT OF ENERGY AND CLIMATE CHANGE,THE COAL AUTHORITY,23/06/2016,Fares - Rail,Board,Accruals - Staff Expenses Control,2266,62.2
DEPARTMENT OF ENERGY AND CLIMATE CHANGE,THE COAL AUTHORITY,23/06/2016,Mileage Payments,Board,Accruals - Staff Expenses Control,2266,234.9
DEPARTMENT OF ENERGY AND CLIMATE CHANGE,THE COAL AUTHORITY,23/06/2016,Subsistence Allowances,Board,Accruals - Staff Expenses Control,2266,49.9
DEPARTMENT OF ENERGY AND CLIMATE CHANGE,THE COAL AUTHORITY,31/05/2016,Fares - Public Transport,Board,Ace Of Mansfield Ltd,1768,56
DEPARTMENT OF ENERGY AND CLIMATE CHANGE,THE COAL AUTHORITY,31/05/2016,Hotel & Accommodation,Board,Redfern Travel Ltd,1849,210.58
DEPARTMENT OF ENERGY AND CLIMATE CHANGE,THE COAL AUTHORITY,27/05/2016,Applications Consultancy,BOSS Programme,Wax Digital Ltd,2066,4000
DEPARTMENT OF ENERGY AND CLIMATE CHANGE,THE COAL AUTHORITY,15/06/2016,Business Meetings,BOSS Programme,700-RANSOMWOOD IRRECVRBLE VAT,2035,10.76
DEPARTMENT OF ENERGY AND CLIMATE CHANGE,THE COAL AUTHORITY,03/05/2016,Staff Events,BOSS Programme,RBS GPC April 2016,2463,75
DEPARTMENT OF ENERGY AND CLIMATE CHANGE,THE COAL AUTHORITY,25/05/2016,Temporary Contractors,BOSS Programme,Hays,1754,1950
DEPARTMENT OF ENERGY AND CLIMATE CHANGE,THE COAL AUTHORITY,08/06/2016,Temporary Contractors,BOSS Programme,Hays,1976,1950
DEPARTMENT OF ENERGY AND CLIMATE CHANGE,THE COAL AUTHORITY,08/06/2016,Temporary Contractors,BOSS Programme,Hays,1978,1560
DEPARTMENT OF ENERGY AND CLIMATE CHANGE,THE COAL AUTHORITY,22/07/2016,Temporary Contractors,BOSS Programme,Hays,2374,1365
DEPARTMENT OF ENERGY AND CLIMATE CHANGE,THE COAL AUTHORITY,31/05/2016,Applications Consultancy,BOSS Programme,Sapphire Systems Plc,1769,174.4
DEPARTMENT OF ENERGY AND CLIMATE CHANGE,THE COAL AUTHORITY,31/05/2016,CY - Intangible IT - Additions,BOSS Programme,Sapphire Systems Plc,1769,925
DEPARTMENT OF ENERGY AND CLIMATE CHANGE,THE COAL AUTHORITY,31/05/2016,CY - Intangible IT - Additions,BOSS Programme,Sapphire Systems Plc,1770,92.5
DEPARTMENT OF ENERGY AND CLIMATE CHANGE,THE COAL AUTHORITY,31/05/2016,CY - Intangible IT - Additions,BOSS Programme,Sapphire Systems Plc,1867,555
DEPARTMENT OF ENERGY AND CLIMATE CHANGE,THE COAL AUTHORITY,31/05/2016,CY - Intangible IT - Additions,BOSS Programme,Sapphire Systems Plc,1868,92.5
DEPARTMENT OF ENERGY AND CLIMATE CHANGE,THE COAL AUTHORITY,08/06/2016,CY - Intangible IT - Additions,BOSS Programme,Sapphire Systems Plc,2423,925
DEPARTMENT OF ENERGY AND CLIMATE CHANGE,THE COAL AUTHORITY,08/06/2016,Applications Consultancy,BOSS Programme,Sapphire Systems Plc,1915,96
DEPARTMENT OF ENERGY AND CLIMATE CHANGE,THE COAL AUTHORITY,08/06/2016,CY - Intangible IT - Additions,BOSS Programme,Sapphire Systems Plc,1915,555
DEPARTMENT OF ENERGY AND CLIMATE CHANGE,THE COAL AUTHORITY,22/06/2016,Applications Consultancy,BOSS Programme,Sapphire Systems Plc,2420,272.76
DEPARTMENT OF ENERGY AND CLIMATE CHANGE,THE COAL AUTHORITY,22/06/2016,CY - Land - Additions,BOSS Programme,Sapphire Systems Plc,2420,2775
DEPARTMENT OF ENERGY AND CLIMATE CHANGE,THE COAL AUTHORITY,27/06/2016,CY - Intangible IT - Additions,BOSS Programme,Sapphire Systems Plc,2421,1017.5
DEPARTMENT OF ENERGY AND CLIMATE CHANGE,THE COAL AUTHORITY,23/06/2016,Fares - Rail,Business Development,Accruals - Staff Expenses Control,2267,24.3
DEPARTMENT OF ENERGY AND CLIMATE CHANGE,THE COAL AUTHORITY,23/06/2016,Incidentals,Business Development,Accruals - Staff Expenses Control,2267,10.42
DEPARTMENT OF ENERGY AND CLIMATE CHANGE,THE COAL AUTHORITY,23/06/2016,Mileage Payments,Business Development,Accruals - Staff Expenses Control,2267,99.88
DEPARTMENT OF ENERGY AND CLIMATE CHANGE,THE COAL AUTHORITY,23/06/2016,Subsistence Allowances,Business Development,Accruals - Staff Expenses Control,2267,26.08
DEPARTMENT OF ENERGY AND CLIMATE CHANGE,THE COAL AUTHORITY,22/06/2016,Mileage Payments,Business Development,Accruals - Staff Expenses Control,2257,175.95
DEPARTMENT OF ENERGY AND CLIMATE CHANGE,THE COAL AUTHORITY,23/06/2016,Subsistence Allowances,Business Development,GPC OVERSPEND,2275,-2.9
DEPARTMENT OF ENERGY AND CLIMATE CHANGE,THE COAL AUTHORITY,03/04/2016,Incidentals,Business Development,RBS GPC March 2016,2460,4.58
DEPARTMENT OF ENERGY AND CLIMATE CHANGE,THE COAL AUTHORITY,03/04/2016,Subsistence Allowances,Business Development,RBS GPC March 2016,2460,17.3
DEPARTMENT OF ENERGY AND CLIMATE CHANGE,THE COAL AUTHORITY,03/05/2016,Subsistence Allowances,Business Development,RBS GPC April 2016,2463,25.68
DEPARTMENT OF ENERGY AND CLIMATE CHANGE,THE COAL AUTHORITY,09/06/2016,Training & Education,Business Development,Peter Thorn,1869,60
DEPARTMENT OF ENERGY AND CLIMATE CHANGE,THE COAL AUTHORITY,01/06/2016,eCommerce Commission Charges,Business Development,Worldpay,2098,8.63
DEPARTMENT OF ENERGY AND CLIMATE CHANGE,THE COAL AUTHORITY,22/06/2016,Subsistence Allowances,Communications & Brand,Accruals - Staff Expenses Control,2259,24.45
DEPARTMENT OF ENERGY AND CLIMATE CHANGE,THE COAL AUTHORITY,31/05/2016,Public Relations,Communications & Brand,Gorkana Group Ltd,1785,224.55
DEPARTMENT OF ENERGY AND CLIMATE CHANGE,THE COAL AUTHORITY,31/05/2016,Public Relations,Communications & Brand,Gorkana Group Ltd,1787,539.4
DEPARTMENT OF ENERGY AND CLIMATE CHANGE,THE COAL AUTHORITY,03/04/2016,Business Meetings,Communications & Brand,RBS GPC March 2016,2460,-26
DEPARTMENT OF ENERGY AND CLIMATE CHANGE,THE COAL AUTHORITY,03/05/2016,Subsistence Allowances,Communications & Brand,RBS GPC April 2016,2463,44.6
DEPARTMENT OF ENERGY AND CLIMATE CHANGE,THE COAL AUTHORITY,27/05/2016,Temporary Contractors,Communications & Brand,Key Personnel Solutions Ltd,1741,498.96
DEPARTMENT OF ENERGY AND CLIMATE CHANGE,THE COAL AUTHORITY,03/06/2016,Temporary Contractors,Communications & Brand,Key Personnel Solutions Ltd,1755,398.48
DEPARTMENT OF ENERGY AND CLIMATE CHANGE,THE COAL AUTHORITY,10/06/2016,Temporary Contractors,Communications & Brand,Key Personnel Solutions Ltd,2024,263.33
DEPARTMENT OF ENERGY AND CLIMATE CHANGE,THE COAL AUTHORITY,17/06/2016,Temporary Contractors,Communications & Brand,Key Personnel Solutions Ltd,2222,280.67
DEPARTMENT OF ENERGY AND CLIMATE CHANGE,THE COAL AUTHORITY,24/06/2016,Temporary Contractors,Communications & Brand,Key Personnel Solutions Ltd,2479,381.15
DEPARTMENT OF ENERGY AND CLIMATE CHANGE,THE COAL AUTHORITY,31/05/2016,Public Relations,Communications & Brand,Sharpe Pritchard,1918,425
DEPARTMENT OF ENERGY AND CLIMATE CHANGE,THE COAL AUTHORITY,31/05/2016,Fares - Rail,Communications & Brand,Redfern Travel Ltd,1843,300.9
DEPARTMENT OF ENERGY AND CLIMATE CHANGE,THE COAL AUTHORITY,31/05/2016,Hotel & Accommodation,Communications & Brand,Redfern Travel Ltd,1849,62.5
DEPARTMENT OF ENERGY AND CLIMATE CHANGE,THE COAL AUTHORITY,06/06/2016,Business Meetings,Communications & Brand,The RSE Scotland Foundation,1649,75
DEPARTMENT OF ENERGY AND CLIMATE CHANGE,THE COAL AUTHORITY,03/06/2016,Postage & Couriers,Customer Services,Tnt Uk Limited,2114,19.94
DEPARTMENT OF ENERGY AND CLIMATE CHANGE,THE COAL AUTHORITY,10/06/2016,Postage & Couriers,Customer Services,Tnt Uk Limited,2115,21
DEPARTMENT OF ENERGY AND CLIMATE CHANGE,THE COAL AUTHORITY,14/03/2016,Training & Education,Customer Services,Pcs Ltd,1861,375
DEPARTMENT OF ENERGY AND CLIMATE CHANGE,THE COAL AUTHORITY,03/04/2016,Training & Education,Data Solutions,RBS GPC March 2016,2460,23.14
DEPARTMENT OF ENERGY AND CLIMATE CHANGE,THE COAL AUTHORITY,31/05/2016,Minewater Land Agents (Acquisitions),Environment - Coal Mine Build,Mark N Carey Limited,1733,45.5
DEPARTMENT OF ENERGY AND CLIMATE CHANGE,THE COAL AUTHORITY,17/06/2016,CY - Minewater Scheme - Additions,Environment - Coal Mine Build,Atkins Limited,2149,3335.25
DEPARTMENT OF ENERGY AND CLIMATE CHANGE,THE COAL AUTHORITY,03/04/2016,Incidentals,Environment - Coal Mine Build,RBS GPC March 2016,2460,6
DEPARTMENT OF ENERGY AND CLIMATE CHANGE,THE COAL AUTHORITY,03/04/2016,Subsistence Allowances,Environment - Coal Mine Build,RBS GPC March 2016,2460,3
DEPARTMENT OF ENERGY AND CLIMATE CHANGE,THE COAL AUTHORITY,03/05/2016,Business Meetings,Environment - Coal Mine Build,RBS GPC April 2016,2463,6.42
DEPARTMENT OF ENERGY AND CLIMATE CHANGE,THE COAL AUTHORITY,05/07/2016,CY - Minewater Scheme - Additions,Environment - Coal Mine Build,1937 Mott Macdonald Ltd,2598,513
DEPARTMENT OF ENERGY AND CLIMATE CHANGE,THE COAL AUTHORITY,05/07/2016,CY - Minewater Scheme - Additions,Environment - Coal Mine Build,2397 J N Bentley Ltd,2673,-62091.63
DEPARTMENT OF ENERGY AND CLIMATE CHANGE,THE COAL AUTHORITY,07/06/2016,Legal - General,Environment - Coal Mine Build,Dla Piper Uk Llp,1920,1555.2
DEPARTMENT OF ENERGY AND CLIMATE CHANGE,THE COAL AUTHORITY,31/05/2016,Fares - Rail,Environment - Coal Mine Build,Redfern Travel Ltd,1843,126.7
DEPARTMENT OF ENERGY AND CLIMATE CHANGE,THE COAL AUTHORITY,31/05/2016,Hotel & Accommodation,Environment - Coal Mine Build,Redfern Travel Ltd,1849,349
DEPARTMENT OF ENERGY AND CLIMATE CHANGE,THE COAL AUTHORITY,31/05/2016,CY - Minewater Scheme - Additions,Environment - Coal Mine Build,Mott Macdonald Ltd,1936,592.5
DEPARTMENT OF ENERGY AND CLIMATE CHANGE,THE COAL AUTHORITY,09/06/2016,Temporary Contractors,Environment - Coal Mine Build,Mott Macdonald Ltd,1938,19162.15
DEPARTMENT OF ENERGY AND CLIMATE CHANGE,THE COAL AUTHORITY,05/06/2016,CY - Minewater Scheme - Additions,Environment - Coal Mine Build,J N Bentley Limited,2397,62091.63
DEPARTMENT OF ENERGY AND CLIMATE CHANGE,THE COAL AUTHORITY,05/06/2016,CY - Minewater Scheme - Additions,Environment - Coal Mine Build,J N Bentley Limited,2405,5578.45
DEPARTMENT OF ENERGY AND CLIMATE CHANGE,THE COAL AUTHORITY,03/04/2016,Subsistence Allowances,Environment - Commercial,RBS GPC March 2016,2460,3.8
DEPARTMENT OF ENERGY AND CLIMATE CHANGE,THE COAL AUTHORITY,22/06/2016,Minewater Cost Benefit Analysis,Environment - Commercial,Risk & Policy Analysts Ltd,2398,5701.75
DEPARTMENT OF ENERGY AND CLIMATE CHANGE,THE COAL AUTHORITY,22/06/2016,Minewater Cost Benefit Analysis,Environment - Commercial,Risk & Policy Analysts Ltd,2399,5701.75
DEPARTMENT OF ENERGY AND CLIMATE CHANGE,THE COAL AUTHORITY,07/06/2016,Minewater Remediation,Environment - Contract Management,Nal Plant Limited,1964,1872
DEPARTMENT OF ENERGY AND CLIMATE CHANGE,THE COAL AUTHORITY,08/06/2016,Minewater Remediation,Environment - Contract Management,Nal Plant Limited,1858,6155.14
DEPARTMENT OF ENERGY AND CLIMATE CHANGE,THE COAL AUTHORITY,16/03/2016,CY - Subsidence Pumping - Additions,Environment - Contract Management,Ouse&Derwnt Intern Drainge Brd,1959,-3220
DEPARTMENT OF ENERGY AND CLIMATE CHANGE,THE COAL AUTHORITY,16/03/2016,CY - Subsidence Pumping - Additions,Environment - Contract Management,Ouse&Derwnt Intern Drainge Brd,1959,-3220
DEPARTMENT OF ENERGY AND CLIMATE CHANGE,THE COAL AUTHORITY,16/03/2016,CY - Subsidence Pumping - Additions,Environment - Contract Management,Ouse&Derwnt Intern Drainge Brd,1959,-3220
DEPARTMENT OF ENERGY AND CLIMATE CHANGE,THE COAL AUTHORITY,16/03/2016,CY - Subsidence Pumping - Additions,Environment - Contract Management,Ouse&Derwnt Intern Drainge Brd,1959,-3220
DEPARTMENT OF ENERGY AND CLIMATE CHANGE,THE COAL AUTHORITY,16/03/2016,CY - Subsidence Pumping - Additions,Environment - Contract Management,Ouse&Derwnt Intern Drainge Brd,1959,-4485
DEPARTMENT OF ENERGY AND CLIMATE CHANGE,THE COAL AUTHORITY,31/05/2016,Minewater Land Agents (Acquisitions),Environment - Contract Management,Mark N Carey Limited,1732,195
DEPARTMENT OF ENERGY AND CLIMATE CHANGE,THE COAL AUTHORITY,01/05/2016,Minewater Contractor Maint. Visits - Ops Site,Environment - Contract Management,National Coal Mining Museum,1942,3420
DEPARTMENT OF ENERGY AND CLIMATE CHANGE,THE COAL AUTHORITY,16/05/2016,Minewater Contractor Maint. Visits - Ops Site,Environment - Contract Management,National Coal Mining Museum,1943,1546.39
DEPARTMENT OF ENERGY AND CLIMATE CHANGE,THE COAL AUTHORITY,16/05/2016,Minewater Contractor Maint. Visits - Ops Site,Environment - Contract Management,National Coal Mining Museum,1944,22307.78
DEPARTMENT OF ENERGY AND CLIMATE CHANGE,THE COAL AUTHORITY,31/05/2016,Minewater Contractor Maint. Visits - Ops Site,Environment - Contract Management,National Coal Mining Museum,1945,3770
DEPARTMENT OF ENERGY AND CLIMATE CHANGE,THE COAL AUTHORITY,31/05/2016,Minewater Contractor Maint. Visits - Ops Site,Environment - Contract Management,National Coal Mining Museum,1972,7711.11
DEPARTMENT OF ENERGY AND CLIMATE CHANGE,THE COAL AUTHORITY,07/06/2016,Minewater Power Costs,Environment - Contract Management,National Coal Mining Museum,2084,13688.93
DEPARTMENT OF ENERGY AND CLIMATE CHANGE,THE COAL AUTHORITY,27/05/2016,Minewater Rent,Environment - Contract Management,Trustees Of Llanover Estate,1928,1750
DEPARTMENT OF ENERGY AND CLIMATE CHANGE,THE COAL AUTHORITY,27/06/2016,Minewater Sampling - Operational Sites,Environment - Contract Management,Environmental Scientifics Grp,2481,245.91
DEPARTMENT OF ENERGY AND CLIMATE CHANGE,THE COAL AUTHORITY,17/06/2016,Minewater Telecoms & Telemetry,Environment - Contract Management,Wyless Plc,2148,50
DEPARTMENT OF ENERGY AND CLIMATE CHANGE,THE COAL AUTHORITY,18/04/2016,Minewater Feasibility / Scoping,Environment - Contract Management,Natural Resources Wales,2004,84
DEPARTMENT OF ENERGY AND CLIMATE CHANGE,THE COAL AUTHORITY,01/06/2016,Minewater Rent,Environment - Contract Management,Natural Resources Wales,1929,1679.34
DEPARTMENT OF ENERGY AND CLIMATE CHANGE,THE COAL AUTHORITY,15/06/2016,Software Support & Maintenance - SaaS,Environment - Contract Management,Conject Limited,2144,997.5
DEPARTMENT OF ENERGY AND CLIMATE CHANGE,THE COAL AUTHORITY,15/06/2016,Software Support & Maintenance - SaaS,Environment - Contract Management,Conject Limited,2143,130.55
DEPARTMENT OF ENERGY AND CLIMATE CHANGE,THE COAL AUTHORITY,22/06/2016,Software Support & Maintenance - SaaS,Environment - Contract Management,Conject Limited,2390,1170
DEPARTMENT OF ENERGY AND CLIMATE CHANGE,THE COAL AUTHORITY,07/06/2016,Minewater Rent,Environment - Contract Management,Crown Estate,1927,3500
DEPARTMENT OF ENERGY AND CLIMATE CHANGE,THE COAL AUTHORITY,03/04/2016,Subsistence Allowances,Environment - Contract Management,RBS GPC March 2016,2460,31.25
DEPARTMENT OF ENERGY AND CLIMATE CHANGE,THE COAL AUTHORITY,03/04/2016,Subsistence Allowances,Environment - Contract Management,RBS GPC March 2016,2460,3
DEPARTMENT OF ENERGY AND CLIMATE CHANGE,THE COAL AUTHORITY,03/04/2016,Subsistence Allowances,Environment - Contract Management,RBS GPC March 2016,2460,22.8
DEPARTMENT OF ENERGY AND CLIMATE CHANGE,THE COAL AUTHORITY,03/04/2016,Subsistence Allowances,Environment - Contract Management,RBS GPC March 2016,2460,8.91
DEPARTMENT OF ENERGY AND CLIMATE CHANGE,THE COAL AUTHORITY,03/05/2016,Fares - Public Transport,Environment - Contract Management,RBS GPC April 2016,2463,14.57
DEPARTMENT OF ENERGY AND CLIMATE CHANGE,THE COAL AUTHORITY,03/05/2016,Subsistence Allowances,Environment - Contract Management,RBS GPC April 2016,2463,12.87
DEPARTMENT OF ENERGY AND CLIMATE CHANGE,THE COAL AUTHORITY,03/05/2016,Subsistence Allowances,Environment - Contract Management,RBS GPC April 2016,2463,11.57
DEPARTMENT OF ENERGY AND CLIMATE CHANGE,THE COAL AUTHORITY,03/05/2016,Subsistence Allowances,Environment - Contract Management,RBS GPC April 2016,2463,14.9
DEPARTMENT OF ENERGY AND CLIMATE CHANGE,THE COAL AUTHORITY,03/05/2016,Subsistence Allowances,Environment - Contract Management,RBS GPC April 2016,2463,3.7
DEPARTMENT OF ENERGY AND CLIMATE CHANGE,THE COAL AUTHORITY,03/05/2016,Subsistence Allowances,Environment - Contract Management,RBS GPC April 2016,2463,11.39
DEPARTMENT OF ENERGY AND CLIMATE CHANGE,THE COAL AUTHORITY,30/06/2016,CY - Minewater Scheme - Additions,Environment - Contract Management,2360 SEVERN TRENT SERVICES MAY'16,2490,5949.52
DEPARTMENT OF ENERGY AND CLIMATE CHANGE,THE COAL AUTHORITY,30/06/2016,CY - Minewater Scheme - Additions,Environment - Contract Management,2360 SEVERN TRENT SERVICES MAY'16,2490,32315.78
DEPARTMENT OF ENERGY AND CLIMATE CHANGE,THE COAL AUTHORITY,30/06/2016,CY - Minewater Scheme - Additions,Environment - Contract Management,2360 SEVERN TRENT SERVICES MAY'16,2490,1231.25
DEPARTMENT OF ENERGY AND CLIMATE CHANGE,THE COAL AUTHORITY,30/06/2016,CY - Minewater Scheme - Additions,Environment - Contract Management,2360 SEVERN TRENT SERVICES MAY'16,2490,3036.73
DEPARTMENT OF ENERGY AND CLIMATE CHANGE,THE COAL AUTHORITY,30/06/2016,Minewater Chemicals - Operational Sites,Environment - Contract Management,2360 SEVERN TRENT SERVICES MAY'16,2490,601.81
DEPARTMENT OF ENERGY AND CLIMATE CHANGE,THE COAL AUTHORITY,30/06/2016,Minewater Chemicals - Operational Sites,Environment - Contract Management,2360 SEVERN TRENT SERVICES MAY'16,2490,5046.95
DEPARTMENT OF ENERGY AND CLIMATE CHANGE,THE COAL AUTHORITY,30/06/2016,Minewater Chemicals - Operational Sites,Environment - Contract Management,2360 SEVERN TRENT SERVICES MAY'16,2490,1272.54
DEPARTMENT OF ENERGY AND CLIMATE CHANGE,THE COAL AUTHORITY,30/06/2016,Minewater Chemicals - Operational Sites,Environment - Contract Management,2360 SEVERN TRENT SERVICES MAY'16,2490,16000.9
DEPARTMENT OF ENERGY AND CLIMATE CHANGE,THE COAL AUTHORITY,30/06/2016,Minewater Chemicals - Operational Sites,Environment - Contract Management,2360 SEVERN TRENT SERVICES MAY'16,2490,1504.54
DEPARTMENT OF ENERGY AND CLIMATE CHANGE,THE COAL AUTHORITY,30/06/2016,Minewater Chemicals - Operational Sites,Environment - Contract Management,2360 SEVERN TRENT SERVICES MAY'16,2490,3752.72
DEPARTMENT OF ENERGY AND CLIMATE CHANGE,THE COAL AUTHORITY,30/06/2016,Minewater Contractor Add. Task Order - Ops Site,Environment - Contract Management,2360 SEVERN TRENT SERVICES MAY'16,2490,19.19
DEPARTMENT OF ENERGY AND CLIMATE CHANGE,THE COAL AUTHORITY,30/06/2016,Minewater Contractor Add. Task Order - Ops Site,Environment - Contract Management,2360 SEVERN TRENT SERVICES MAY'16,2490,190.96
DEPARTMENT OF ENERGY AND CLIMATE CHANGE,THE COAL AUTHORITY,30/06/2016,Minewater Contractor Add. Task Order - Ops Site,Environment - Contract Management,2360 SEVERN TRENT SERVICES MAY'16,2490,335.78
DEPARTMENT OF ENERGY AND CLIMATE CHANGE,THE COAL AUTHORITY,30/06/2016,Minewater Contractor Add. Task Order - Ops Site,Environment - Contract Management,2360 SEVERN TRENT SERVICES MAY'16,2490,143.22
DEPARTMENT OF ENERGY AND CLIMATE CHANGE,THE COAL AUTHORITY,30/06/2016,Minewater Contractor Add. Task Order - Ops Site,Environment - Contract Management,2360 SEVERN TRENT SERVICES MAY'16,2490,892.22
DEPARTMENT OF ENERGY AND CLIMATE CHANGE,THE COAL AUTHORITY,30/06/2016,Minewater Contractor Add. Task Order - Ops Site,Environment - Contract Management,2360 SEVERN TRENT SERVICES MAY'16,2490,143.91
DEPARTMENT OF ENERGY AND CLIMATE CHANGE,THE COAL AUTHORITY,30/06/2016,Minewater Contractor Add. Task Order - Ops Site,Environment - Contract Management,2360 SEVERN TRENT SERVICES MAY'16,2490,429.75
DEPARTMENT OF ENERGY AND CLIMATE CHANGE,THE COAL AUTHORITY,30/06/2016,Minewater Contractor Add. Task Order - Ops Site,Environment - Contract Management,2360 SEVERN TRENT SERVICES MAY'16,2490,556.25
DEPARTMENT OF ENERGY AND CLIMATE CHANGE,THE COAL AUTHORITY,30/06/2016,Minewater Contractor Add. Task Order - Ops Site,Environment - Contract Management,2360 SEVERN TRENT SERVICES MAY'16,2490,19.19
DEPARTMENT OF ENERGY AND CLIMATE CHANGE,THE COAL AUTHORITY,30/06/2016,Minewater Contractor Add. Task Order - Ops Site,Environment - Contract Management,2360 SEVERN TRENT SERVICES MAY'16,2490,71.61
DEPARTMENT OF ENERGY AND CLIMATE CHANGE,THE COAL AUTHORITY,30/06/2016,Minewater Contractor Add. Task Order - Ops Site,Environment - Contract Management,2360 SEVERN TRENT SERVICES MAY'16,2490,95.48
DEPARTMENT OF ENERGY AND CLIMATE CHANGE,THE COAL AUTHORITY,30/06/2016,Minewater Contractor Add. Task Order - Ops Site,Environment - Contract Management,2360 SEVERN TRENT SERVICES MAY'16,2490,95.94
DEPARTMENT OF ENERGY AND CLIMATE CHANGE,THE COAL AUTHORITY,30/06/2016,Minewater Contractor Add. Task Order - Ops Site,Environment - Contract Management,2360 SEVERN TRENT SERVICES MAY'16,2490,268.63
DEPARTMENT OF ENERGY AND CLIMATE CHANGE,THE COAL AUTHORITY,30/06/2016,Minewater Contractor Add. Task Order - Ops Site,Environment - Contract Management,2360 SEVERN TRENT SERVICES MAY'16,2490,38.38
DEPARTMENT OF ENERGY AND CLIMATE CHANGE,THE COAL AUTHORITY,30/06/2016,Minewater Contractor Add. Task Order - Ops Site,Environment - Contract Management,2360 SEVERN TRENT SERVICES MAY'16,2490,57.43
DEPARTMENT OF ENERGY AND CLIMATE CHANGE,THE COAL AUTHORITY,30/06/2016,Minewater Contractor Add. Task Order - Ops Site,Environment - Contract Management,2360 SEVERN TRENT SERVICES MAY'16,2490,493.86
DEPARTMENT OF ENERGY AND CLIMATE CHANGE,THE COAL AUTHORITY,30/06/2016,Minewater Contractor Add. Task Order - Ops Site,Environment - Contract Management,2360 SEVERN TRENT SERVICES MAY'16,2490,1764.66
DEPARTMENT OF ENERGY AND CLIMATE CHANGE,THE COAL AUTHORITY,30/06/2016,Minewater Contractor Add. Task Order - Ops Site,Environment - Contract Management,2360 SEVERN TRENT SERVICES MAY'16,2490,4296.24
DEPARTMENT OF ENERGY AND CLIMATE CHANGE,THE COAL AUTHORITY,30/06/2016,Minewater Contractor Add. Task Order - Ops Site,Environment - Contract Management,2360 SEVERN TRENT SERVICES MAY'16,2490,1120.47
DEPARTMENT OF ENERGY AND CLIMATE CHANGE,THE COAL AUTHORITY,30/06/2016,Minewater Contractor Add. Task Order - Ops Site,Environment - Contract Management,2360 SEVERN TRENT SERVICES MAY'16,2490,1521.05
DEPARTMENT OF ENERGY AND CLIMATE CHANGE,THE COAL AUTHORITY,30/06/2016,Minewater Contractor Add. Task Order - Ops Site,Environment - Contract Management,2360 SEVERN TRENT SERVICES MAY'16,2490,11.5
DEPARTMENT OF ENERGY AND CLIMATE CHANGE,THE COAL AUTHORITY,30/06/2016,Minewater Contractor Add. Task Order - Ops Site,Environment - Contract Management,2360 SEVERN TRENT SERVICES MAY'16,2490,2104.74
DEPARTMENT OF ENERGY AND CLIMATE CHANGE,THE COAL AUTHORITY,30/06/2016,Minewater Contractor Add. Task Order - Ops Site,Environment - Contract Management,2360 SEVERN TRENT SERVICES MAY'16,2490,610.35
DEPARTMENT OF ENERGY AND CLIMATE CHANGE,THE COAL AUTHORITY,30/06/2016,Minewater Contractor Add. Task Order - Ops Site,Environment - Contract Management,2360 SEVERN TRENT SERVICES MAY'16,2490,4902.28
DEPARTMENT OF ENERGY AND CLIMATE CHANGE,THE COAL AUTHORITY,30/06/2016,Minewater Contractor Add. Task Order - Ops Site,Environment - Contract Management,2360 SEVERN TRENT SERVICES MAY'16,2490,357.13
DEPARTMENT OF ENERGY AND CLIMATE CHANGE,THE COAL AUTHORITY,30/06/2016,Minewater Contractor Add. Task Order - Ops Site,Environment - Contract Management,2360 SEVERN TRENT SERVICES MAY'16,2490,2928.3
DEPARTMENT OF ENERGY AND CLIMATE CHANGE,THE COAL AUTHORITY,30/06/2016,Minewater Contractor Add. Task Order - Ops Site,Environment - Contract Management,2360 SEVERN TRENT SERVICES MAY'16,2490,1.52
DEPARTMENT OF ENERGY AND CLIMATE CHANGE,THE COAL AUTHORITY,30/06/2016,Minewater Contractor Add. Task Order - Ops Site,Environment - Contract Management,2360 SEVERN TRENT SERVICES MAY'16,2490,523.34
DEPARTMENT OF ENERGY AND CLIMATE CHANGE,THE COAL AUTHORITY,30/06/2016,Minewater Contractor Add. Task Order - Ops Site,Environment - Contract Management,2360 SEVERN TRENT SERVICES MAY'16,2490,67.76
DEPARTMENT OF ENERGY AND CLIMATE CHANGE,THE COAL AUTHORITY,30/06/2016,Minewater Contractor Add. Task Order - Ops Site,Environment - Contract Management,2360 SEVERN TRENT SERVICES MAY'16,2490,2051
DEPARTMENT OF ENERGY AND CLIMATE CHANGE,THE COAL AUTHORITY,30/06/2016,Minewater Contractor Maint. Visits - Ops Site,Environment - Contract Management,2360 SEVERN TRENT SERVICES MAY'16,2490,34200.93
DEPARTMENT OF ENERGY AND CLIMATE CHANGE,THE COAL AUTHORITY,30/06/2016,Minewater Contractor Maint. Visits - Ops Site,Environment - Contract Management,2360 SEVERN TRENT SERVICES MAY'16,2490,345.38
DEPARTMENT OF ENERGY AND CLIMATE CHANGE,THE COAL AUTHORITY,30/06/2016,Minewater Contractor Maint. Visits - Ops Site,Environment - Contract Management,2360 SEVERN TRENT SERVICES MAY'16,2490,223.47
DEPARTMENT OF ENERGY AND CLIMATE CHANGE,THE COAL AUTHORITY,30/06/2016,Minewater Contractor Maint. Visits - Ops Site,Environment - Contract Management,2360 SEVERN TRENT SERVICES MAY'16,2490,137.52
DEPARTMENT OF ENERGY AND CLIMATE CHANGE,THE COAL AUTHORITY,30/06/2016,Minewater Contractor Maint. Visits - Ops Site,Environment - Contract Management,2360 SEVERN TRENT SERVICES MAY'16,2490,193.39
DEPARTMENT OF ENERGY AND CLIMATE CHANGE,THE COAL AUTHORITY,30/06/2016,Minewater Contractor Maint. Visits - Ops Site,Environment - Contract Management,2360 SEVERN TRENT SERVICES MAY'16,2490,201.47
DEPARTMENT OF ENERGY AND CLIMATE CHANGE,THE COAL AUTHORITY,30/06/2016,Minewater Contractor Maint. Visits - Ops Site,Environment - Contract Management,2360 SEVERN TRENT SERVICES MAY'16,2490,283.64
DEPARTMENT OF ENERGY AND CLIMATE CHANGE,THE COAL AUTHORITY,30/06/2016,Minewater Contractor Maint. Visits - Ops Site,Environment - Contract Management,2360 SEVERN TRENT SERVICES MAY'16,2490,292.23
DEPARTMENT OF ENERGY AND CLIMATE CHANGE,THE COAL AUTHORITY,30/06/2016,Minewater Contractor Maint. Visits - Ops Site,Environment - Contract Management,2360 SEVERN TRENT SERVICES MAY'16,2490,585.22
DEPARTMENT OF ENERGY AND CLIMATE CHANGE,THE COAL AUTHORITY,30/06/2016,Minewater Contractor Maint. Visits - Ops Site,Environment - Contract Management,2360 SEVERN TRENT SERVICES MAY'16,2490,163.09
DEPARTMENT OF ENERGY AND CLIMATE CHANGE,THE COAL AUTHORITY,30/06/2016,Minewater Contractor Maint. Visits - Ops Site,Environment - Contract Management,2360 SEVERN TRENT SERVICES MAY'16,2490,103.14
DEPARTMENT OF ENERGY AND CLIMATE CHANGE,THE COAL AUTHORITY,30/06/2016,Minewater Contractor Maint. Visits - Ops Site,Environment - Contract Management,2360 SEVERN TRENT SERVICES MAY'16,2490,307
DEPARTMENT OF ENERGY AND CLIMATE CHANGE,THE COAL AUTHORITY,30/06/2016,Minewater Contractor Maint. Visits - Ops Site,Environment - Contract Management,2360 SEVERN TRENT SERVICES MAY'16,2490,633.19
DEPARTMENT OF ENERGY AND CLIMATE CHANGE,THE COAL AUTHORITY,30/06/2016,Minewater Contractor Maint. Visits - Ops Site,Environment - Contract Management,2360 SEVERN TRENT SERVICES MAY'16,2490,105.53
DEPARTMENT OF ENERGY AND CLIMATE CHANGE,THE COAL AUTHORITY,30/06/2016,Minewater Contractor Maint. Visits - Ops Site,Environment - Contract Management,2360 SEVERN TRENT SERVICES MAY'16,2490,223.47
DEPARTMENT OF ENERGY AND CLIMATE CHANGE,THE COAL AUTHORITY,30/06/2016,Minewater Contractor Maint. Visits - Ops Site,Environment - Contract Management,2360 SEVERN TRENT SERVICES MAY'16,2490,64.46
DEPARTMENT OF ENERGY AND CLIMATE CHANGE,THE COAL AUTHORITY,30/06/2016,Minewater Contractor Maint. Visits - Ops Site,Environment - Contract Management,2360 SEVERN TRENT SERVICES MAY'16,2490,284.22
DEPARTMENT OF ENERGY AND CLIMATE CHANGE,THE COAL AUTHORITY,30/06/2016,Minewater Contractor Maint. Visits - Ops Site,Environment - Contract Management,2360 SEVERN TRENT SERVICES MAY'16,2490,11843.98
DEPARTMENT OF ENERGY AND CLIMATE CHANGE,THE COAL AUTHORITY,30/06/2016,Minewater Contractor Maint. Visits - Ops Site,Environment - Contract Management,2360 SEVERN TRENT SERVICES MAY'16,2490,1247.19
DEPARTMENT OF ENERGY AND CLIMATE CHANGE,THE COAL AUTHORITY,30/06/2016,Minewater Contractor Maint. Visits - Ops Site,Environment - Contract Management,2360 SEVERN TRENT SERVICES MAY'16,2490,259.03
DEPARTMENT OF ENERGY AND CLIMATE CHANGE,THE COAL AUTHORITY,30/06/2016,Minewater Contractor Maint. Visits - Ops Site,Environment - Contract Management,2360 SEVERN TRENT SERVICES MAY'16,2490,90.25
DEPARTMENT OF ENERGY AND CLIMATE CHANGE,THE COAL AUTHORITY,30/06/2016,Minewater Contractor Maint. Visits - Ops Site,Environment - Contract Management,2360 SEVERN TRENT SERVICES MAY'16,2490,171.9
DEPARTMENT OF ENERGY AND CLIMATE CHANGE,THE COAL AUTHORITY,30/06/2016,Minewater Contractor Maint. Visits - Ops Site,Environment - Contract Management,2360 SEVERN TRENT SERVICES MAY'16,2490,211.06
DEPARTMENT OF ENERGY AND CLIMATE CHANGE,THE COAL AUTHORITY,30/06/2016,Minewater Contractor Maint. Visits - Ops Site,Environment - Contract Management,2360 SEVERN TRENT SERVICES MAY'16,2490,477.88
DEPARTMENT OF ENERGY AND CLIMATE CHANGE,THE COAL AUTHORITY,30/06/2016,Minewater Contractor Maint. Visits - Ops Site,Environment - Contract Management,2360 SEVERN TRENT SERVICES MAY'16,2490,230.25
DEPARTMENT OF ENERGY AND CLIMATE CHANGE,THE COAL AUTHORITY,30/06/2016,Minewater Contractor Maint. Visits - Ops Site,Environment - Contract Management,2360 SEVERN TRENT SERVICES MAY'16,2490,197.69
DEPARTMENT OF ENERGY AND CLIMATE CHANGE,THE COAL AUTHORITY,30/06/2016,Minewater Contractor Maint. Visits - Ops Site,Environment - Contract Management,2360 SEVERN TRENT SERVICES MAY'16,2490,172.69
DEPARTMENT OF ENERGY AND CLIMATE CHANGE,THE COAL AUTHORITY,30/06/2016,Minewater Contractor Maint. Visits - Ops Site,Environment - Contract Management,2360 SEVERN TRENT SERVICES MAY'16,2490,674.71
DEPARTMENT OF ENERGY AND CLIMATE CHANGE,THE COAL AUTHORITY,30/06/2016,Minewater Contractor Maint. Visits - Ops Site,Environment - Contract Management,2360 SEVERN TRENT SERVICES MAY'16,2490,326.61
DEPARTMENT OF ENERGY AND CLIMATE CHANGE,THE COAL AUTHORITY,30/06/2016,Minewater Contractor Maint. Visits - Ops Site,Environment - Contract Management,2360 SEVERN TRENT SERVICES MAY'16,2490,116.03
DEPARTMENT OF ENERGY AND CLIMATE CHANGE,THE COAL AUTHORITY,30/06/2016,Minewater Contractor Maint. Visits - Ops Site,Environment - Contract Management,2360 SEVERN TRENT SERVICES MAY'16,2490,37.23
DEPARTMENT OF ENERGY AND CLIMATE CHANGE,THE COAL AUTHORITY,30/06/2016,Minewater Contractor Maint. Visits - Ops Site,Environment - Contract Management,2360 SEVERN TRENT SERVICES MAY'16,2490,120.33
DEPARTMENT OF ENERGY AND CLIMATE CHANGE,THE COAL AUTHORITY,30/06/2016,Minewater Contractor Maint. Visits - Ops Site,Environment - Contract Management,2360 SEVERN TRENT SERVICES MAY'16,2490,42.98
DEPARTMENT OF ENERGY AND CLIMATE CHANGE,THE COAL AUTHORITY,30/06/2016,Minewater Contractor Maint. Visits - Ops Site,Environment - Contract Management,2360 SEVERN TRENT SERVICES MAY'16,2490,345.38
DEPARTMENT OF ENERGY AND CLIMATE CHANGE,THE COAL AUTHORITY,30/06/2016,Minewater Contractor Maint. Visits - Ops Site,Environment - Contract Management,2360 SEVERN TRENT SERVICES MAY'16,2490,153.5
DEPARTMENT OF ENERGY AND CLIMATE CHANGE,THE COAL AUTHORITY,30/06/2016,Minewater Contractor Maint. Visits - Ops Site,Environment - Contract Management,2360 SEVERN TRENT SERVICES MAY'16,2490,201.98
DEPARTMENT OF ENERGY AND CLIMATE CHANGE,THE COAL AUTHORITY,30/06/2016,Minewater Contractor Maint. Visits - Ops Site,Environment - Contract Management,2360 SEVERN TRENT SERVICES MAY'16,2490,287.93
DEPARTMENT OF ENERGY AND CLIMATE CHANGE,THE COAL AUTHORITY,30/06/2016,Minewater Contractor Maint. Visits - Ops Site,Environment - Contract Management,2360 SEVERN TRENT SERVICES MAY'16,2490,431.72
DEPARTMENT OF ENERGY AND CLIMATE CHANGE,THE COAL AUTHORITY,30/06/2016,Minewater Contractor Maint. Visits - Ops Site,Environment - Contract Management,2360 SEVERN TRENT SERVICES MAY'16,2490,805.88
DEPARTMENT OF ENERGY AND CLIMATE CHANGE,THE COAL AUTHORITY,30/06/2016,Minewater Contractor Maint. Visits - Ops Site,Environment - Contract Management,2360 SEVERN TRENT SERVICES MAY'16,2490,128.93
DEPARTMENT OF ENERGY AND CLIMATE CHANGE,THE COAL AUTHORITY,30/06/2016,Minewater Contractor Maint. Visits - Ops Site,Environment - Contract Management,2360 SEVERN TRENT SERVICES MAY'16,2490,962.65
DEPARTMENT OF ENERGY AND CLIMATE CHANGE,THE COAL AUTHORITY,30/06/2016,Minewater Contractor Maint. Visits - Ops Site,Environment - Contract Management,2360 SEVERN TRENT SERVICES MAY'16,2490,111.74
DEPARTMENT OF ENERGY AND CLIMATE CHANGE,THE COAL AUTHORITY,30/06/2016,Minewater Contractor Maint. Visits - Ops Site,Environment - Contract Management,2360 SEVERN TRENT SERVICES MAY'16,2490,103.14
DEPARTMENT OF ENERGY AND CLIMATE CHANGE,THE COAL AUTHORITY,30/06/2016,Minewater Contractor Maint. Visits - Ops Site,Environment - Contract Management,2360 SEVERN TRENT SERVICES MAY'16,2490,700.34
DEPARTMENT OF ENERGY AND CLIMATE CHANGE,THE COAL AUTHORITY,30/06/2016,Minewater Contractor Maint. Visits - Ops Site,Environment - Contract Management,2360 SEVERN TRENT SERVICES MAY'16,2490,12.89
DEPARTMENT OF ENERGY AND CLIMATE CHANGE,THE COAL AUTHORITY,30/06/2016,Minewater Contractor Maint. Visits - Ops Site,Environment - Contract Management,2360 SEVERN TRENT SERVICES MAY'16,2490,345.38
DEPARTMENT OF ENERGY AND CLIMATE CHANGE,THE COAL AUTHORITY,30/06/2016,Minewater Contractor Maint. Visits - Ops Site,Environment - Contract Management,2360 SEVERN TRENT SERVICES MAY'16,2490,345.38
DEPARTMENT OF ENERGY AND CLIMATE CHANGE,THE COAL AUTHORITY,30/06/2016,Minewater Contractor Maint. Visits - Ops Site,Environment - Contract Management,2360 SEVERN TRENT SERVICES MAY'16,2490,642.78
DEPARTMENT OF ENERGY AND CLIMATE CHANGE,THE COAL AUTHORITY,30/06/2016,Minewater Contractor Maint. Visits - Ops Site,Environment - Contract Management,2360 SEVERN TRENT SERVICES MAY'16,2490,38.38
DEPARTMENT OF ENERGY AND CLIMATE CHANGE,THE COAL AUTHORITY,30/06/2016,Minewater Contractor Maint. Visits - Ops Site,Environment - Contract Management,2360 SEVERN TRENT SERVICES MAY'16,2490,76.75
DEPARTMENT OF ENERGY AND CLIMATE CHANGE,THE COAL AUTHORITY,30/06/2016,Minewater Contractor Maint. Visits - Ops Site,Environment - Contract Management,2360 SEVERN TRENT SERVICES MAY'16,2490,10773.79
DEPARTMENT OF ENERGY AND CLIMATE CHANGE,THE COAL AUTHORITY,30/06/2016,Minewater Contractor Maint. Visits - Ops Site,Environment - Contract Management,2360 SEVERN TRENT SERVICES MAY'16,2490,124.72
DEPARTMENT OF ENERGY AND CLIMATE CHANGE,THE COAL AUTHORITY,30/06/2016,Minewater Contractor Maint. Visits - Ops Site,Environment - Contract Management,2360 SEVERN TRENT SERVICES MAY'16,2490,64.46
DEPARTMENT OF ENERGY AND CLIMATE CHANGE,THE COAL AUTHORITY,30/06/2016,Minewater Contractor Maint. Visits - Ops Site,Environment - Contract Management,2360 SEVERN TRENT SERVICES MAY'16,2490,55.87
DEPARTMENT OF ENERGY AND CLIMATE CHANGE,THE COAL AUTHORITY,30/06/2016,Minewater Contractor Maint. Visits - Ops Site,Environment - Contract Management,2360 SEVERN TRENT SERVICES MAY'16,2490,51.57
DEPARTMENT OF ENERGY AND CLIMATE CHANGE,THE COAL AUTHORITY,30/06/2016,Minewater Contractor Maint. Visits - Ops Site,Environment - Contract Management,2360 SEVERN TRENT SERVICES MAY'16,2490,77.36
DEPARTMENT OF ENERGY AND CLIMATE CHANGE,THE COAL AUTHORITY,30/06/2016,Minewater Contractor Maint. Visits - Ops Site,Environment - Contract Management,2360 SEVERN TRENT SERVICES MAY'16,2490,201.47
DEPARTMENT OF ENERGY AND CLIMATE CHANGE,THE COAL AUTHORITY,30/06/2016,Minewater Contractor Maint. Visits - Ops Site,Environment - Contract Management,2360 SEVERN TRENT SERVICES MAY'16,2490,325.73
DEPARTMENT OF ENERGY AND CLIMATE CHANGE,THE COAL AUTHORITY,30/06/2016,Minewater Contractor Maint. Visits - Ops Site,Environment - Contract Management,2360 SEVERN TRENT SERVICES MAY'16,2490,488.31
DEPARTMENT OF ENERGY AND CLIMATE CHANGE,THE COAL AUTHORITY,30/06/2016,Minewater Contractor Maint. Visits - Ops Site,Environment - Contract Management,2360 SEVERN TRENT SERVICES MAY'16,2490,3336.22
DEPARTMENT OF ENERGY AND CLIMATE CHANGE,THE COAL AUTHORITY,30/06/2016,Minewater Contractor Maint. Visits - Ops Site,Environment - Contract Management,2360 SEVERN TRENT SERVICES MAY'16,2490,23.26
DEPARTMENT OF ENERGY AND CLIMATE CHANGE,THE COAL AUTHORITY,30/06/2016,Minewater Contractor Maint. Visits - Ops Site,Environment - Contract Management,2360 SEVERN TRENT SERVICES MAY'16,2490,977.92
DEPARTMENT OF ENERGY AND CLIMATE CHANGE,THE COAL AUTHORITY,30/06/2016,Minewater Contractor Maint. Visits - Ops Site,Environment - Contract Management,2360 SEVERN TRENT SERVICES MAY'16,2490,288.04
DEPARTMENT OF ENERGY AND CLIMATE CHANGE,THE COAL AUTHORITY,30/06/2016,Minewater Contractor Maint. Visits - Ops Site,Environment - Contract Management,2360 SEVERN TRENT SERVICES MAY'16,2490,288.04
DEPARTMENT OF ENERGY AND CLIMATE CHANGE,THE COAL AUTHORITY,30/06/2016,Minewater Landscaping,Environment - Contract Management,2360 SEVERN TRENT SERVICES MAY'16,2490,422.33
DEPARTMENT OF ENERGY AND CLIMATE CHANGE,THE COAL AUTHORITY,30/06/2016,Minewater Landscaping,Environment - Contract Management,2360 SEVERN TRENT SERVICES MAY'16,2490,213.39
DEPARTMENT OF ENERGY AND CLIMATE CHANGE,THE COAL AUTHORITY,30/06/2016,Minewater Liability & Monitoring Sites - Maint.,Environment - Contract Management,2360 SEVERN TRENT SERVICES MAY'16,2490,8550.23
DEPARTMENT OF ENERGY AND CLIMATE CHANGE,THE COAL AUTHORITY,30/06/2016,Minewater Liability & Monitoring Sites - Maint.,Environment - Contract Management,2360 SEVERN TRENT SERVICES MAY'16,2490,10096.45
DEPARTMENT OF ENERGY AND CLIMATE CHANGE,THE COAL AUTHORITY,30/06/2016,Minewater Liability & Monitoring Sites - Maint.,Environment - Contract Management,2360 SEVERN TRENT SERVICES MAY'16,2490,1113.59
DEPARTMENT OF ENERGY AND CLIMATE CHANGE,THE COAL AUTHORITY,30/06/2016,Minewater Monitoring & Flow Measurement,Environment - Contract Management,2360 SEVERN TRENT SERVICES MAY'16,2490,9084.97
DEPARTMENT OF ENERGY AND CLIMATE CHANGE,THE COAL AUTHORITY,30/06/2016,Minewater Monitoring & Flow Measurement,Environment - Contract Management,2360 SEVERN TRENT SERVICES MAY'16,2490,148.9
DEPARTMENT OF ENERGY AND CLIMATE CHANGE,THE COAL AUTHORITY,30/06/2016,Minewater Monitoring & Flow Measurement,Environment - Contract Management,2360 SEVERN TRENT SERVICES MAY'16,2490,21677.24
DEPARTMENT OF ENERGY AND CLIMATE CHANGE,THE COAL AUTHORITY,30/06/2016,Minewater Monitoring & Flow Measurement,Environment - Contract Management,2360 SEVERN TRENT SERVICES MAY'16,2490,1388.21
DEPARTMENT OF ENERGY AND CLIMATE CHANGE,THE COAL AUTHORITY,30/06/2016,Minewater Pumping Tests,Environment - Contract Management,2360 SEVERN TRENT SERVICES MAY'16,2490,909.61
DEPARTMENT OF ENERGY AND CLIMATE CHANGE,THE COAL AUTHORITY,30/06/2016,Minewater Pumping Tests,Environment - Contract Management,2360 SEVERN TRENT SERVICES MAY'16,2490,3130.51
DEPARTMENT OF ENERGY AND CLIMATE CHANGE,THE COAL AUTHORITY,30/06/2016,Minewater Remediation,Environment - Contract Management,2360 SEVERN TRENT SERVICES MAY'16,2490,263.95
DEPARTMENT OF ENERGY AND CLIMATE CHANGE,THE COAL AUTHORITY,30/06/2016,Minewater Remediation,Environment - Contract Management,2360 SEVERN TRENT SERVICES MAY'16,2490,118.78
DEPARTMENT OF ENERGY AND CLIMATE CHANGE,THE COAL AUTHORITY,30/06/2016,Minewater Remediation,Environment - Contract Management,2360 SEVERN TRENT SERVICES MAY'16,2490,3272.35
DEPARTMENT OF ENERGY AND CLIMATE CHANGE,THE COAL AUTHORITY,30/06/2016,Minewater Remediation,Environment - Contract Management,2360 SEVERN TRENT SERVICES MAY'16,2490,6052.6
DEPARTMENT OF ENERGY AND CLIMATE CHANGE,THE COAL AUTHORITY,30/06/2016,Minewater Remediation,Environment - Contract Management,2360 SEVERN TRENT SERVICES MAY'16,2490,1275.06
DEPARTMENT OF ENERGY AND CLIMATE CHANGE,THE COAL AUTHORITY,30/06/2016,Minewater Remediation,Environment - Contract Management,2360 SEVERN TRENT SERVICES MAY'16,2490,2377.11
DEPARTMENT OF ENERGY AND CLIMATE CHANGE,THE COAL AUTHORITY,30/06/2016,Minewater Remediation,Environment - Contract Management,2360 SEVERN TRENT SERVICES MAY'16,2490,9911.56
DEPARTMENT OF ENERGY AND CLIMATE CHANGE,THE COAL AUTHORITY,30/06/2016,Minewater Remediation,Environment - Contract Management,2360 SEVERN TRENT SERVICES MAY'16,2490,6795.15
DEPARTMENT OF ENERGY AND CLIMATE CHANGE,THE COAL AUTHORITY,30/06/2016,Minewater Sampling - 'Non-operational' Sites,Environment - Contract Management,2360 SEVERN TRENT SERVICES MAY'16,2490,6037.77
DEPARTMENT OF ENERGY AND CLIMATE CHANGE,THE COAL AUTHORITY,30/06/2016,Minewater Sampling - Operational Sites,Environment - Contract Management,2360 SEVERN TRENT SERVICES MAY'16,2490,874.42
DEPARTMENT OF ENERGY AND CLIMATE CHANGE,THE COAL AUTHORITY,30/06/2016,Minewater Sampling - Operational Sites,Environment - Contract Management,2360 SEVERN TRENT SERVICES MAY'16,2490,2852.87
DEPARTMENT OF ENERGY AND CLIMATE CHANGE,THE COAL AUTHORITY,30/06/2016,Minewater Sampling - Operational Sites,Environment - Contract Management,2360 SEVERN TRENT SERVICES MAY'16,2490,235.14
DEPARTMENT OF ENERGY AND CLIMATE CHANGE,THE COAL AUTHORITY,30/06/2016,Minewater Sampling - Operational Sites,Environment - Contract Management,2360 SEVERN TRENT SERVICES MAY'16,2490,239.19
DEPARTMENT OF ENERGY AND CLIMATE CHANGE,THE COAL AUTHORITY,30/06/2016,Minewater Sampling - Operational Sites,Environment - Contract Management,2360 SEVERN TRENT SERVICES MAY'16,2490,154.45
DEPARTMENT OF ENERGY AND CLIMATE CHANGE,THE COAL AUTHORITY,30/06/2016,Minewater Sampling - Operational Sites,Environment - Contract Management,2360 SEVERN TRENT SERVICES MAY'16,2490,77.23
DEPARTMENT OF ENERGY AND CLIMATE CHANGE,THE COAL AUTHORITY,30/06/2016,Minewater Sampling - Operational Sites,Environment - Contract Management,2360 SEVERN TRENT SERVICES MAY'16,2490,243.87
DEPARTMENT OF ENERGY AND CLIMATE CHANGE,THE COAL AUTHORITY,30/06/2016,Minewater Sampling - Operational Sites,Environment - Contract Management,2360 SEVERN TRENT SERVICES MAY'16,2490,63.17
DEPARTMENT OF ENERGY AND CLIMATE CHANGE,THE COAL AUTHORITY,30/06/2016,Minewater Sampling - Operational Sites,Environment - Contract Management,2360 SEVERN TRENT SERVICES MAY'16,2490,244.98
DEPARTMENT OF ENERGY AND CLIMATE CHANGE,THE COAL AUTHORITY,30/06/2016,Minewater Sampling - Operational Sites,Environment - Contract Management,2360 SEVERN TRENT SERVICES MAY'16,2490,292.98
DEPARTMENT OF ENERGY AND CLIMATE CHANGE,THE COAL AUTHORITY,30/06/2016,Minewater Sampling - Operational Sites,Environment - Contract Management,2360 SEVERN TRENT SERVICES MAY'16,2490,108.81
DEPARTMENT OF ENERGY AND CLIMATE CHANGE,THE COAL AUTHORITY,30/06/2016,Minewater Sampling - Operational Sites,Environment - Contract Management,2360 SEVERN TRENT SERVICES MAY'16,2490,95.97
DEPARTMENT OF ENERGY AND CLIMATE CHANGE,THE COAL AUTHORITY,30/06/2016,Minewater Sampling - Operational Sites,Environment - Contract Management,2360 SEVERN TRENT SERVICES MAY'16,2490,158.84
DEPARTMENT OF ENERGY AND CLIMATE CHANGE,THE COAL AUTHORITY,30/06/2016,Minewater Sampling - Operational Sites,Environment - Contract Management,2360 SEVERN TRENT SERVICES MAY'16,2490,63.17
DEPARTMENT OF ENERGY AND CLIMATE CHANGE,THE COAL AUTHORITY,30/06/2016,Minewater Sampling - Operational Sites,Environment - Contract Management,2360 SEVERN TRENT SERVICES MAY'16,2490,31.58
DEPARTMENT OF ENERGY AND CLIMATE CHANGE,THE COAL AUTHORITY,30/06/2016,Minewater Sampling - Operational Sites,Environment - Contract Management,2360 SEVERN TRENT SERVICES MAY'16,2490,82.28
DEPARTMENT OF ENERGY AND CLIMATE CHANGE,THE COAL AUTHORITY,30/06/2016,Minewater Sampling - Operational Sites,Environment - Contract Management,2360 SEVERN TRENT SERVICES MAY'16,2490,63.17
DEPARTMENT OF ENERGY AND CLIMATE CHANGE,THE COAL AUTHORITY,30/06/2016,Minewater Sampling - Operational Sites,Environment - Contract Management,2360 SEVERN TRENT SERVICES MAY'16,2490,77.13
DEPARTMENT OF ENERGY AND CLIMATE CHANGE,THE COAL AUTHORITY,30/06/2016,Minewater Sampling - Operational Sites,Environment - Contract Management,2360 SEVERN TRENT SERVICES MAY'16,2490,31.58
DEPARTMENT OF ENERGY AND CLIMATE CHANGE,THE COAL AUTHORITY,30/06/2016,Minewater Sampling - Operational Sites,Environment - Contract Management,2360 SEVERN TRENT SERVICES MAY'16,2490,5672.56
DEPARTMENT OF ENERGY AND CLIMATE CHANGE,THE COAL AUTHORITY,30/06/2016,Minewater Sampling - Operational Sites,Environment - Contract Management,2360 SEVERN TRENT SERVICES MAY'16,2490,227.66
DEPARTMENT OF ENERGY AND CLIMATE CHANGE,THE COAL AUTHORITY,30/06/2016,Minewater Sampling - Operational Sites,Environment - Contract Management,2360 SEVERN TRENT SERVICES MAY'16,2490,31.58
DEPARTMENT OF ENERGY AND CLIMATE CHANGE,THE COAL AUTHORITY,30/06/2016,Minewater Sampling - Operational Sites,Environment - Contract Management,2360 SEVERN TRENT SERVICES MAY'16,2490,72.54
DEPARTMENT OF ENERGY AND CLIMATE CHANGE,THE COAL AUTHORITY,30/06/2016,Minewater Sampling - Operational Sites,Environment - Contract Management,2360 SEVERN TRENT SERVICES MAY'16,2490,63.17
DEPARTMENT OF ENERGY AND CLIMATE CHANGE,THE COAL AUTHORITY,30/06/2016,Minewater Sampling - Operational Sites,Environment - Contract Management,2360 SEVERN TRENT SERVICES MAY'16,2490,104.12
DEPARTMENT OF ENERGY AND CLIMATE CHANGE,THE COAL AUTHORITY,30/06/2016,Minewater Sampling - Operational Sites,Environment - Contract Management,2360 SEVERN TRENT SERVICES MAY'16,2490,72.54
DEPARTMENT OF ENERGY AND CLIMATE CHANGE,THE COAL AUTHORITY,30/06/2016,Minewater Sampling - Operational Sites,Environment - Contract Management,2360 SEVERN TRENT SERVICES MAY'16,2490,126.34
DEPARTMENT OF ENERGY AND CLIMATE CHANGE,THE COAL AUTHORITY,30/06/2016,Minewater Sampling - Operational Sites,Environment - Contract Management,2360 SEVERN TRENT SERVICES MAY'16,2490,320.48
DEPARTMENT OF ENERGY AND CLIMATE CHANGE,THE COAL AUTHORITY,30/06/2016,Minewater Sampling - Operational Sites,Environment - Contract Management,2360 SEVERN TRENT SERVICES MAY'16,2490,44.22
DEPARTMENT OF ENERGY AND CLIMATE CHANGE,THE COAL AUTHORITY,30/06/2016,Minewater Sampling - Operational Sites,Environment - Contract Management,2360 SEVERN TRENT SERVICES MAY'16,2490,81.91
DEPARTMENT OF ENERGY AND CLIMATE CHANGE,THE COAL AUTHORITY,30/06/2016,Minewater Sampling - Operational Sites,Environment - Contract Management,2360 SEVERN TRENT SERVICES MAY'16,2490,194.19
DEPARTMENT OF ENERGY AND CLIMATE CHANGE,THE COAL AUTHORITY,30/06/2016,Minewater Sampling - Operational Sites,Environment - Contract Management,2360 SEVERN TRENT SERVICES MAY'16,2490,72.54
DEPARTMENT OF ENERGY AND CLIMATE CHANGE,THE COAL AUTHORITY,30/06/2016,Minewater Sampling - Operational Sites,Environment - Contract Management,2360 SEVERN TRENT SERVICES MAY'16,2490,230.46
DEPARTMENT OF ENERGY AND CLIMATE CHANGE,THE COAL AUTHORITY,30/06/2016,Minewater Sampling - Operational Sites,Environment - Contract Management,2360 SEVERN TRENT SERVICES MAY'16,2490,77.23
DEPARTMENT OF ENERGY AND CLIMATE CHANGE,THE COAL AUTHORITY,30/06/2016,Minewater Sampling - Operational Sites,Environment - Contract Management,2360 SEVERN TRENT SERVICES MAY'16,2490,84.81
DEPARTMENT OF ENERGY AND CLIMATE CHANGE,THE COAL AUTHORITY,30/06/2016,Minewater Sampling - Operational Sites,Environment - Contract Management,2360 SEVERN TRENT SERVICES MAY'16,2490,86.6
DEPARTMENT OF ENERGY AND CLIMATE CHANGE,THE COAL AUTHORITY,30/06/2016,Minewater Sampling - Operational Sites,Environment - Contract Management,2360 SEVERN TRENT SERVICES MAY'16,2490,31.58
DEPARTMENT OF ENERGY AND CLIMATE CHANGE,THE COAL AUTHORITY,30/06/2016,Minewater Sampling - Operational Sites,Environment - Contract Management,2360 SEVERN TRENT SERVICES MAY'16,2490,31.58
DEPARTMENT OF ENERGY AND CLIMATE CHANGE,THE COAL AUTHORITY,30/06/2016,Minewater Sampling - Operational Sites,Environment - Contract Management,2360 SEVERN TRENT SERVICES MAY'16,2490,140.39
DEPARTMENT OF ENERGY AND CLIMATE CHANGE,THE COAL AUTHORITY,30/06/2016,Minewater Sampling - Operational Sites,Environment - Contract Management,2360 SEVERN TRENT SERVICES MAY'16,2490,132.65
DEPARTMENT OF ENERGY AND CLIMATE CHANGE,THE COAL AUTHORITY,30/06/2016,Minewater Sampling - Operational Sites,Environment - Contract Management,2360 SEVERN TRENT SERVICES MAY'16,2490,81.91
DEPARTMENT OF ENERGY AND CLIMATE CHANGE,THE COAL AUTHORITY,30/06/2016,Minewater Sampling - Operational Sites,Environment - Contract Management,2360 SEVERN TRENT SERVICES MAY'16,2490,77.23
DEPARTMENT OF ENERGY AND CLIMATE CHANGE,THE COAL AUTHORITY,30/06/2016,Minewater Sampling - Operational Sites,Environment - Contract Management,2360 SEVERN TRENT SERVICES MAY'16,2490,63.17
DEPARTMENT OF ENERGY AND CLIMATE CHANGE,THE COAL AUTHORITY,30/06/2016,Minewater Sampling - Operational Sites,Environment - Contract Management,2360 SEVERN TRENT SERVICES MAY'16,2490,91.29
DEPARTMENT OF ENERGY AND CLIMATE CHANGE,THE COAL AUTHORITY,30/06/2016,Minewater Sampling - Operational Sites,Environment - Contract Management,2360 SEVERN TRENT SERVICES MAY'16,2490,31.58
DEPARTMENT OF ENERGY AND CLIMATE CHANGE,THE COAL AUTHORITY,30/06/2016,Minewater Sampling - Operational Sites,Environment - Contract Management,2360 SEVERN TRENT SERVICES MAY'16,2490,81.91
DEPARTMENT OF ENERGY AND CLIMATE CHANGE,THE COAL AUTHORITY,30/06/2016,Minewater Sampling - Operational Sites,Environment - Contract Management,2360 SEVERN TRENT SERVICES MAY'16,2490,72.54
DEPARTMENT OF ENERGY AND CLIMATE CHANGE,THE COAL AUTHORITY,30/06/2016,Minewater Sampling - Operational Sites,Environment - Contract Management,2360 SEVERN TRENT SERVICES MAY'16,2490,72.54
DEPARTMENT OF ENERGY AND CLIMATE CHANGE,THE COAL AUTHORITY,30/06/2016,Minewater Sampling - Operational Sites,Environment - Contract Management,2360 SEVERN TRENT SERVICES MAY'16,2490,31.58
DEPARTMENT OF ENERGY AND CLIMATE CHANGE,THE COAL AUTHORITY,30/06/2016,Minewater Sampling - Operational Sites,Environment - Contract Management,2360 SEVERN TRENT SERVICES MAY'16,2490,1137.13
DEPARTMENT OF ENERGY AND CLIMATE CHANGE,THE COAL AUTHORITY,30/06/2016,Minewater Sampling - Operational Sites,Environment - Contract Management,2360 SEVERN TRENT SERVICES MAY'16,2490,81.91
DEPARTMENT OF ENERGY AND CLIMATE CHANGE,THE COAL AUTHORITY,30/06/2016,Minewater Sampling - Operational Sites,Environment - Contract Management,2360 SEVERN TRENT SERVICES MAY'16,2490,72.54
DEPARTMENT OF ENERGY AND CLIMATE CHANGE,THE COAL AUTHORITY,30/06/2016,Minewater Sampling - Operational Sites,Environment - Contract Management,2360 SEVERN TRENT SERVICES MAY'16,2490,94.75
DEPARTMENT OF ENERGY AND CLIMATE CHANGE,THE COAL AUTHORITY,30/06/2016,Minewater Sampling - Operational Sites,Environment - Contract Management,2360 SEVERN TRENT SERVICES MAY'16,2490,290.87
DEPARTMENT OF ENERGY AND CLIMATE CHANGE,THE COAL AUTHORITY,30/06/2016,Minewater Sampling - Operational Sites,Environment - Contract Management,2360 SEVERN TRENT SERVICES MAY'16,2490,70.38
DEPARTMENT OF ENERGY AND CLIMATE CHANGE,THE COAL AUTHORITY,30/06/2016,Minewater Sampling - Operational Sites,Environment - Contract Management,2360 SEVERN TRENT SERVICES MAY'16,2490,72.54
DEPARTMENT OF ENERGY AND CLIMATE CHANGE,THE COAL AUTHORITY,30/06/2016,Minewater Sampling - Operational Sites,Environment - Contract Management,2360 SEVERN TRENT SERVICES MAY'16,2490,180.7
DEPARTMENT OF ENERGY AND CLIMATE CHANGE,THE COAL AUTHORITY,30/06/2016,Minewater Sampling - Operational Sites,Environment - Contract Management,2360 SEVERN TRENT SERVICES MAY'16,2490,63.17
DEPARTMENT OF ENERGY AND CLIMATE CHANGE,THE COAL AUTHORITY,30/06/2016,Minewater Sampling - Operational Sites,Environment - Contract Management,2360 SEVERN TRENT SERVICES MAY'16,2490,288.94
DEPARTMENT OF ENERGY AND CLIMATE CHANGE,THE COAL AUTHORITY,30/06/2016,Minewater Sampling - Operational Sites,Environment - Contract Management,2360 SEVERN TRENT SERVICES MAY'16,2490,104.12
DEPARTMENT OF ENERGY AND CLIMATE CHANGE,THE COAL AUTHORITY,30/06/2016,Minewater Sampling - Operational Sites,Environment - Contract Management,2360 SEVERN TRENT SERVICES MAY'16,2490,140.39
DEPARTMENT OF ENERGY AND CLIMATE CHANGE,THE COAL AUTHORITY,30/06/2016,Minewater Sampling - Operational Sites,Environment - Contract Management,2360 SEVERN TRENT SERVICES MAY'16,2490,3927.87
DEPARTMENT OF ENERGY AND CLIMATE CHANGE,THE COAL AUTHORITY,30/06/2016,Minewater Sampling - Operational Sites,Environment - Contract Management,2360 SEVERN TRENT SERVICES MAY'16,2490,243.87
DEPARTMENT OF ENERGY AND CLIMATE CHANGE,THE COAL AUTHORITY,30/06/2016,Minewater Sampling - Operational Sites,Environment - Contract Management,2360 SEVERN TRENT SERVICES MAY'16,2490,107.18
DEPARTMENT OF ENERGY AND CLIMATE CHANGE,THE COAL AUTHORITY,30/06/2016,Minewater Sampling - Operational Sites,Environment - Contract Management,2360 SEVERN TRENT SERVICES MAY'16,2490,95.97
DEPARTMENT OF ENERGY AND CLIMATE CHANGE,THE COAL AUTHORITY,30/06/2016,Minewater Sampling - Operational Sites,Environment - Contract Management,2360 SEVERN TRENT SERVICES MAY'16,2490,212.29
DEPARTMENT OF ENERGY AND CLIMATE CHANGE,THE COAL AUTHORITY,30/06/2016,Minewater Sampling - Operational Sites,Environment - Contract Management,2360 SEVERN TRENT SERVICES MAY'16,2490,298.04
DEPARTMENT OF ENERGY AND CLIMATE CHANGE,THE COAL AUTHORITY,30/06/2016,Minewater Sludge Disposal,Environment - Contract Management,2360 SEVERN TRENT SERVICES MAY'16,2490,74.45
DEPARTMENT OF ENERGY AND CLIMATE CHANGE,THE COAL AUTHORITY,30/06/2016,Minewater Sludge Disposal,Environment - Contract Management,2360 SEVERN TRENT SERVICES MAY'16,2490,14924
DEPARTMENT OF ENERGY AND CLIMATE CHANGE,THE COAL AUTHORITY,30/06/2016,Minewater Sludge Disposal,Environment - Contract Management,2360 SEVERN TRENT SERVICES MAY'16,2490,8324.27
DEPARTMENT OF ENERGY AND CLIMATE CHANGE,THE COAL AUTHORITY,30/06/2016,Minewater Sludge Disposal,Environment - Contract Management,2360 SEVERN TRENT SERVICES MAY'16,2490,17.85
DEPARTMENT OF ENERGY AND CLIMATE CHANGE,THE COAL AUTHORITY,30/06/2016,Minewater Sludge Disposal,Environment - Contract Management,2360 SEVERN TRENT SERVICES MAY'16,2490,4800.73
DEPARTMENT OF ENERGY AND CLIMATE CHANGE,THE COAL AUTHORITY,30/06/2016,Subsidence Pumping Maintenance - Other,Environment - Contract Management,2360 SEVERN TRENT SERVICES MAY'16,2490,191.88
DEPARTMENT OF ENERGY AND CLIMATE CHANGE,THE COAL AUTHORITY,30/06/2016,Subsidence Pumping Maintenance - Other,Environment - Contract Management,2360 SEVERN TRENT SERVICES MAY'16,2490,105.53
DEPARTMENT OF ENERGY AND CLIMATE CHANGE,THE COAL AUTHORITY,30/06/2016,Subsidence Pumping Maintenance - Other,Environment - Contract Management,2360 SEVERN TRENT SERVICES MAY'16,2490,105.58
DEPARTMENT OF ENERGY AND CLIMATE CHANGE,THE COAL AUTHORITY,30/06/2016,Subsidence Pumping Maintenance - Other,Environment - Contract Management,2360 SEVERN TRENT SERVICES MAY'16,2490,115.13
DEPARTMENT OF ENERGY AND CLIMATE CHANGE,THE COAL AUTHORITY,05/07/2016,Minewater Remediation,Environment - Contract Management,2130 Balfour Beatty,2598,3545.06
DEPARTMENT OF ENERGY AND CLIMATE CHANGE,THE COAL AUTHORITY,05/07/2016,Minewater Sampling - Operational Sites,Environment - Contract Management,1676 Scientifics,2598,416
DEPARTMENT OF ENERGY AND CLIMATE CHANGE,THE COAL AUTHORITY,05/07/2016,Minewater Pumping Tests,Environment - Contract Management,2397 J N Bentley Ltd,2673,62091.63
DEPARTMENT OF ENERGY AND CLIMATE CHANGE,THE COAL AUTHORITY,15/06/2016,Minewater Telecoms & Telemetry,Environment - Contract Management,Vodafone Limited (Corporate),2203,586.15
DEPARTMENT OF ENERGY AND CLIMATE CHANGE,THE COAL AUTHORITY,02/06/2016,Minewater Telecoms & Telemetry,Environment - Contract Management,O2 (Uk) Limited,1833,12.5
DEPARTMENT OF ENERGY AND CLIMATE CHANGE,THE COAL AUTHORITY,02/06/2016,Minewater Telecoms & Telemetry,Environment - Contract Management,O2 (Uk) Limited,1834,12.5
DEPARTMENT OF ENERGY AND CLIMATE CHANGE,THE COAL AUTHORITY,02/06/2016,Minewater Telecoms & Telemetry,Environment - Contract Management,O2 (Uk) Limited,1835,12.5
DEPARTMENT OF ENERGY AND CLIMATE CHANGE,THE COAL AUTHORITY,07/06/2016,Minewater Power Costs,Environment - Contract Management,British Gas Business,1924,783.73
DEPARTMENT OF ENERGY AND CLIMATE CHANGE,THE COAL AUTHORITY,13/06/2016,Minewater Power Costs,Environment - Contract Management,British Gas Business,2179,1267.71
DEPARTMENT OF ENERGY AND CLIMATE CHANGE,THE COAL AUTHORITY,13/06/2016,Minewater Power Costs,Environment - Contract Management,British Gas Business,2179,1849.86
DEPARTMENT OF ENERGY AND CLIMATE CHANGE,THE COAL AUTHORITY,13/06/2016,Minewater Power Costs,Environment - Contract Management,British Gas Business,2179,630.09
DEPARTMENT OF ENERGY AND CLIMATE CHANGE,THE COAL AUTHORITY,13/06/2016,Minewater Power Costs,Environment - Contract Management,British Gas Business,2179,402.96
DEPARTMENT OF ENERGY AND CLIMATE CHANGE,THE COAL AUTHORITY,13/06/2016,Minewater Power Costs,Environment - Contract Management,British Gas Business,2179,1672.53
DEPARTMENT OF ENERGY AND CLIMATE CHANGE,THE COAL AUTHORITY,13/06/2016,Minewater Power Costs,Environment - Contract Management,British Gas Business,2179,862.5
DEPARTMENT OF ENERGY AND CLIMATE CHANGE,THE COAL AUTHORITY,13/06/2016,Minewater Power Costs,Environment - Contract Management,British Gas Business,2179,2508.12
DEPARTMENT OF ENERGY AND CLIMATE CHANGE,THE COAL AUTHORITY,13/06/2016,Minewater Power Costs,Environment - Contract Management,British Gas Business,2179,3015.04
DEPARTMENT OF ENERGY AND CLIMATE CHANGE,THE COAL AUTHORITY,13/06/2016,Minewater Power Costs,Environment - Contract Management,British Gas Business,2179,3046.54
DEPARTMENT OF ENERGY AND CLIMATE CHANGE,THE COAL AUTHORITY,13/06/2016,Minewater Power Costs,Environment - Contract Management,British Gas Business,2179,750.86
DEPARTMENT OF ENERGY AND CLIMATE CHANGE,THE COAL AUTHORITY,13/06/2016,Minewater Power Costs,Environment - Contract Management,British Gas Business,2179,407
DEPARTMENT OF ENERGY AND CLIMATE CHANGE,THE COAL AUTHORITY,13/06/2016,Minewater Power Costs,Environment - Contract Management,British Gas Business,2179,8.06
DEPARTMENT OF ENERGY AND CLIMATE CHANGE,THE COAL AUTHORITY,13/06/2016,Minewater Power Costs,Environment - Contract Management,British Gas Business,2179,6787.7
DEPARTMENT OF ENERGY AND CLIMATE CHANGE,THE COAL AUTHORITY,13/06/2016,Minewater Power Costs,Environment - Contract Management,British Gas Business,2179,1020.48
DEPARTMENT OF ENERGY AND CLIMATE CHANGE,THE COAL AUTHORITY,13/06/2016,Minewater Power Costs,Environment - Contract Management,British Gas Business,2179,1016.93
DEPARTMENT OF ENERGY AND CLIMATE CHANGE,THE COAL AUTHORITY,13/06/2016,Minewater Power Costs,Environment - Contract Management,British Gas Business,2179,2764.63
DEPARTMENT OF ENERGY AND CLIMATE CHANGE,THE COAL AUTHORITY,13/06/2016,Minewater Power Costs,Environment - Contract Management,British Gas Business,2179,681.03
DEPARTMENT OF ENERGY AND CLIMATE CHANGE,THE COAL AUTHORITY,13/06/2016,Minewater Power Costs,Environment - Contract Management,British Gas Business,2179,1269.83
DEPARTMENT OF ENERGY AND CLIMATE CHANGE,THE COAL AUTHORITY,13/06/2016,Minewater Power Costs,Environment - Contract Management,British Gas Business,2179,222.47
DEPARTMENT OF ENERGY AND CLIMATE CHANGE,THE COAL AUTHORITY,13/06/2016,Minewater Power Costs,Environment - Contract Management,British Gas Business,2179,485.3
DEPARTMENT OF ENERGY AND CLIMATE CHANGE,THE COAL AUTHORITY,13/06/2016,Minewater Power Costs,Environment - Contract Management,British Gas Business,2179,605.44
DEPARTMENT OF ENERGY AND CLIMATE CHANGE,THE COAL AUTHORITY,13/06/2016,Minewater Power Costs,Environment - Contract Management,British Gas Business,2179,710.06
DEPARTMENT OF ENERGY AND CLIMATE CHANGE,THE COAL AUTHORITY,13/06/2016,Minewater Power Costs,Environment - Contract Management,British Gas Business,2179,228.5
DEPARTMENT OF ENERGY AND CLIMATE CHANGE,THE COAL AUTHORITY,13/06/2016,Minewater Power Costs,Environment - Contract Management,British Gas Business,2179,362.24
DEPARTMENT OF ENERGY AND CLIMATE CHANGE,THE COAL AUTHORITY,13/06/2016,Subsidence Pumping Maintenance - Power,Environment - Contract Management,British Gas Business,2179,2015.76
DEPARTMENT OF ENERGY AND CLIMATE CHANGE,THE COAL AUTHORITY,13/06/2016,Subsidence Pumping Maintenance - Power,Environment - Contract Management,British Gas Business,2179,117.75
DEPARTMENT OF ENERGY AND CLIMATE CHANGE,THE COAL AUTHORITY,13/06/2016,Subsidence Pumping Maintenance - Power,Environment - Contract Management,British Gas Business,2179,8.46
DEPARTMENT OF ENERGY AND CLIMATE CHANGE,THE COAL AUTHORITY,13/06/2016,Subsidence Pumping Maintenance - Power,Environment - Contract Management,British Gas Business,2179,42.99
DEPARTMENT OF ENERGY AND CLIMATE CHANGE,THE COAL AUTHORITY,13/06/2016,Subsidence Pumping Maintenance - Power,Environment - Contract Management,British Gas Business,2179,135.24
DEPARTMENT OF ENERGY AND CLIMATE CHANGE,THE COAL AUTHORITY,13/06/2016,Subsidence Pumping Maintenance - Power,Environment - Contract Management,British Gas Business,2179,103.49
DEPARTMENT OF ENERGY AND CLIMATE CHANGE,THE COAL AUTHORITY,13/06/2016,Subsidence Pumping Maintenance - Power,Environment - Contract Management,British Gas Business,2179,331.7
DEPARTMENT OF ENERGY AND CLIMATE CHANGE,THE COAL AUTHORITY,13/06/2016,Subsidence Pumping Maintenance - Power,Environment - Contract Management,British Gas Business,2179,364.79
DEPARTMENT OF ENERGY AND CLIMATE CHANGE,THE COAL AUTHORITY,13/06/2016,Subsidence Pumping Maintenance - Power,Environment - Contract Management,British Gas Business,2179,53.04
DEPARTMENT OF ENERGY AND CLIMATE CHANGE,THE COAL AUTHORITY,13/06/2016,Subsidence Pumping Maintenance - Power,Environment - Contract Management,British Gas Business,2179,36.46
DEPARTMENT OF ENERGY AND CLIMATE CHANGE,THE COAL AUTHORITY,13/06/2016,Subsidence Pumping Maintenance - Power,Environment - Contract Management,British Gas Business,2179,434.12
DEPARTMENT OF ENERGY AND CLIMATE CHANGE,THE COAL AUTHORITY,13/06/2016,Subsidence Pumping Maintenance - Power,Environment - Contract Management,British Gas Business,2179,608.42
DEPARTMENT OF ENERGY AND CLIMATE CHANGE,THE COAL AUTHORITY,13/06/2016,Subsidence Pumping Maintenance - Power,Environment - Contract Management,British Gas Business,2179,150
DEPARTMENT OF ENERGY AND CLIMATE CHANGE,THE COAL AUTHORITY,13/06/2016,Subsidence Pumping Maintenance - Power,Environment - Contract Management,British Gas Business,2179,317.33
DEPARTMENT OF ENERGY AND CLIMATE CHANGE,THE COAL AUTHORITY,13/06/2016,Subsidence Pumping Maintenance - Power,Environment - Contract Management,British Gas Business,2179,626.07
DEPARTMENT OF ENERGY AND CLIMATE CHANGE,THE COAL AUTHORITY,13/06/2016,Subsidence Pumping Maintenance - Power,Environment - Contract Management,British Gas Business,2179,463.87
DEPARTMENT OF ENERGY AND CLIMATE CHANGE,THE COAL AUTHORITY,13/06/2016,Subsidence Pumping Maintenance - Power,Environment - Contract Management,British Gas Business,2179,319.7
DEPARTMENT OF ENERGY AND CLIMATE CHANGE,THE COAL AUTHORITY,13/06/2016,Subsidence Pumping Maintenance - Power,Environment - Contract Management,British Gas Business,2179,409.12
DEPARTMENT OF ENERGY AND CLIMATE CHANGE,THE COAL AUTHORITY,13/06/2016,Subsidence Pumping Maintenance - Power,Environment - Contract Management,British Gas Business,2179,366.24
DEPARTMENT OF ENERGY AND CLIMATE CHANGE,THE COAL AUTHORITY,13/06/2016,Subsidence Pumping Maintenance - Power,Environment - Contract Management,British Gas Business,2179,279.22
DEPARTMENT OF ENERGY AND CLIMATE CHANGE,THE COAL AUTHORITY,13/06/2016,Subsidence Pumping Maintenance - Power,Environment - Contract Management,British Gas Business,2179,223.08
DEPARTMENT OF ENERGY AND CLIMATE CHANGE,THE COAL AUTHORITY,13/06/2016,Subsidence Pumping Maintenance - Power,Environment - Contract Management,British Gas Business,2179,135.28
DEPARTMENT OF ENERGY AND CLIMATE CHANGE,THE COAL AUTHORITY,13/06/2016,Subsidence Pumping Maintenance - Power,Environment - Contract Management,British Gas Business,2179,162.71
DEPARTMENT OF ENERGY AND CLIMATE CHANGE,THE COAL AUTHORITY,13/06/2016,Subsidence Pumping Maintenance - Power,Environment - Contract Management,British Gas Business,2179,119.22
DEPARTMENT OF ENERGY AND CLIMATE CHANGE,THE COAL AUTHORITY,13/06/2016,Subsidence Pumping Maintenance - Power,Environment - Contract Management,British Gas Business,2179,59.67
DEPARTMENT OF ENERGY AND CLIMATE CHANGE,THE COAL AUTHORITY,13/06/2016,Minewater Power Costs,Environment - Contract Management,British Gas Business,2177,637
DEPARTMENT OF ENERGY AND CLIMATE CHANGE,THE COAL AUTHORITY,13/06/2016,Subsidence Pumping Maintenance - Power,Environment - Contract Management,British Gas Business,2177,30.06
DEPARTMENT OF ENERGY AND CLIMATE CHANGE,THE COAL AUTHORITY,13/06/2016,Subsidence Pumping Maintenance - Power,Environment - Contract Management,British Gas Business,2177,26.26
DEPARTMENT OF ENERGY AND CLIMATE CHANGE,THE COAL AUTHORITY,13/06/2016,Subsidence Pumping Maintenance - Power,Environment - Contract Management,British Gas Business,2177,86.37
DEPARTMENT OF ENERGY AND CLIMATE CHANGE,THE COAL AUTHORITY,13/06/2016,Subsidence Pumping Maintenance - Power,Environment - Contract Management,British Gas Business,2177,6.85
DEPARTMENT OF ENERGY AND CLIMATE CHANGE,THE COAL AUTHORITY,13/06/2016,Subsidence Pumping Maintenance - Power,Environment - Contract Management,British Gas Business,2177,38.5
DEPARTMENT OF ENERGY AND CLIMATE CHANGE,THE COAL AUTHORITY,13/06/2016,Subsidence Pumping Maintenance - Power,Environment - Contract Management,British Gas Business,2177,159.88
DEPARTMENT OF ENERGY AND CLIMATE CHANGE,THE COAL AUTHORITY,13/06/2016,Subsidence Pumping Maintenance - Power,Environment - Contract Management,British Gas Business,2177,44.85
DEPARTMENT OF ENERGY AND CLIMATE CHANGE,THE COAL AUTHORITY,02/06/2016,Minewater Power Costs,Environment - Contract Management,British Gas Business,1926,744.99
DEPARTMENT OF ENERGY AND CLIMATE CHANGE,THE COAL AUTHORITY,02/06/2016,Minewater Abortive Scheme - Fees,Environment - Contract Management,British Gas Business,1925,328.66
DEPARTMENT OF ENERGY AND CLIMATE CHANGE,THE COAL AUTHORITY,06/06/2016,Minewater Water Charges,Environment - Contract Management,Northumbrian Water Limited,1958,42.93
DEPARTMENT OF ENERGY AND CLIMATE CHANGE,THE COAL AUTHORITY,02/06/2016,Minewater Water Charges,Environment - Contract Management,Dwr Cymru Welsh Water,1952,55.71
DEPARTMENT OF ENERGY AND CLIMATE CHANGE,THE COAL AUTHORITY,06/06/2016,Minewater Power Costs,Environment - Contract Management,Edf Energy,1830,8075.97
DEPARTMENT OF ENERGY AND CLIMATE CHANGE,THE COAL AUTHORITY,31/05/2016,Temporary Contractors,Environment - Contract Management,Huxley Associates,1743,2240
DEPARTMENT OF ENERGY AND CLIMATE CHANGE,THE COAL AUTHORITY,06/06/2016,Temporary Contractors,Environment - Contract Management,Huxley Associates,1751,2128
DEPARTMENT OF ENERGY AND CLIMATE CHANGE,THE COAL AUTHORITY,13/06/2016,Temporary Contractors,Environment - Contract Management,Huxley Associates,2022,2240
DEPARTMENT OF ENERGY AND CLIMATE CHANGE,THE COAL AUTHORITY,20/06/2016,Temporary Contractors,Environment - Contract Management,Huxley Associates,2224,2240
DEPARTMENT OF ENERGY AND CLIMATE CHANGE,THE COAL AUTHORITY,28/06/2016,Temporary Contractors,Environment - Contract Management,Huxley Associates,2415,2240
DEPARTMENT OF ENERGY AND CLIMATE CHANGE,THE COAL AUTHORITY,06/06/2016,Minewater Power Costs,Environment - Contract Management,Edf Energy Customers Plc,1832,879.06
DEPARTMENT OF ENERGY AND CLIMATE CHANGE,THE COAL AUTHORITY,03/06/2016,Minewater Power Costs,Environment - Contract Management,Edf Energy,1829,10021.94
DEPARTMENT OF ENERGY AND CLIMATE CHANGE,THE COAL AUTHORITY,03/06/2016,Minewater Power Costs,Environment - Contract Management,Edf Energy,1829,4403.96
DEPARTMENT OF ENERGY AND CLIMATE CHANGE,THE COAL AUTHORITY,03/06/2016,Minewater Power Costs,Environment - Contract Management,Edf Energy,1829,21699.07
DEPARTMENT OF ENERGY AND CLIMATE CHANGE,THE COAL AUTHORITY,03/06/2016,Minewater Power Costs,Environment - Contract Management,Edf Energy,1829,15150.37
DEPARTMENT OF ENERGY AND CLIMATE CHANGE,THE COAL AUTHORITY,03/06/2016,Minewater Power Costs,Environment - Contract Management,Edf Energy,1829,1014.02
DEPARTMENT OF ENERGY AND CLIMATE CHANGE,THE COAL AUTHORITY,03/06/2016,Minewater Power Costs,Environment - Contract Management,Edf Energy,1829,2842.06
DEPARTMENT OF ENERGY AND CLIMATE CHANGE,THE COAL AUTHORITY,03/06/2016,Minewater Power Costs,Environment - Contract Management,Edf Energy,1829,7712.54
DEPARTMENT OF ENERGY AND CLIMATE CHANGE,THE COAL AUTHORITY,03/06/2016,Minewater Power Costs,Environment - Contract Management,Edf Energy,1829,8779.6
DEPARTMENT OF ENERGY AND CLIMATE CHANGE,THE COAL AUTHORITY,03/06/2016,Minewater Power Costs,Environment - Contract Management,Edf Energy,1829,4142.86
DEPARTMENT OF ENERGY AND CLIMATE CHANGE,THE COAL AUTHORITY,03/06/2016,Minewater Power Costs,Environment - Contract Management,Edf Energy,1829,14241.53
DEPARTMENT OF ENERGY AND CLIMATE CHANGE,THE COAL AUTHORITY,03/06/2016,Minewater Power Costs,Environment - Contract Management,Edf Energy,1829,6199.27
DEPARTMENT OF ENERGY AND CLIMATE CHANGE,THE COAL AUTHORITY,03/06/2016,Minewater Power Costs,Environment - Contract Management,Edf Energy,1829,4913.44
DEPARTMENT OF ENERGY AND CLIMATE CHANGE,THE COAL AUTHORITY,03/06/2016,Minewater Power Costs,Environment - Contract Management,Edf Energy,1829,7657.45
DEPARTMENT OF ENERGY AND CLIMATE CHANGE,THE COAL AUTHORITY,03/06/2016,Minewater Power Costs,Environment - Contract Management,Edf Energy,1829,9870.12
DEPARTMENT OF ENERGY AND CLIMATE CHANGE,THE COAL AUTHORITY,03/06/2016,Minewater Power Costs,Environment - Contract Management,Edf Energy,1829,14277.71
DEPARTMENT OF ENERGY AND CLIMATE CHANGE,THE COAL AUTHORITY,03/06/2016,Subsidence Pumping Maintenance - Power,Environment - Contract Management,Edf Energy,1829,1315.48
DEPARTMENT OF ENERGY AND CLIMATE CHANGE,THE COAL AUTHORITY,03/06/2016,Subsidence Pumping Maintenance - Power,Environment - Contract Management,Edf Energy,1829,1016.29
DEPARTMENT OF ENERGY AND CLIMATE CHANGE,THE COAL AUTHORITY,03/06/2016,Subsidence Pumping Maintenance - Power,Environment - Contract Management,Edf Energy,1829,403.15
DEPARTMENT OF ENERGY AND CLIMATE CHANGE,THE COAL AUTHORITY,03/06/2016,Subsidence Pumping Maintenance - Power,Environment - Contract Management,Edf Energy,1829,899.99
DEPARTMENT OF ENERGY AND CLIMATE CHANGE,THE COAL AUTHORITY,03/06/2016,Subsidence Pumping Maintenance - Power,Environment - Contract Management,Edf Energy,1829,326.58
DEPARTMENT OF ENERGY AND CLIMATE CHANGE,THE COAL AUTHORITY,06/06/2016,Minewater Power Costs,Environment - Contract Management,Edf Energy Customers Plc,1831,7130.11
DEPARTMENT OF ENERGY AND CLIMATE CHANGE,THE COAL AUTHORITY,31/05/2016,Minewater Landscaping Supervision,Environment - Contract Management,Jmc Engineering Uk Ltd,1720,436.6
DEPARTMENT OF ENERGY AND CLIMATE CHANGE,THE COAL AUTHORITY,31/05/2016,Fares - Rail,Environment - Contract Management,Redfern Travel Ltd,1843,167.5
DEPARTMENT OF ENERGY AND CLIMATE CHANGE,THE COAL AUTHORITY,31/05/2016,Hotel & Accommodation,Environment - Contract Management,Redfern Travel Ltd,1849,444.76
DEPARTMENT OF ENERGY AND CLIMATE CHANGE,THE COAL AUTHORITY,22/06/2016,CY - Minewater Scheme - Additions,Environment - Contract Management,1873 SEVERN TRENT SERVICES APRIL'16,2248,14480.86
DEPARTMENT OF ENERGY AND CLIMATE CHANGE,THE COAL AUTHORITY,22/06/2016,CY - Minewater Scheme - Additions,Environment - Contract Management,1873 SEVERN TRENT SERVICES APRIL'16,2248,13792.34
DEPARTMENT OF ENERGY AND CLIMATE CHANGE,THE COAL AUTHORITY,22/06/2016,CY - Minewater Scheme - Additions,Environment - Contract Management,1873 SEVERN TRENT SERVICES APRIL'16,2248,19977.07
DEPARTMENT OF ENERGY AND CLIMATE CHANGE,THE COAL AUTHORITY,22/06/2016,CY - Minewater Scheme - Additions,Environment - Contract Management,1873 SEVERN TRENT SERVICES APRIL'16,2248,10956.69
DEPARTMENT OF ENERGY AND CLIMATE CHANGE,THE COAL AUTHORITY,22/06/2016,CY - Minewater Scheme - Additions,Environment - Contract Management,1873 SEVERN TRENT SERVICES APRIL'16,2248,29777.62
DEPARTMENT OF ENERGY AND CLIMATE CHANGE,THE COAL AUTHORITY,22/06/2016,CY - Minewater Scheme - Additions,Environment - Contract Management,1873 SEVERN TRENT SERVICES APRIL'16,2248,12840.23
DEPARTMENT OF ENERGY AND CLIMATE CHANGE,THE COAL AUTHORITY,22/06/2016,CY - Minewater Scheme - Additions,Environment - Contract Management,1873 SEVERN TRENT SERVICES APRIL'16,2248,11145.16
DEPARTMENT OF ENERGY AND CLIMATE CHANGE,THE COAL AUTHORITY,22/06/2016,CY - Minewater Scheme - Additions,Environment - Contract Management,1873 SEVERN TRENT SERVICES APRIL'16,2248,3718.84
DEPARTMENT OF ENERGY AND CLIMATE CHANGE,THE COAL AUTHORITY,22/06/2016,CY - Minewater Scheme - Additions,Environment - Contract Management,1873 SEVERN TRENT SERVICES APRIL'16,2248,15923.95
DEPARTMENT OF ENERGY AND CLIMATE CHANGE,THE COAL AUTHORITY,22/06/2016,CY - Tangible IT - Additions,Environment - Contract Management,1873 SEVERN TRENT SERVICES APRIL'16,2248,42187.25
DEPARTMENT OF ENERGY AND CLIMATE CHANGE,THE COAL AUTHORITY,22/06/2016,Minewater Chemicals - Operational Sites,Environment - Contract Management,1873 SEVERN TRENT SERVICES APRIL'16,2248,601.81
DEPARTMENT OF ENERGY AND CLIMATE CHANGE,THE COAL AUTHORITY,22/06/2016,Minewater Chemicals - Operational Sites,Environment - Contract Management,1873 SEVERN TRENT SERVICES APRIL'16,2248,666.13
DEPARTMENT OF ENERGY AND CLIMATE CHANGE,THE COAL AUTHORITY,22/06/2016,Minewater Chemicals - Operational Sites,Environment - Contract Management,1873 SEVERN TRENT SERVICES APRIL'16,2248,3242.97
DEPARTMENT OF ENERGY AND CLIMATE CHANGE,THE COAL AUTHORITY,22/06/2016,Minewater Chemicals - Operational Sites,Environment - Contract Management,1873 SEVERN TRENT SERVICES APRIL'16,2248,744.23
DEPARTMENT OF ENERGY AND CLIMATE CHANGE,THE COAL AUTHORITY,22/06/2016,Minewater Chemicals - Operational Sites,Environment - Contract Management,1873 SEVERN TRENT SERVICES APRIL'16,2248,32001.8
DEPARTMENT OF ENERGY AND CLIMATE CHANGE,THE COAL AUTHORITY,22/06/2016,Minewater Chemicals - Operational Sites,Environment - Contract Management,1873 SEVERN TRENT SERVICES APRIL'16,2248,2708.16
DEPARTMENT OF ENERGY AND CLIMATE CHANGE,THE COAL AUTHORITY,22/06/2016,Minewater Chemicals - Operational Sites,Environment - Contract Management,1873 SEVERN TRENT SERVICES APRIL'16,2248,3729.75
DEPARTMENT OF ENERGY AND CLIMATE CHANGE,THE COAL AUTHORITY,22/06/2016,Minewater Contractor Add. Task Order - Ops Site,Environment - Contract Management,1873 SEVERN TRENT SERVICES APRIL'16,2248,1696.17
DEPARTMENT OF ENERGY AND CLIMATE CHANGE,THE COAL AUTHORITY,22/06/2016,Minewater Contractor Add. Task Order - Ops Site,Environment - Contract Management,1873 SEVERN TRENT SERVICES APRIL'16,2248,20.05
DEPARTMENT OF ENERGY AND CLIMATE CHANGE,THE COAL AUTHORITY,22/06/2016,Minewater Contractor Add. Task Order - Ops Site,Environment - Contract Management,1873 SEVERN TRENT SERVICES APRIL'16,2248,354.67
DEPARTMENT OF ENERGY AND CLIMATE CHANGE,THE COAL AUTHORITY,22/06/2016,Minewater Contractor Add. Task Order - Ops Site,Environment - Contract Management,1873 SEVERN TRENT SERVICES APRIL'16,2248,124.59
DEPARTMENT OF ENERGY AND CLIMATE CHANGE,THE COAL AUTHORITY,22/06/2016,Minewater Contractor Add. Task Order - Ops Site,Environment - Contract Management,1873 SEVERN TRENT SERVICES APRIL'16,2248,138.52
DEPARTMENT OF ENERGY AND CLIMATE CHANGE,THE COAL AUTHORITY,22/06/2016,Minewater Contractor Add. Task Order - Ops Site,Environment - Contract Management,1873 SEVERN TRENT SERVICES APRIL'16,2248,481.17
DEPARTMENT OF ENERGY AND CLIMATE CHANGE,THE COAL AUTHORITY,22/06/2016,Minewater Contractor Add. Task Order - Ops Site,Environment - Contract Management,1873 SEVERN TRENT SERVICES APRIL'16,2248,1845.49
DEPARTMENT OF ENERGY AND CLIMATE CHANGE,THE COAL AUTHORITY,22/06/2016,Minewater Contractor Add. Task Order - Ops Site,Environment - Contract Management,1873 SEVERN TRENT SERVICES APRIL'16,2248,-13.1
DEPARTMENT OF ENERGY AND CLIMATE CHANGE,THE COAL AUTHORITY,22/06/2016,Minewater Contractor Add. Task Order - Ops Site,Environment - Contract Management,1873 SEVERN TRENT SERVICES APRIL'16,2248,955.79
DEPARTMENT OF ENERGY AND CLIMATE CHANGE,THE COAL AUTHORITY,22/06/2016,Minewater Contractor Add. Task Order - Ops Site,Environment - Contract Management,1873 SEVERN TRENT SERVICES APRIL'16,2248,74.47
DEPARTMENT OF ENERGY AND CLIMATE CHANGE,THE COAL AUTHORITY,22/06/2016,Minewater Contractor Add. Task Order - Ops Site,Environment - Contract Management,1873 SEVERN TRENT SERVICES APRIL'16,2248,223.41
DEPARTMENT OF ENERGY AND CLIMATE CHANGE,THE COAL AUTHORITY,22/06/2016,Minewater Contractor Add. Task Order - Ops Site,Environment - Contract Management,1873 SEVERN TRENT SERVICES APRIL'16,2248,1328.81
DEPARTMENT OF ENERGY AND CLIMATE CHANGE,THE COAL AUTHORITY,22/06/2016,Minewater Contractor Add. Task Order - Ops Site,Environment - Contract Management,1873 SEVERN TRENT SERVICES APRIL'16,2248,8200.29
DEPARTMENT OF ENERGY AND CLIMATE CHANGE,THE COAL AUTHORITY,22/06/2016,Minewater Contractor Add. Task Order - Ops Site,Environment - Contract Management,1873 SEVERN TRENT SERVICES APRIL'16,2248,283.97
DEPARTMENT OF ENERGY AND CLIMATE CHANGE,THE COAL AUTHORITY,22/06/2016,Minewater Contractor Add. Task Order - Ops Site,Environment - Contract Management,1873 SEVERN TRENT SERVICES APRIL'16,2248,110.82
DEPARTMENT OF ENERGY AND CLIMATE CHANGE,THE COAL AUTHORITY,22/06/2016,Minewater Contractor Add. Task Order - Ops Site,Environment - Contract Management,1873 SEVERN TRENT SERVICES APRIL'16,2248,1263.35
DEPARTMENT OF ENERGY AND CLIMATE CHANGE,THE COAL AUTHORITY,22/06/2016,Minewater Contractor Add. Task Order - Ops Site,Environment - Contract Management,1873 SEVERN TRENT SERVICES APRIL'16,2248,120.59
DEPARTMENT OF ENERGY AND CLIMATE CHANGE,THE COAL AUTHORITY,22/06/2016,Minewater Contractor Add. Task Order - Ops Site,Environment - Contract Management,1873 SEVERN TRENT SERVICES APRIL'16,2248,283.97
DEPARTMENT OF ENERGY AND CLIMATE CHANGE,THE COAL AUTHORITY,22/06/2016,Minewater Contractor Add. Task Order - Ops Site,Environment - Contract Management,1873 SEVERN TRENT SERVICES APRIL'16,2248,477.9
DEPARTMENT OF ENERGY AND CLIMATE CHANGE,THE COAL AUTHORITY,22/06/2016,Minewater Contractor Add. Task Order - Ops Site,Environment - Contract Management,1873 SEVERN TRENT SERVICES APRIL'16,2248,826.92
DEPARTMENT OF ENERGY AND CLIMATE CHANGE,THE COAL AUTHORITY,22/06/2016,Minewater Contractor Add. Task Order - Ops Site,Environment - Contract Management,1873 SEVERN TRENT SERVICES APRIL'16,2248,40.1
DEPARTMENT OF ENERGY AND CLIMATE CHANGE,THE COAL AUTHORITY,22/06/2016,Minewater Contractor Add. Task Order - Ops Site,Environment - Contract Management,1873 SEVERN TRENT SERVICES APRIL'16,2248,725.11
DEPARTMENT OF ENERGY AND CLIMATE CHANGE,THE COAL AUTHORITY,22/06/2016,Minewater Contractor Add. Task Order - Ops Site,Environment - Contract Management,1873 SEVERN TRENT SERVICES APRIL'16,2248,2452.05
DEPARTMENT OF ENERGY AND CLIMATE CHANGE,THE COAL AUTHORITY,22/06/2016,Minewater Contractor Add. Task Order - Ops Site,Environment - Contract Management,1873 SEVERN TRENT SERVICES APRIL'16,2248,13437.45
DEPARTMENT OF ENERGY AND CLIMATE CHANGE,THE COAL AUTHORITY,22/06/2016,Minewater Contractor Add. Task Order - Ops Site,Environment - Contract Management,1873 SEVERN TRENT SERVICES APRIL'16,2248,34.63
DEPARTMENT OF ENERGY AND CLIMATE CHANGE,THE COAL AUTHORITY,22/06/2016,Minewater Contractor Add. Task Order - Ops Site,Environment - Contract Management,1873 SEVERN TRENT SERVICES APRIL'16,2248,1940.97
DEPARTMENT OF ENERGY AND CLIMATE CHANGE,THE COAL AUTHORITY,22/06/2016,Minewater Contractor Add. Task Order - Ops Site,Environment - Contract Management,1873 SEVERN TRENT SERVICES APRIL'16,2248,27.7
DEPARTMENT OF ENERGY AND CLIMATE CHANGE,THE COAL AUTHORITY,22/06/2016,Minewater Contractor Add. Task Order - Ops Site,Environment - Contract Management,1873 SEVERN TRENT SERVICES APRIL'16,2248,761.86
DEPARTMENT OF ENERGY AND CLIMATE CHANGE,THE COAL AUTHORITY,22/06/2016,Minewater Contractor Maint. Visits - Ops Site,Environment - Contract Management,1873 SEVERN TRENT SERVICES APRIL'16,2248,28052.61
DEPARTMENT OF ENERGY AND CLIMATE CHANGE,THE COAL AUTHORITY,22/06/2016,Minewater Contractor Maint. Visits - Ops Site,Environment - Contract Management,1873 SEVERN TRENT SERVICES APRIL'16,2248,41.57
DEPARTMENT OF ENERGY AND CLIMATE CHANGE,THE COAL AUTHORITY,22/06/2016,Minewater Contractor Maint. Visits - Ops Site,Environment - Contract Management,1873 SEVERN TRENT SERVICES APRIL'16,2248,193.8
DEPARTMENT OF ENERGY AND CLIMATE CHANGE,THE COAL AUTHORITY,22/06/2016,Minewater Contractor Maint. Visits - Ops Site,Environment - Contract Management,1873 SEVERN TRENT SERVICES APRIL'16,2248,80.19
DEPARTMENT OF ENERGY AND CLIMATE CHANGE,THE COAL AUTHORITY,22/06/2016,Minewater Contractor Maint. Visits - Ops Site,Environment - Contract Management,1873 SEVERN TRENT SERVICES APRIL'16,2248,325.52
DEPARTMENT OF ENERGY AND CLIMATE CHANGE,THE COAL AUTHORITY,22/06/2016,Minewater Contractor Maint. Visits - Ops Site,Environment - Contract Management,1873 SEVERN TRENT SERVICES APRIL'16,2248,294.05
DEPARTMENT OF ENERGY AND CLIMATE CHANGE,THE COAL AUTHORITY,22/06/2016,Minewater Contractor Maint. Visits - Ops Site,Environment - Contract Management,1873 SEVERN TRENT SERVICES APRIL'16,2248,290.89
DEPARTMENT OF ENERGY AND CLIMATE CHANGE,THE COAL AUTHORITY,22/06/2016,Minewater Contractor Maint. Visits - Ops Site,Environment - Contract Management,1873 SEVERN TRENT SERVICES APRIL'16,2248,63.49
DEPARTMENT OF ENERGY AND CLIMATE CHANGE,THE COAL AUTHORITY,22/06/2016,Minewater Contractor Maint. Visits - Ops Site,Environment - Contract Management,1873 SEVERN TRENT SERVICES APRIL'16,2248,431.05
DEPARTMENT OF ENERGY AND CLIMATE CHANGE,THE COAL AUTHORITY,22/06/2016,Minewater Contractor Maint. Visits - Ops Site,Environment - Contract Management,1873 SEVERN TRENT SERVICES APRIL'16,2248,320.78
DEPARTMENT OF ENERGY AND CLIMATE CHANGE,THE COAL AUTHORITY,22/06/2016,Minewater Contractor Maint. Visits - Ops Site,Environment - Contract Management,1873 SEVERN TRENT SERVICES APRIL'16,2248,6.93
DEPARTMENT OF ENERGY AND CLIMATE CHANGE,THE COAL AUTHORITY,22/06/2016,Minewater Contractor Maint. Visits - Ops Site,Environment - Contract Management,1873 SEVERN TRENT SERVICES APRIL'16,2248,2002.03
DEPARTMENT OF ENERGY AND CLIMATE CHANGE,THE COAL AUTHORITY,22/06/2016,Minewater Contractor Maint. Visits - Ops Site,Environment - Contract Management,1873 SEVERN TRENT SERVICES APRIL'16,2248,145.45
DEPARTMENT OF ENERGY AND CLIMATE CHANGE,THE COAL AUTHORITY,22/06/2016,Minewater Contractor Maint. Visits - Ops Site,Environment - Contract Management,1873 SEVERN TRENT SERVICES APRIL'16,2248,170.41
DEPARTMENT OF ENERGY AND CLIMATE CHANGE,THE COAL AUTHORITY,22/06/2016,Minewater Contractor Maint. Visits - Ops Site,Environment - Contract Management,1873 SEVERN TRENT SERVICES APRIL'16,2248,166.22
DEPARTMENT OF ENERGY AND CLIMATE CHANGE,THE COAL AUTHORITY,22/06/2016,Minewater Contractor Maint. Visits - Ops Site,Environment - Contract Management,1873 SEVERN TRENT SERVICES APRIL'16,2248,457.12
DEPARTMENT OF ENERGY AND CLIMATE CHANGE,THE COAL AUTHORITY,22/06/2016,Minewater Contractor Maint. Visits - Ops Site,Environment - Contract Management,1873 SEVERN TRENT SERVICES APRIL'16,2248,83.11
DEPARTMENT OF ENERGY AND CLIMATE CHANGE,THE COAL AUTHORITY,22/06/2016,Minewater Contractor Maint. Visits - Ops Site,Environment - Contract Management,1873 SEVERN TRENT SERVICES APRIL'16,2248,147.02
DEPARTMENT OF ENERGY AND CLIMATE CHANGE,THE COAL AUTHORITY,22/06/2016,Minewater Contractor Maint. Visits - Ops Site,Environment - Contract Management,1873 SEVERN TRENT SERVICES APRIL'16,2248,40.1
DEPARTMENT OF ENERGY AND CLIMATE CHANGE,THE COAL AUTHORITY,22/06/2016,Minewater Contractor Maint. Visits - Ops Site,Environment - Contract Management,1873 SEVERN TRENT SERVICES APRIL'16,2248,371.85
DEPARTMENT OF ENERGY AND CLIMATE CHANGE,THE COAL AUTHORITY,22/06/2016,Minewater Contractor Maint. Visits - Ops Site,Environment - Contract Management,1873 SEVERN TRENT SERVICES APRIL'16,2248,9229.09
DEPARTMENT OF ENERGY AND CLIMATE CHANGE,THE COAL AUTHORITY,22/06/2016,Minewater Contractor Maint. Visits - Ops Site,Environment - Contract Management,1873 SEVERN TRENT SERVICES APRIL'16,2248,74.47
DEPARTMENT OF ENERGY AND CLIMATE CHANGE,THE COAL AUTHORITY,22/06/2016,Minewater Contractor Maint. Visits - Ops Site,Environment - Contract Management,1873 SEVERN TRENT SERVICES APRIL'16,2248,263.19
DEPARTMENT OF ENERGY AND CLIMATE CHANGE,THE COAL AUTHORITY,22/06/2016,Minewater Contractor Maint. Visits - Ops Site,Environment - Contract Management,1873 SEVERN TRENT SERVICES APRIL'16,2248,207.78
DEPARTMENT OF ENERGY AND CLIMATE CHANGE,THE COAL AUTHORITY,22/06/2016,Minewater Contractor Maint. Visits - Ops Site,Environment - Contract Management,1873 SEVERN TRENT SERVICES APRIL'16,2248,78.56
DEPARTMENT OF ENERGY AND CLIMATE CHANGE,THE COAL AUTHORITY,22/06/2016,Minewater Contractor Maint. Visits - Ops Site,Environment - Contract Management,1873 SEVERN TRENT SERVICES APRIL'16,2248,318.6
DEPARTMENT OF ENERGY AND CLIMATE CHANGE,THE COAL AUTHORITY,22/06/2016,Minewater Contractor Maint. Visits - Ops Site,Environment - Contract Management,1873 SEVERN TRENT SERVICES APRIL'16,2248,80.19
DEPARTMENT OF ENERGY AND CLIMATE CHANGE,THE COAL AUTHORITY,22/06/2016,Minewater Contractor Maint. Visits - Ops Site,Environment - Contract Management,1873 SEVERN TRENT SERVICES APRIL'16,2248,100.24
DEPARTMENT OF ENERGY AND CLIMATE CHANGE,THE COAL AUTHORITY,22/06/2016,Minewater Contractor Maint. Visits - Ops Site,Environment - Contract Management,1873 SEVERN TRENT SERVICES APRIL'16,2248,73.51
DEPARTMENT OF ENERGY AND CLIMATE CHANGE,THE COAL AUTHORITY,22/06/2016,Minewater Contractor Maint. Visits - Ops Site,Environment - Contract Management,1873 SEVERN TRENT SERVICES APRIL'16,2248,200.85
DEPARTMENT OF ENERGY AND CLIMATE CHANGE,THE COAL AUTHORITY,22/06/2016,Minewater Contractor Maint. Visits - Ops Site,Environment - Contract Management,1873 SEVERN TRENT SERVICES APRIL'16,2248,228.56
DEPARTMENT OF ENERGY AND CLIMATE CHANGE,THE COAL AUTHORITY,22/06/2016,Minewater Contractor Maint. Visits - Ops Site,Environment - Contract Management,1873 SEVERN TRENT SERVICES APRIL'16,2248,50.12
DEPARTMENT OF ENERGY AND CLIMATE CHANGE,THE COAL AUTHORITY,22/06/2016,Minewater Contractor Maint. Visits - Ops Site,Environment - Contract Management,1873 SEVERN TRENT SERVICES APRIL'16,2248,83.11
DEPARTMENT OF ENERGY AND CLIMATE CHANGE,THE COAL AUTHORITY,22/06/2016,Minewater Contractor Maint. Visits - Ops Site,Environment - Contract Management,1873 SEVERN TRENT SERVICES APRIL'16,2248,166.22
DEPARTMENT OF ENERGY AND CLIMATE CHANGE,THE COAL AUTHORITY,22/06/2016,Minewater Contractor Maint. Visits - Ops Site,Environment - Contract Management,1873 SEVERN TRENT SERVICES APRIL'16,2248,638.22
DEPARTMENT OF ENERGY AND CLIMATE CHANGE,THE COAL AUTHORITY,22/06/2016,Minewater Contractor Maint. Visits - Ops Site,Environment - Contract Management,1873 SEVERN TRENT SERVICES APRIL'16,2248,190.46
DEPARTMENT OF ENERGY AND CLIMATE CHANGE,THE COAL AUTHORITY,22/06/2016,Minewater Contractor Maint. Visits - Ops Site,Environment - Contract Management,1873 SEVERN TRENT SERVICES APRIL'16,2248,130.32
DEPARTMENT OF ENERGY AND CLIMATE CHANGE,THE COAL AUTHORITY,22/06/2016,Minewater Contractor Maint. Visits - Ops Site,Environment - Contract Management,1873 SEVERN TRENT SERVICES APRIL'16,2248,574.38
DEPARTMENT OF ENERGY AND CLIMATE CHANGE,THE COAL AUTHORITY,22/06/2016,Minewater Contractor Maint. Visits - Ops Site,Environment - Contract Management,1873 SEVERN TRENT SERVICES APRIL'16,2248,60.15
DEPARTMENT OF ENERGY AND CLIMATE CHANGE,THE COAL AUTHORITY,22/06/2016,Minewater Contractor Maint. Visits - Ops Site,Environment - Contract Management,1873 SEVERN TRENT SERVICES APRIL'16,2248,50.12
DEPARTMENT OF ENERGY AND CLIMATE CHANGE,THE COAL AUTHORITY,22/06/2016,Minewater Contractor Maint. Visits - Ops Site,Environment - Contract Management,1873 SEVERN TRENT SERVICES APRIL'16,2248,93.56
DEPARTMENT OF ENERGY AND CLIMATE CHANGE,THE COAL AUTHORITY,22/06/2016,Minewater Contractor Maint. Visits - Ops Site,Environment - Contract Management,1873 SEVERN TRENT SERVICES APRIL'16,2248,588.71
DEPARTMENT OF ENERGY AND CLIMATE CHANGE,THE COAL AUTHORITY,22/06/2016,Minewater Contractor Maint. Visits - Ops Site,Environment - Contract Management,1873 SEVERN TRENT SERVICES APRIL'16,2248,157.05
DEPARTMENT OF ENERGY AND CLIMATE CHANGE,THE COAL AUTHORITY,22/06/2016,Minewater Contractor Maint. Visits - Ops Site,Environment - Contract Management,1873 SEVERN TRENT SERVICES APRIL'16,2248,147.02
DEPARTMENT OF ENERGY AND CLIMATE CHANGE,THE COAL AUTHORITY,22/06/2016,Minewater Contractor Maint. Visits - Ops Site,Environment - Contract Management,1873 SEVERN TRENT SERVICES APRIL'16,2248,152.37
DEPARTMENT OF ENERGY AND CLIMATE CHANGE,THE COAL AUTHORITY,22/06/2016,Minewater Contractor Maint. Visits - Ops Site,Environment - Contract Management,1873 SEVERN TRENT SERVICES APRIL'16,2248,374
DEPARTMENT OF ENERGY AND CLIMATE CHANGE,THE COAL AUTHORITY,22/06/2016,Minewater Contractor Maint. Visits - Ops Site,Environment - Contract Management,1873 SEVERN TRENT SERVICES APRIL'16,2248,103.58
DEPARTMENT OF ENERGY AND CLIMATE CHANGE,THE COAL AUTHORITY,22/06/2016,Minewater Contractor Maint. Visits - Ops Site,Environment - Contract Management,1873 SEVERN TRENT SERVICES APRIL'16,2248,5461.12
DEPARTMENT OF ENERGY AND CLIMATE CHANGE,THE COAL AUTHORITY,22/06/2016,Minewater Contractor Maint. Visits - Ops Site,Environment - Contract Management,1873 SEVERN TRENT SERVICES APRIL'16,2248,124.67
DEPARTMENT OF ENERGY AND CLIMATE CHANGE,THE COAL AUTHORITY,22/06/2016,Minewater Contractor Maint. Visits - Ops Site,Environment - Contract Management,1873 SEVERN TRENT SERVICES APRIL'16,2248,235.48
DEPARTMENT OF ENERGY AND CLIMATE CHANGE,THE COAL AUTHORITY,22/06/2016,Minewater Contractor Maint. Visits - Ops Site,Environment - Contract Management,1873 SEVERN TRENT SERVICES APRIL'16,2248,43.44
DEPARTMENT OF ENERGY AND CLIMATE CHANGE,THE COAL AUTHORITY,22/06/2016,Minewater Contractor Maint. Visits - Ops Site,Environment - Contract Management,1873 SEVERN TRENT SERVICES APRIL'16,2248,494.53
DEPARTMENT OF ENERGY AND CLIMATE CHANGE,THE COAL AUTHORITY,22/06/2016,Minewater Contractor Maint. Visits - Ops Site,Environment - Contract Management,1873 SEVERN TRENT SERVICES APRIL'16,2248,197.15
DEPARTMENT OF ENERGY AND CLIMATE CHANGE,THE COAL AUTHORITY,22/06/2016,Minewater Contractor Maint. Visits - Ops Site,Environment - Contract Management,1873 SEVERN TRENT SERVICES APRIL'16,2248,160.39
DEPARTMENT OF ENERGY AND CLIMATE CHANGE,THE COAL AUTHORITY,22/06/2016,Minewater Contractor Maint. Visits - Ops Site,Environment - Contract Management,1873 SEVERN TRENT SERVICES APRIL'16,2248,235.48
DEPARTMENT OF ENERGY AND CLIMATE CHANGE,THE COAL AUTHORITY,22/06/2016,Minewater Contractor Maint. Visits - Ops Site,Environment - Contract Management,1873 SEVERN TRENT SERVICES APRIL'16,2248,190.46
DEPARTMENT OF ENERGY AND CLIMATE CHANGE,THE COAL AUTHORITY,22/06/2016,Minewater Contractor Maint. Visits - Ops Site,Environment - Contract Management,1873 SEVERN TRENT SERVICES APRIL'16,2248,609.49
DEPARTMENT OF ENERGY AND CLIMATE CHANGE,THE COAL AUTHORITY,22/06/2016,Minewater Contractor Maint. Visits - Ops Site,Environment - Contract Management,1873 SEVERN TRENT SERVICES APRIL'16,2248,40.1
DEPARTMENT OF ENERGY AND CLIMATE CHANGE,THE COAL AUTHORITY,22/06/2016,Minewater Contractor Maint. Visits - Ops Site,Environment - Contract Management,1873 SEVERN TRENT SERVICES APRIL'16,2248,40.1
DEPARTMENT OF ENERGY AND CLIMATE CHANGE,THE COAL AUTHORITY,22/06/2016,Minewater Contractor Maint. Visits - Ops Site,Environment - Contract Management,1873 SEVERN TRENT SERVICES APRIL'16,2248,408.63
DEPARTMENT OF ENERGY AND CLIMATE CHANGE,THE COAL AUTHORITY,22/06/2016,Minewater Contractor Maint. Visits - Ops Site,Environment - Contract Management,1873 SEVERN TRENT SERVICES APRIL'16,2248,387.86
DEPARTMENT OF ENERGY AND CLIMATE CHANGE,THE COAL AUTHORITY,22/06/2016,Minewater Contractor Maint. Visits - Ops Site,Environment - Contract Management,1873 SEVERN TRENT SERVICES APRIL'16,2248,368.46
DEPARTMENT OF ENERGY AND CLIMATE CHANGE,THE COAL AUTHORITY,22/06/2016,Minewater Contractor Maint. Visits - Ops Site,Environment - Contract Management,1873 SEVERN TRENT SERVICES APRIL'16,2248,60.15
DEPARTMENT OF ENERGY AND CLIMATE CHANGE,THE COAL AUTHORITY,22/06/2016,Minewater Contractor Maint. Visits - Ops Site,Environment - Contract Management,1873 SEVERN TRENT SERVICES APRIL'16,2248,187
DEPARTMENT OF ENERGY AND CLIMATE CHANGE,THE COAL AUTHORITY,22/06/2016,Minewater Contractor Maint. Visits - Ops Site,Environment - Contract Management,1873 SEVERN TRENT SERVICES APRIL'16,2248,11774.23
DEPARTMENT OF ENERGY AND CLIMATE CHANGE,THE COAL AUTHORITY,22/06/2016,Minewater Contractor Maint. Visits - Ops Site,Environment - Contract Management,1873 SEVERN TRENT SERVICES APRIL'16,2248,172.82
DEPARTMENT OF ENERGY AND CLIMATE CHANGE,THE COAL AUTHORITY,22/06/2016,Minewater Contractor Maint. Visits - Ops Site,Environment - Contract Management,1873 SEVERN TRENT SERVICES APRIL'16,2248,3132.87
DEPARTMENT OF ENERGY AND CLIMATE CHANGE,THE COAL AUTHORITY,22/06/2016,Minewater Landscaping,Environment - Contract Management,1873 SEVERN TRENT SERVICES APRIL'16,2248,3309.98
DEPARTMENT OF ENERGY AND CLIMATE CHANGE,THE COAL AUTHORITY,22/06/2016,Minewater Landscaping,Environment - Contract Management,1873 SEVERN TRENT SERVICES APRIL'16,2248,430.69
DEPARTMENT OF ENERGY AND CLIMATE CHANGE,THE COAL AUTHORITY,22/06/2016,Minewater Liability & Monitoring Sites - Maint.,Environment - Contract Management,1873 SEVERN TRENT SERVICES APRIL'16,2248,7013.15
DEPARTMENT OF ENERGY AND CLIMATE CHANGE,THE COAL AUTHORITY,22/06/2016,Minewater Liability & Monitoring Sites - Maint.,Environment - Contract Management,1873 SEVERN TRENT SERVICES APRIL'16,2248,9769.13
DEPARTMENT OF ENERGY AND CLIMATE CHANGE,THE COAL AUTHORITY,22/06/2016,Minewater Monitoring & Flow Measurement,Environment - Contract Management,1873 SEVERN TRENT SERVICES APRIL'16,2248,7601.8
DEPARTMENT OF ENERGY AND CLIMATE CHANGE,THE COAL AUTHORITY,22/06/2016,Minewater Monitoring & Flow Measurement,Environment - Contract Management,1873 SEVERN TRENT SERVICES APRIL'16,2248,1757.21
DEPARTMENT OF ENERGY AND CLIMATE CHANGE,THE COAL AUTHORITY,22/06/2016,Minewater Monitoring & Flow Measurement,Environment - Contract Management,1873 SEVERN TRENT SERVICES APRIL'16,2248,556.82
DEPARTMENT OF ENERGY AND CLIMATE CHANGE,THE COAL AUTHORITY,22/06/2016,Minewater Monitoring & Flow Measurement,Environment - Contract Management,1873 SEVERN TRENT SERVICES APRIL'16,2248,526.38
DEPARTMENT OF ENERGY AND CLIMATE CHANGE,THE COAL AUTHORITY,22/06/2016,Minewater Monitoring & Flow Measurement,Environment - Contract Management,1873 SEVERN TRENT SERVICES APRIL'16,2248,8272.5
DEPARTMENT OF ENERGY AND CLIMATE CHANGE,THE COAL AUTHORITY,22/06/2016,Minewater Remediation,Environment - Contract Management,1873 SEVERN TRENT SERVICES APRIL'16,2248,746.28
DEPARTMENT OF ENERGY AND CLIMATE CHANGE,THE COAL AUTHORITY,22/06/2016,Minewater Remediation,Environment - Contract Management,1873 SEVERN TRENT SERVICES APRIL'16,2248,69.72
DEPARTMENT OF ENERGY AND CLIMATE CHANGE,THE COAL AUTHORITY,22/06/2016,Minewater Remediation,Environment - Contract Management,1873 SEVERN TRENT SERVICES APRIL'16,2248,29.88
DEPARTMENT OF ENERGY AND CLIMATE CHANGE,THE COAL AUTHORITY,22/06/2016,Minewater Remediation,Environment - Contract Management,1873 SEVERN TRENT SERVICES APRIL'16,2248,12878.13
DEPARTMENT OF ENERGY AND CLIMATE CHANGE,THE COAL AUTHORITY,22/06/2016,Minewater Remediation,Environment - Contract Management,1873 SEVERN TRENT SERVICES APRIL'16,2248,227.81
DEPARTMENT OF ENERGY AND CLIMATE CHANGE,THE COAL AUTHORITY,22/06/2016,Minewater Remediation,Environment - Contract Management,1873 SEVERN TRENT SERVICES APRIL'16,2248,141.4
DEPARTMENT OF ENERGY AND CLIMATE CHANGE,THE COAL AUTHORITY,22/06/2016,Minewater Remediation,Environment - Contract Management,1873 SEVERN TRENT SERVICES APRIL'16,2248,94.27
DEPARTMENT OF ENERGY AND CLIMATE CHANGE,THE COAL AUTHORITY,22/06/2016,Minewater Remediation,Environment - Contract Management,1873 SEVERN TRENT SERVICES APRIL'16,2248,871.97
DEPARTMENT OF ENERGY AND CLIMATE CHANGE,THE COAL AUTHORITY,22/06/2016,Minewater Remediation,Environment - Contract Management,1873 SEVERN TRENT SERVICES APRIL'16,2248,27108.31
DEPARTMENT OF ENERGY AND CLIMATE CHANGE,THE COAL AUTHORITY,22/06/2016,Minewater Sampling - Operational Sites,Environment - Contract Management,1873 SEVERN TRENT SERVICES APRIL'16,2248,470.29
DEPARTMENT OF ENERGY AND CLIMATE CHANGE,THE COAL AUTHORITY,22/06/2016,Minewater Sampling - Operational Sites,Environment - Contract Management,1873 SEVERN TRENT SERVICES APRIL'16,2248,470.49
DEPARTMENT OF ENERGY AND CLIMATE CHANGE,THE COAL AUTHORITY,22/06/2016,Minewater Sampling - Operational Sites,Environment - Contract Management,1873 SEVERN TRENT SERVICES APRIL'16,2248,77.23
DEPARTMENT OF ENERGY AND CLIMATE CHANGE,THE COAL AUTHORITY,22/06/2016,Minewater Sampling - Operational Sites,Environment - Contract Management,1873 SEVERN TRENT SERVICES APRIL'16,2248,113.49
DEPARTMENT OF ENERGY AND CLIMATE CHANGE,THE COAL AUTHORITY,22/06/2016,Minewater Sampling - Operational Sites,Environment - Contract Management,1873 SEVERN TRENT SERVICES APRIL'16,2248,183.19
DEPARTMENT OF ENERGY AND CLIMATE CHANGE,THE COAL AUTHORITY,22/06/2016,Minewater Sampling - Operational Sites,Environment - Contract Management,1873 SEVERN TRENT SERVICES APRIL'16,2248,189.5
DEPARTMENT OF ENERGY AND CLIMATE CHANGE,THE COAL AUTHORITY,22/06/2016,Minewater Sampling - Operational Sites,Environment - Contract Management,1873 SEVERN TRENT SERVICES APRIL'16,2248,31.58
DEPARTMENT OF ENERGY AND CLIMATE CHANGE,THE COAL AUTHORITY,22/06/2016,Minewater Sampling - Operational Sites,Environment - Contract Management,1873 SEVERN TRENT SERVICES APRIL'16,2248,158.84
DEPARTMENT OF ENERGY AND CLIMATE CHANGE,THE COAL AUTHORITY,22/06/2016,Minewater Sampling - Operational Sites,Environment - Contract Management,1873 SEVERN TRENT SERVICES APRIL'16,2248,82.28
DEPARTMENT OF ENERGY AND CLIMATE CHANGE,THE COAL AUTHORITY,22/06/2016,Minewater Sampling - Operational Sites,Environment - Contract Management,1873 SEVERN TRENT SERVICES APRIL'16,2248,291.83
DEPARTMENT OF ENERGY AND CLIMATE CHANGE,THE COAL AUTHORITY,22/06/2016,Minewater Sampling - Operational Sites,Environment - Contract Management,1873 SEVERN TRENT SERVICES APRIL'16,2248,278.42
DEPARTMENT OF ENERGY AND CLIMATE CHANGE,THE COAL AUTHORITY,22/06/2016,Minewater Sampling - Operational Sites,Environment - Contract Management,1873 SEVERN TRENT SERVICES APRIL'16,2248,72.54
DEPARTMENT OF ENERGY AND CLIMATE CHANGE,THE COAL AUTHORITY,22/06/2016,Minewater Sampling - Operational Sites,Environment - Contract Management,1873 SEVERN TRENT SERVICES APRIL'16,2248,108.81
DEPARTMENT OF ENERGY AND CLIMATE CHANGE,THE COAL AUTHORITY,22/06/2016,Minewater Sampling - Operational Sites,Environment - Contract Management,1873 SEVERN TRENT SERVICES APRIL'16,2248,320.48
DEPARTMENT OF ENERGY AND CLIMATE CHANGE,THE COAL AUTHORITY,22/06/2016,Minewater Sampling - Operational Sites,Environment - Contract Management,1873 SEVERN TRENT SERVICES APRIL'16,2248,88.43
DEPARTMENT OF ENERGY AND CLIMATE CHANGE,THE COAL AUTHORITY,22/06/2016,Minewater Sampling - Operational Sites,Environment - Contract Management,1873 SEVERN TRENT SERVICES APRIL'16,2248,137.34
DEPARTMENT OF ENERGY AND CLIMATE CHANGE,THE COAL AUTHORITY,22/06/2016,Minewater Sampling - Operational Sites,Environment - Contract Management,1873 SEVERN TRENT SERVICES APRIL'16,2248,84.81
DEPARTMENT OF ENERGY AND CLIMATE CHANGE,THE COAL AUTHORITY,22/06/2016,Minewater Sampling - Operational Sites,Environment - Contract Management,1873 SEVERN TRENT SERVICES APRIL'16,2248,86.6
DEPARTMENT OF ENERGY AND CLIMATE CHANGE,THE COAL AUTHORITY,22/06/2016,Minewater Sampling - Operational Sites,Environment - Contract Management,1873 SEVERN TRENT SERVICES APRIL'16,2248,31.58
DEPARTMENT OF ENERGY AND CLIMATE CHANGE,THE COAL AUTHORITY,22/06/2016,Minewater Sampling - Operational Sites,Environment - Contract Management,1873 SEVERN TRENT SERVICES APRIL'16,2248,31.58
DEPARTMENT OF ENERGY AND CLIMATE CHANGE,THE COAL AUTHORITY,22/06/2016,Minewater Sampling - Operational Sites,Environment - Contract Management,1873 SEVERN TRENT SERVICES APRIL'16,2248,132.65
DEPARTMENT OF ENERGY AND CLIMATE CHANGE,THE COAL AUTHORITY,22/06/2016,Minewater Sampling - Operational Sites,Environment - Contract Management,1873 SEVERN TRENT SERVICES APRIL'16,2248,63.17
DEPARTMENT OF ENERGY AND CLIMATE CHANGE,THE COAL AUTHORITY,22/06/2016,Minewater Sampling - Operational Sites,Environment - Contract Management,1873 SEVERN TRENT SERVICES APRIL'16,2248,91.28
DEPARTMENT OF ENERGY AND CLIMATE CHANGE,THE COAL AUTHORITY,22/06/2016,Minewater Sampling - Operational Sites,Environment - Contract Management,1873 SEVERN TRENT SERVICES APRIL'16,2248,31.58
DEPARTMENT OF ENERGY AND CLIMATE CHANGE,THE COAL AUTHORITY,22/06/2016,Minewater Sampling - Operational Sites,Environment - Contract Management,1873 SEVERN TRENT SERVICES APRIL'16,2248,202.37
DEPARTMENT OF ENERGY AND CLIMATE CHANGE,THE COAL AUTHORITY,22/06/2016,Minewater Sampling - Operational Sites,Environment - Contract Management,1873 SEVERN TRENT SERVICES APRIL'16,2248,81.91
DEPARTMENT OF ENERGY AND CLIMATE CHANGE,THE COAL AUTHORITY,22/06/2016,Minewater Sampling - Operational Sites,Environment - Contract Management,1873 SEVERN TRENT SERVICES APRIL'16,2248,72.54
DEPARTMENT OF ENERGY AND CLIMATE CHANGE,THE COAL AUTHORITY,22/06/2016,Minewater Sampling - Operational Sites,Environment - Contract Management,1873 SEVERN TRENT SERVICES APRIL'16,2248,94.75
DEPARTMENT OF ENERGY AND CLIMATE CHANGE,THE COAL AUTHORITY,22/06/2016,Minewater Sampling - Operational Sites,Environment - Contract Management,1873 SEVERN TRENT SERVICES APRIL'16,2248,335.09
DEPARTMENT OF ENERGY AND CLIMATE CHANGE,THE COAL AUTHORITY,22/06/2016,Minewater Sampling - Operational Sites,Environment - Contract Management,1873 SEVERN TRENT SERVICES APRIL'16,2248,140.76
DEPARTMENT OF ENERGY AND CLIMATE CHANGE,THE COAL AUTHORITY,22/06/2016,Minewater Sampling - Operational Sites,Environment - Contract Management,1873 SEVERN TRENT SERVICES APRIL'16,2248,72.54
DEPARTMENT OF ENERGY AND CLIMATE CHANGE,THE COAL AUTHORITY,22/06/2016,Minewater Sampling - Operational Sites,Environment - Contract Management,1873 SEVERN TRENT SERVICES APRIL'16,2248,72.54
DEPARTMENT OF ENERGY AND CLIMATE CHANGE,THE COAL AUTHORITY,22/06/2016,Minewater Sampling - Operational Sites,Environment - Contract Management,1873 SEVERN TRENT SERVICES APRIL'16,2248,67.85
DEPARTMENT OF ENERGY AND CLIMATE CHANGE,THE COAL AUTHORITY,22/06/2016,Minewater Sampling - Operational Sites,Environment - Contract Management,1873 SEVERN TRENT SERVICES APRIL'16,2248,104.12
DEPARTMENT OF ENERGY AND CLIMATE CHANGE,THE COAL AUTHORITY,22/06/2016,Minewater Sampling - Operational Sites,Environment - Contract Management,1873 SEVERN TRENT SERVICES APRIL'16,2248,163.27
DEPARTMENT OF ENERGY AND CLIMATE CHANGE,THE COAL AUTHORITY,22/06/2016,Minewater Sampling - Operational Sites,Environment - Contract Management,1873 SEVERN TRENT SERVICES APRIL'16,2248,108.81
DEPARTMENT OF ENERGY AND CLIMATE CHANGE,THE COAL AUTHORITY,22/06/2016,Minewater Sampling - Operational Sites,Environment - Contract Management,1873 SEVERN TRENT SERVICES APRIL'16,2248,107.18
DEPARTMENT OF ENERGY AND CLIMATE CHANGE,THE COAL AUTHORITY,22/06/2016,Minewater Sampling - Operational Sites,Environment - Contract Management,1873 SEVERN TRENT SERVICES APRIL'16,2248,4.69
DEPARTMENT OF ENERGY AND CLIMATE CHANGE,THE COAL AUTHORITY,22/06/2016,Minewater Sampling - Operational Sites,Environment - Contract Management,1873 SEVERN TRENT SERVICES APRIL'16,2248,162.97
DEPARTMENT OF ENERGY AND CLIMATE CHANGE,THE COAL AUTHORITY,22/06/2016,Minewater Sampling - Operational Sites,Environment - Contract Management,1873 SEVERN TRENT SERVICES APRIL'16,2248,161.2
DEPARTMENT OF ENERGY AND CLIMATE CHANGE,THE COAL AUTHORITY,22/06/2016,Minewater Sludge Disposal,Environment - Contract Management,1873 SEVERN TRENT SERVICES APRIL'16,2248,16278.26
DEPARTMENT OF ENERGY AND CLIMATE CHANGE,THE COAL AUTHORITY,22/06/2016,Minewater Sludge Disposal,Environment - Contract Management,1873 SEVERN TRENT SERVICES APRIL'16,2248,178.82
DEPARTMENT OF ENERGY AND CLIMATE CHANGE,THE COAL AUTHORITY,22/06/2016,Minewater Sludge Disposal,Environment - Contract Management,1873 SEVERN TRENT SERVICES APRIL'16,2248,46694.99
DEPARTMENT OF ENERGY AND CLIMATE CHANGE,THE COAL AUTHORITY,22/06/2016,Minewater Sludge Disposal,Environment - Contract Management,1873 SEVERN TRENT SERVICES APRIL'16,2248,5505.91
DEPARTMENT OF ENERGY AND CLIMATE CHANGE,THE COAL AUTHORITY,22/06/2016,Minewater Sludge Disposal,Environment - Contract Management,1873 SEVERN TRENT SERVICES APRIL'16,2248,27.98
DEPARTMENT OF ENERGY AND CLIMATE CHANGE,THE COAL AUTHORITY,22/06/2016,Minewater Sludge Disposal,Environment - Contract Management,1873 SEVERN TRENT SERVICES APRIL'16,2248,13510
DEPARTMENT OF ENERGY AND CLIMATE CHANGE,THE COAL AUTHORITY,22/06/2016,Minewater Sludge Disposal,Environment - Contract Management,1873 SEVERN TRENT SERVICES APRIL'16,2248,276.4
DEPARTMENT OF ENERGY AND CLIMATE CHANGE,THE COAL AUTHORITY,22/06/2016,Minewater Sludge Disposal,Environment - Contract Management,1873 SEVERN TRENT SERVICES APRIL'16,2248,18.71
DEPARTMENT OF ENERGY AND CLIMATE CHANGE,THE COAL AUTHORITY,22/06/2016,Subsidence Pumping Maintenance - Other,Environment - Contract Management,1873 SEVERN TRENT SERVICES APRIL'16,2248,62.33
DEPARTMENT OF ENERGY AND CLIMATE CHANGE,THE COAL AUTHORITY,22/06/2016,Subsidence Pumping Maintenance - Other,Environment - Contract Management,1873 SEVERN TRENT SERVICES APRIL'16,2248,141.4
DEPARTMENT OF ENERGY AND CLIMATE CHANGE,THE COAL AUTHORITY,22/06/2016,Subsidence Pumping Maintenance - Other,Environment - Contract Management,1873 SEVERN TRENT SERVICES APRIL'16,2248,48.48
DEPARTMENT OF ENERGY AND CLIMATE CHANGE,THE COAL AUTHORITY,22/06/2016,Subsidence Pumping Maintenance - Other,Environment - Contract Management,1873 SEVERN TRENT SERVICES APRIL'16,2248,48.48
DEPARTMENT OF ENERGY AND CLIMATE CHANGE,THE COAL AUTHORITY,14/06/2016,Minewater Rent,Environment - Contract Management,Coke Turner & Co,2073,86.66
DEPARTMENT OF ENERGY AND CLIMATE CHANGE,THE COAL AUTHORITY,31/03/2016,Subsidence Pumping Maintenance - Other,Environment - Contract Management,Black Drain Drainage Board,1996,928.75
DEPARTMENT OF ENERGY AND CLIMATE CHANGE,THE COAL AUTHORITY,31/03/2016,Subsidence Pumping Maintenance - Power,Environment - Contract Management,Black Drain Drainage Board,1995,993.34
DEPARTMENT OF ENERGY AND CLIMATE CHANGE,THE COAL AUTHORITY,16/06/2016,Minewater Rent,Environment - Contract Management,Mr T R Milburn,2091,282
DEPARTMENT OF ENERGY AND CLIMATE CHANGE,THE COAL AUTHORITY,13/06/2016,Minewater Carbon Reduction Commitments,Environment - Contract Management,Dept Of Energy & Climate Chang,1994,233450
DEPARTMENT OF ENERGY AND CLIMATE CHANGE,THE COAL AUTHORITY,31/03/2016,Subsidence Pumping Maintenance - Other,Environment - Contract Management,Doncaster East I D B,1998,1978.75
DEPARTMENT OF ENERGY AND CLIMATE CHANGE,THE COAL AUTHORITY,31/03/2016,Subsidence Pumping Maintenance - Other,Environment - Contract Management,Doncaster East I D B,1998,405.53
DEPARTMENT OF ENERGY AND CLIMATE CHANGE,THE COAL AUTHORITY,31/03/2016,Subsidence Pumping Maintenance - Other,Environment - Contract Management,Doncaster East I D B,1998,642.53
DEPARTMENT OF ENERGY AND CLIMATE CHANGE,THE COAL AUTHORITY,31/03/2016,Subsidence Pumping Maintenance - Other,Environment - Contract Management,Doncaster East I D B,1999,2981.61
DEPARTMENT OF ENERGY AND CLIMATE CHANGE,THE COAL AUTHORITY,31/03/2016,Subsidence Pumping Maintenance - Power,Environment - Contract Management,Doncaster East I D B,2000,83.98
DEPARTMENT OF ENERGY AND CLIMATE CHANGE,THE COAL AUTHORITY,31/03/2016,Subsidence Pumping Maintenance - Power,Environment - Contract Management,Doncaster East I D B,2000,1012.13
DEPARTMENT OF ENERGY AND CLIMATE CHANGE,THE COAL AUTHORITY,31/03/2016,Subsidence Pumping Maintenance - Power,Environment - Contract Management,Doncaster East I D B,2000,65.42
DEPARTMENT OF ENERGY AND CLIMATE CHANGE,THE COAL AUTHORITY,31/03/2016,Subsidence Pumping Maintenance - Power,Environment - Contract Management,Doncaster East I D B,2000,100.53
DEPARTMENT OF ENERGY AND CLIMATE CHANGE,THE COAL AUTHORITY,31/03/2016,Subsidence Pumping Maintenance - Power,Environment - Contract Management,Doncaster East I D B,2000,372.89
DEPARTMENT OF ENERGY AND CLIMATE CHANGE,THE COAL AUTHORITY,31/03/2016,Subsidence Pumping Maintenance - Other,Environment - Contract Management,Doncaster East I D B,2001,11.55
DEPARTMENT OF ENERGY AND CLIMATE CHANGE,THE COAL AUTHORITY,31/03/2016,Subsidence Pumping Maintenance - Other,Environment - Contract Management,Doncaster East I D B,2001,10.14
DEPARTMENT OF ENERGY AND CLIMATE CHANGE,THE COAL AUTHORITY,31/03/2016,Subsidence Pumping Maintenance - Other,Environment - Contract Management,Doncaster East I D B,2001,16.7
DEPARTMENT OF ENERGY AND CLIMATE CHANGE,THE COAL AUTHORITY,31/03/2016,Subsidence Pumping Maintenance - Other,Environment - Contract Management,Doncaster East I D B,2001,16.7
DEPARTMENT OF ENERGY AND CLIMATE CHANGE,THE COAL AUTHORITY,31/03/2016,Subsidence Pumping Maintenance - Other,Environment - Contract Management,Doncaster East I D B,2001,119.11
DEPARTMENT OF ENERGY AND CLIMATE CHANGE,THE COAL AUTHORITY,31/03/2016,Subsidence Pumping Maintenance - Other,Environment - Contract Management,Doncaster East I D B,2001,86.57
DEPARTMENT OF ENERGY AND CLIMATE CHANGE,THE COAL AUTHORITY,31/03/2016,Subsidence Pumping Maintenance - Other,Environment - Contract Management,Doncaster East I D B,2001,7.3
DEPARTMENT OF ENERGY AND CLIMATE CHANGE,THE COAL AUTHORITY,31/03/2016,Subsidence Pumping Maintenance - Other,Environment - Contract Management,Doncaster East I D B,2001,16.7
DEPARTMENT OF ENERGY AND CLIMATE CHANGE,THE COAL AUTHORITY,31/03/2016,Subsidence Pumping Maintenance - Other,Environment - Contract Management,Doncaster East I D B,2001,148.9
DEPARTMENT OF ENERGY AND CLIMATE CHANGE,THE COAL AUTHORITY,31/03/2016,Subsidence Pumping Maintenance - Other,Environment - Contract Management,Doncaster East I D B,2001,5.8
DEPARTMENT OF ENERGY AND CLIMATE CHANGE,THE COAL AUTHORITY,31/03/2016,Subsidence Pumping Maintenance - Other,Environment - Contract Management,Doncaster East I D B,2001,16.3
DEPARTMENT OF ENERGY AND CLIMATE CHANGE,THE COAL AUTHORITY,31/03/2016,Subsidence Pumping Maintenance - Other,Environment - Contract Management,Doncaster East I D B,2001,1342.9
DEPARTMENT OF ENERGY AND CLIMATE CHANGE,THE COAL AUTHORITY,31/03/2016,CY - Subsidence Pumping - Additions,Environment - Contract Management,Doncaster East I D B,2003,255
DEPARTMENT OF ENERGY AND CLIMATE CHANGE,THE COAL AUTHORITY,31/03/2016,Subsidence Pumping Maintenance - Other,Environment - Contract Management,Doncaster East I D B,2002,-140.4
DEPARTMENT OF ENERGY AND CLIMATE CHANGE,THE COAL AUTHORITY,16/06/2016,Minewater Rent,Environment - Contract Management,Mr B R Brocksopp,2090,100
DEPARTMENT OF ENERGY AND CLIMATE CHANGE,THE COAL AUTHORITY,16/06/2016,Minewater Rent,Environment - Contract Management,M J Bishop,2094,2269.4
DEPARTMENT OF ENERGY AND CLIMATE CHANGE,THE COAL AUTHORITY,03/06/2016,Minewater Feasibility / Scoping,Environment - Contract Management,Mott Macdonald Ltd,2145,5188.8
DEPARTMENT OF ENERGY AND CLIMATE CHANGE,THE COAL AUTHORITY,20/06/2016,Minewater Remediation,Environment - Contract Management,Balfour Beatty Civil Eng Ltd,2182,1110.59
DEPARTMENT OF ENERGY AND CLIMATE CHANGE,THE COAL AUTHORITY,03/06/2016,Minewater Contractor Add. Task Order - Ops Site,Environment - Contract Management,Severn Trent Serv Ops Uk Ltd,1776,-180020.26
DEPARTMENT OF ENERGY AND CLIMATE CHANGE,THE COAL AUTHORITY,03/06/2016,Minewater Contractor Add. Task Order - Ops Site,Environment - Contract Management,Severn Trent Serv Ops Uk Ltd,1777,498395.03
DEPARTMENT OF ENERGY AND CLIMATE CHANGE,THE COAL AUTHORITY,07/06/2016,Minewater Contractor Add. Task Order - Ops Site,Environment - Contract Management,Severn Trent Serv Ops Uk Ltd,1873,544755.03
DEPARTMENT OF ENERGY AND CLIMATE CHANGE,THE COAL AUTHORITY,18/06/2016,Minewater Contractor Add. Task Order - Ops Site,Environment - Contract Management,Severn Trent Serv Ops Uk Ltd,2360,347663.99
DEPARTMENT OF ENERGY AND CLIMATE CHANGE,THE COAL AUTHORITY,16/06/2016,Minewater Rent,Environment - Contract Management,Peel Investments (North) Ltd,2391,3100
DEPARTMENT OF ENERGY AND CLIMATE CHANGE,THE COAL AUTHORITY,05/06/2016,CY - Subsidence Pumping - Additions,Environment - Contract Management,J N Bentley Limited,2407,11554.68
DEPARTMENT OF ENERGY AND CLIMATE CHANGE,THE COAL AUTHORITY,16/06/2016,Minewater Rent,Environment - Contract Management,Brian Drewery,2095,100
DEPARTMENT OF ENERGY AND CLIMATE CHANGE,THE COAL AUTHORITY,17/06/2016,Minewater Contractor Add. Task Order - Ops Site,Environment - Contract Management,J Darwin & Sons,2141,440
DEPARTMENT OF ENERGY AND CLIMATE CHANGE,THE COAL AUTHORITY,05/06/2016,Subsidence Pumping Maintenance - Power,Environment - Contract Management,Methley Estates (Holdings) Ltd,2088,291.35
DEPARTMENT OF ENERGY AND CLIMATE CHANGE,THE COAL AUTHORITY,06/06/2016,Minewater Rent,Environment - Contract Management,Barnsley Metropolitan Bor. Cou,1657,3900
DEPARTMENT OF ENERGY AND CLIMATE CHANGE,THE COAL AUTHORITY,16/06/2016,Minewater Rent,Environment - Contract Management,Mr T G Banks,2096,8000
DEPARTMENT OF ENERGY AND CLIMATE CHANGE,THE COAL AUTHORITY,16/06/2016,Minewater Rent,Environment - Contract Management,Mr And Mrs Young,2093,450
DEPARTMENT OF ENERGY AND CLIMATE CHANGE,THE COAL AUTHORITY,31/05/2016,Minewater Land Agents (Acquisitions),Environment - DEFRA - EA Programme,Mark N Carey Limited,1726,247
DEPARTMENT OF ENERGY AND CLIMATE CHANGE,THE COAL AUTHORITY,31/05/2016,Minewater Land Agents (Acquisitions),Environment - DEFRA - EA Programme,Mark N Carey Limited,1725,45.5
DEPARTMENT OF ENERGY AND CLIMATE CHANGE,THE COAL AUTHORITY,31/05/2016,Minewater Land Agents (Acquisitions),Environment - DEFRA - EA Programme,Mark N Carey Limited,1727,91
DEPARTMENT OF ENERGY AND CLIMATE CHANGE,THE COAL AUTHORITY,31/05/2016,Minewater Land Agents (Acquisitions),Environment - DEFRA - EA Programme,Mark N Carey Limited,1730,422.5
DEPARTMENT OF ENERGY AND CLIMATE CHANGE,THE COAL AUTHORITY,31/05/2016,Minewater Land Agents (Acquisitions),Environment - DEFRA - EA Programme,Mark N Carey Limited,1731,292.5
DEPARTMENT OF ENERGY AND CLIMATE CHANGE,THE COAL AUTHORITY,31/05/2016,Minewater Land Agents (Acquisitions),Environment - DEFRA - EA Programme,Mark N Carey Limited,1734,84.5
DEPARTMENT OF ENERGY AND CLIMATE CHANGE,THE COAL AUTHORITY,27/05/2016,Minewater Feasibility / Scoping,Environment - DEFRA - EA Programme,Atkins Limited,1941,5130
DEPARTMENT OF ENERGY AND CLIMATE CHANGE,THE COAL AUTHORITY,20/06/2016,Minewater Feasibility / Scoping,Environment - DEFRA - EA Programme,Atkins Limited,2201,5281
DEPARTMENT OF ENERGY AND CLIMATE CHANGE,THE COAL AUTHORITY,03/04/2016,Incidentals,Environment - DEFRA - EA Programme,RBS GPC March 2016,2460,18.34
DEPARTMENT OF ENERGY AND CLIMATE CHANGE,THE COAL AUTHORITY,03/04/2016,Subsistence Allowances,Environment - DEFRA - EA Programme,RBS GPC March 2016,2460,4.29
DEPARTMENT OF ENERGY AND CLIMATE CHANGE,THE COAL AUTHORITY,03/05/2016,Subsistence Allowances,Environment - DEFRA - EA Programme,RBS GPC April 2016,2463,22.75
DEPARTMENT OF ENERGY AND CLIMATE CHANGE,THE COAL AUTHORITY,30/06/2016,Minewater Contractor Add. Task Order - Ops Site,Environment - DEFRA - EA Programme,2360 SEVERN TRENT SERVICES MAY'16,2490,111.68
DEPARTMENT OF ENERGY AND CLIMATE CHANGE,THE COAL AUTHORITY,30/06/2016,Minewater Contractor Add. Task Order - Ops Site,Environment - DEFRA - EA Programme,2360 SEVERN TRENT SERVICES MAY'16,2490,610.35
DEPARTMENT OF ENERGY AND CLIMATE CHANGE,THE COAL AUTHORITY,30/06/2016,Minewater Contractor Maint. Visits - Ops Site,Environment - DEFRA - EA Programme,2360 SEVERN TRENT SERVICES MAY'16,2490,68.76
DEPARTMENT OF ENERGY AND CLIMATE CHANGE,THE COAL AUTHORITY,30/06/2016,Minewater Contractor Maint. Visits - Ops Site,Environment - DEFRA - EA Programme,2360 SEVERN TRENT SERVICES MAY'16,2490,593.06
DEPARTMENT OF ENERGY AND CLIMATE CHANGE,THE COAL AUTHORITY,30/06/2016,Minewater Contractor Maint. Visits - Ops Site,Environment - DEFRA - EA Programme,2360 SEVERN TRENT SERVICES MAY'16,2490,51.57
DEPARTMENT OF ENERGY AND CLIMATE CHANGE,THE COAL AUTHORITY,30/06/2016,Minewater Contractor Maint. Visits - Ops Site,Environment - DEFRA - EA Programme,2360 SEVERN TRENT SERVICES MAY'16,2490,902.48
DEPARTMENT OF ENERGY AND CLIMATE CHANGE,THE COAL AUTHORITY,30/06/2016,Minewater Sampling - Operational Sites,Environment - DEFRA - EA Programme,2360 SEVERN TRENT SERVICES MAY'16,2490,674.32
DEPARTMENT OF ENERGY AND CLIMATE CHANGE,THE COAL AUTHORITY,30/06/2016,Minewater Sampling - Operational Sites,Environment - DEFRA - EA Programme,2360 SEVERN TRENT SERVICES MAY'16,2490,69.5
DEPARTMENT OF ENERGY AND CLIMATE CHANGE,THE COAL AUTHORITY,30/06/2016,Minewater Sampling - Operational Sites,Environment - DEFRA - EA Programme,2360 SEVERN TRENT SERVICES MAY'16,2490,259.24
DEPARTMENT OF ENERGY AND CLIMATE CHANGE,THE COAL AUTHORITY,30/06/2016,Minewater Sampling - Operational Sites,Environment - DEFRA - EA Programme,2360 SEVERN TRENT SERVICES MAY'16,2490,64.81
DEPARTMENT OF ENERGY AND CLIMATE CHANGE,THE COAL AUTHORITY,30/06/2016,Minewater Sampling - Operational Sites,Environment - DEFRA - EA Programme,2360 SEVERN TRENT SERVICES MAY'16,2490,2064.7
DEPARTMENT OF ENERGY AND CLIMATE CHANGE,THE COAL AUTHORITY,30/06/2016,Minewater Sampling - Operational Sites,Environment - DEFRA - EA Programme,2360 SEVERN TRENT SERVICES MAY'16,2490,64.81
DEPARTMENT OF ENERGY AND CLIMATE CHANGE,THE COAL AUTHORITY,31/05/2016,Minewater Feasibility / Scoping,Environment - DEFRA - EA Programme,Amec Env & Infrastructure Uk L,1956,1931.95
DEPARTMENT OF ENERGY AND CLIMATE CHANGE,THE COAL AUTHORITY,14/06/2016,Minewater Feasibility / Scoping,Environment - DEFRA - EA Programme,Mouchel Ltd,2070,2817.65
DEPARTMENT OF ENERGY AND CLIMATE CHANGE,THE COAL AUTHORITY,14/06/2016,Minewater Feasibility / Scoping,Environment - DEFRA - EA Programme,Mouchel Ltd,2072,474.39
DEPARTMENT OF ENERGY AND CLIMATE CHANGE,THE COAL AUTHORITY,03/06/2016,Minewater Power Costs,Environment - DEFRA - EA Programme,Edf Energy,1829,2303.69
DEPARTMENT OF ENERGY AND CLIMATE CHANGE,THE COAL AUTHORITY,03/06/2016,Minewater Power Costs,Environment - DEFRA - EA Programme,Edf Energy,1829,25664.58
DEPARTMENT OF ENERGY AND CLIMATE CHANGE,THE COAL AUTHORITY,31/05/2016,CY - Non-coal Minewater - Additions,Environment - DEFRA - EA Programme,Jmc Engineering Uk Ltd,1722,59.2
DEPARTMENT OF ENERGY AND CLIMATE CHANGE,THE COAL AUTHORITY,22/06/2016,Minewater Contractor Add. Task Order - Ops Site,Environment - DEFRA - EA Programme,1873 SEVERN TRENT SERVICES APRIL'16,2248,30.07
DEPARTMENT OF ENERGY AND CLIMATE CHANGE,THE COAL AUTHORITY,22/06/2016,Minewater Contractor Maint. Visits - Ops Site,Environment - DEFRA - EA Programme,1873 SEVERN TRENT SERVICES APRIL'16,2248,501.22
DEPARTMENT OF ENERGY AND CLIMATE CHANGE,THE COAL AUTHORITY,22/06/2016,Minewater Contractor Maint. Visits - Ops Site,Environment - DEFRA - EA Programme,1873 SEVERN TRENT SERVICES APRIL'16,2248,80.19
DEPARTMENT OF ENERGY AND CLIMATE CHANGE,THE COAL AUTHORITY,22/06/2016,Minewater Contractor Maint. Visits - Ops Site,Environment - DEFRA - EA Programme,1873 SEVERN TRENT SERVICES APRIL'16,2248,46.78
DEPARTMENT OF ENERGY AND CLIMATE CHANGE,THE COAL AUTHORITY,22/06/2016,Minewater Contractor Maint. Visits - Ops Site,Environment - DEFRA - EA Programme,1873 SEVERN TRENT SERVICES APRIL'16,2248,738.46
DEPARTMENT OF ENERGY AND CLIMATE CHANGE,THE COAL AUTHORITY,22/06/2016,Minewater Monitoring & Flow Measurement,Environment - DEFRA - EA Programme,1873 SEVERN TRENT SERVICES APRIL'16,2248,2530.75
DEPARTMENT OF ENERGY AND CLIMATE CHANGE,THE COAL AUTHORITY,22/06/2016,Minewater Monitoring & Flow Measurement,Environment - DEFRA - EA Programme,1873 SEVERN TRENT SERVICES APRIL'16,2248,60.69
DEPARTMENT OF ENERGY AND CLIMATE CHANGE,THE COAL AUTHORITY,22/06/2016,Minewater Sampling - Operational Sites,Environment - DEFRA - EA Programme,1873 SEVERN TRENT SERVICES APRIL'16,2248,633.47
DEPARTMENT OF ENERGY AND CLIMATE CHANGE,THE COAL AUTHORITY,22/06/2016,Minewater Sampling - Operational Sites,Environment - DEFRA - EA Programme,1873 SEVERN TRENT SERVICES APRIL'16,2248,69.5
DEPARTMENT OF ENERGY AND CLIMATE CHANGE,THE COAL AUTHORITY,22/06/2016,Minewater Sampling - Operational Sites,Environment - DEFRA - EA Programme,1873 SEVERN TRENT SERVICES APRIL'16,2248,64.81
DEPARTMENT OF ENERGY AND CLIMATE CHANGE,THE COAL AUTHORITY,22/06/2016,Minewater Sampling - Operational Sites,Environment - DEFRA - EA Programme,1873 SEVERN TRENT SERVICES APRIL'16,2248,259.24
DEPARTMENT OF ENERGY AND CLIMATE CHANGE,THE COAL AUTHORITY,22/06/2016,Minewater Sampling - Operational Sites,Environment - DEFRA - EA Programme,1873 SEVERN TRENT SERVICES APRIL'16,2248,64.81
DEPARTMENT OF ENERGY AND CLIMATE CHANGE,THE COAL AUTHORITY,22/06/2016,Minewater Sampling - Operational Sites,Environment - DEFRA - EA Programme,1873 SEVERN TRENT SERVICES APRIL'16,2248,1974.96
DEPARTMENT OF ENERGY AND CLIMATE CHANGE,THE COAL AUTHORITY,22/06/2016,Minewater Sampling - Operational Sites,Environment - DEFRA - EA Programme,1873 SEVERN TRENT SERVICES APRIL'16,2248,64.81
DEPARTMENT OF ENERGY AND CLIMATE CHANGE,THE COAL AUTHORITY,24/05/2016,CY - Non-coal Minewater - Additions,Environment - DEFRA - EA Programme,Veolia Water Ind Outsourcing L,1953,-14316.96
DEPARTMENT OF ENERGY AND CLIMATE CHANGE,THE COAL AUTHORITY,24/05/2016,Minewater Power Costs,Environment - DEFRA - EA Programme,Veolia Water Ind Outsourcing L,1953,-5331.73
DEPARTMENT OF ENERGY AND CLIMATE CHANGE,THE COAL AUTHORITY,28/06/2016,Minewater Power Costs,Environment - DEFRA - EA Programme,Veolia Water Ind Outsourcing L,2394,-3000.76
DEPARTMENT OF ENERGY AND CLIMATE CHANGE,THE COAL AUTHORITY,24/05/2016,Minewater Chemicals - Operational Sites,Environment - DEFRA - EA Programme,Veolia Water Ind Outsourcing L,1955,33857.61
DEPARTMENT OF ENERGY AND CLIMATE CHANGE,THE COAL AUTHORITY,24/05/2016,Minewater Contractor Maint. Visits - Ops Site,Environment - DEFRA - EA Programme,Veolia Water Ind Outsourcing L,1955,33096.74
DEPARTMENT OF ENERGY AND CLIMATE CHANGE,THE COAL AUTHORITY,24/05/2016,Minewater Power Costs,Environment - DEFRA - EA Programme,Veolia Water Ind Outsourcing L,1955,197.83
DEPARTMENT OF ENERGY AND CLIMATE CHANGE,THE COAL AUTHORITY,24/05/2016,Minewater Power Costs,Environment - DEFRA - EA Programme,Veolia Water Ind Outsourcing L,1955,301.4
DEPARTMENT OF ENERGY AND CLIMATE CHANGE,THE COAL AUTHORITY,24/05/2016,Minewater Power Costs,Environment - DEFRA - EA Programme,Veolia Water Ind Outsourcing L,1955,243.7
DEPARTMENT OF ENERGY AND CLIMATE CHANGE,THE COAL AUTHORITY,24/05/2016,Minewater Sludge Disposal,Environment - DEFRA - EA Programme,Veolia Water Ind Outsourcing L,1955,27083.34
DEPARTMENT OF ENERGY AND CLIMATE CHANGE,THE COAL AUTHORITY,20/06/2016,Minewater Chemicals - Operational Sites,Environment - DEFRA - EA Programme,Veolia Water Ind Outsourcing L,2393,25981.64
DEPARTMENT OF ENERGY AND CLIMATE CHANGE,THE COAL AUTHORITY,20/06/2016,Minewater Contractor Maint. Visits - Ops Site,Environment - DEFRA - EA Programme,Veolia Water Ind Outsourcing L,2393,33096.74
DEPARTMENT OF ENERGY AND CLIMATE CHANGE,THE COAL AUTHORITY,20/06/2016,Minewater Power Costs,Environment - DEFRA - EA Programme,Veolia Water Ind Outsourcing L,2393,203.14
DEPARTMENT OF ENERGY AND CLIMATE CHANGE,THE COAL AUTHORITY,20/06/2016,Minewater Power Costs,Environment - DEFRA - EA Programme,Veolia Water Ind Outsourcing L,2393,204.06
DEPARTMENT OF ENERGY AND CLIMATE CHANGE,THE COAL AUTHORITY,20/06/2016,Minewater Power Costs,Environment - DEFRA - EA Programme,Veolia Water Ind Outsourcing L,2393,452.79
DEPARTMENT OF ENERGY AND CLIMATE CHANGE,THE COAL AUTHORITY,20/06/2016,Minewater Power Costs,Environment - DEFRA - EA Programme,Veolia Water Ind Outsourcing L,2393,33.78
DEPARTMENT OF ENERGY AND CLIMATE CHANGE,THE COAL AUTHORITY,20/06/2016,Minewater Sludge Disposal,Environment - DEFRA - EA Programme,Veolia Water Ind Outsourcing L,2393,27083.34
DEPARTMENT OF ENERGY AND CLIMATE CHANGE,THE COAL AUTHORITY,20/06/2016,Minewater Discharge Consents,Environment - DEFRA - EA Programme,Veolia Water Ind Outsourcing L,2392,10995.84
DEPARTMENT OF ENERGY AND CLIMATE CHANGE,THE COAL AUTHORITY,31/05/2016,Minewater Land Agents (Acquisitions),Environment - DEFRA - LEP Programme,Mark N Carey Limited,1729,162.5
DEPARTMENT OF ENERGY AND CLIMATE CHANGE,THE COAL AUTHORITY,13/06/2016,Minewater Land Agents (Acquisitions),Environment - DEFRA - LEP Programme,Cornerstone  Projects Ltd,1992,385.4
DEPARTMENT OF ENERGY AND CLIMATE CHANGE,THE COAL AUTHORITY,01/06/2016,Software Support & Maintenance - SaaS,Environment - DEFRA - LEP Programme,Conject Limited,2142,118.79
DEPARTMENT OF ENERGY AND CLIMATE CHANGE,THE COAL AUTHORITY,27/05/2016,Minewater Feasibility / Scoping,Environment - DEFRA - LEP Programme,Atkins Limited,1940,1514
DEPARTMENT OF ENERGY AND CLIMATE CHANGE,THE COAL AUTHORITY,27/05/2016,Minewater Feasibility / Scoping,Environment - DEFRA - LEP Programme,Atkins Limited,1939,1466.4
DEPARTMENT OF ENERGY AND CLIMATE CHANGE,THE COAL AUTHORITY,20/06/2016,Minewater Feasibility / Scoping,Environment - DEFRA - LEP Programme,Atkins Limited,2200,6233
DEPARTMENT OF ENERGY AND CLIMATE CHANGE,THE COAL AUTHORITY,20/06/2016,Minewater Feasibility / Scoping,Environment - DEFRA - LEP Programme,Atkins Limited,2199,1357
DEPARTMENT OF ENERGY AND CLIMATE CHANGE,THE COAL AUTHORITY,03/06/2016,Minewater Feasibility / Scoping,Environment - DEFRA - LEP Programme,Aecom Infrastructure & Env,1951,38170.76
DEPARTMENT OF ENERGY AND CLIMATE CHANGE,THE COAL AUTHORITY,03/04/2016,Incidentals,Environment - DEFRA - LEP Programme,RBS GPC March 2016,2460,22
DEPARTMENT OF ENERGY AND CLIMATE CHANGE,THE COAL AUTHORITY,03/04/2016,Minewater Land Agents (Acquisitions),Environment - DEFRA - LEP Programme,RBS GPC March 2016,2460,200
DEPARTMENT OF ENERGY AND CLIMATE CHANGE,THE COAL AUTHORITY,03/04/2016,Subsistence Allowances,Environment - DEFRA - LEP Programme,RBS GPC March 2016,2460,18.82
DEPARTMENT OF ENERGY AND CLIMATE CHANGE,THE COAL AUTHORITY,03/04/2016,Subsistence Allowances,Environment - DEFRA - LEP Programme,RBS GPC March 2016,2460,4.52
DEPARTMENT OF ENERGY AND CLIMATE CHANGE,THE COAL AUTHORITY,03/04/2016,Subsistence Allowances,Environment - DEFRA - LEP Programme,RBS GPC March 2016,2460,23.88
DEPARTMENT OF ENERGY AND CLIMATE CHANGE,THE COAL AUTHORITY,03/05/2016,Business Meetings,Environment - DEFRA - LEP Programme,RBS GPC April 2016,2463,50
DEPARTMENT OF ENERGY AND CLIMATE CHANGE,THE COAL AUTHORITY,03/05/2016,Subsistence Allowances,Environment - DEFRA - LEP Programme,RBS GPC April 2016,2463,62.91
DEPARTMENT OF ENERGY AND CLIMATE CHANGE,THE COAL AUTHORITY,03/05/2016,Subsistence Allowances,Environment - DEFRA - LEP Programme,RBS GPC April 2016,2463,8.71
DEPARTMENT OF ENERGY AND CLIMATE CHANGE,THE COAL AUTHORITY,30/06/2016,Minewater Contractor Maint. Visits - Ops Site,Environment - DEFRA - LEP Programme,2360 SEVERN TRENT SERVICES MAY'16,2490,68.76
DEPARTMENT OF ENERGY AND CLIMATE CHANGE,THE COAL AUTHORITY,30/06/2016,Minewater Contractor Maint. Visits - Ops Site,Environment - DEFRA - LEP Programme,2360 SEVERN TRENT SERVICES MAY'16,2490,60.17
DEPARTMENT OF ENERGY AND CLIMATE CHANGE,THE COAL AUTHORITY,30/06/2016,Minewater Contractor Maint. Visits - Ops Site,Environment - DEFRA - LEP Programme,2360 SEVERN TRENT SERVICES MAY'16,2490,42.98
DEPARTMENT OF ENERGY AND CLIMATE CHANGE,THE COAL AUTHORITY,30/06/2016,Minewater Monitoring & Flow Measurement,Environment - DEFRA - LEP Programme,2360 SEVERN TRENT SERVICES MAY'16,2490,74.45
DEPARTMENT OF ENERGY AND CLIMATE CHANGE,THE COAL AUTHORITY,30/06/2016,Minewater Sampling - Operational Sites,Environment - DEFRA - LEP Programme,2360 SEVERN TRENT SERVICES MAY'16,2490,64.81
DEPARTMENT OF ENERGY AND CLIMATE CHANGE,THE COAL AUTHORITY,30/06/2016,Minewater Sampling - Operational Sites,Environment - DEFRA - LEP Programme,2360 SEVERN TRENT SERVICES MAY'16,2490,64.81
DEPARTMENT OF ENERGY AND CLIMATE CHANGE,THE COAL AUTHORITY,30/06/2016,Minewater Sampling - Operational Sites,Environment - DEFRA - LEP Programme,2360 SEVERN TRENT SERVICES MAY'16,2490,64.81
DEPARTMENT OF ENERGY AND CLIMATE CHANGE,THE COAL AUTHORITY,30/06/2016,Minewater Sampling - Operational Sites,Environment - DEFRA - LEP Programme,2360 SEVERN TRENT SERVICES MAY'16,2490,129.62
DEPARTMENT OF ENERGY AND CLIMATE CHANGE,THE COAL AUTHORITY,22/06/2016,Minewater Contractor Maint. Visits - Ops Site,Environment - DEFRA - LEP Programme,1873 SEVERN TRENT SERVICES APRIL'16,2248,40.1
DEPARTMENT OF ENERGY AND CLIMATE CHANGE,THE COAL AUTHORITY,22/06/2016,Minewater Contractor Maint. Visits - Ops Site,Environment - DEFRA - LEP Programme,1873 SEVERN TRENT SERVICES APRIL'16,2248,40.1
DEPARTMENT OF ENERGY AND CLIMATE CHANGE,THE COAL AUTHORITY,22/06/2016,Minewater Contractor Maint. Visits - Ops Site,Environment - DEFRA - LEP Programme,1873 SEVERN TRENT SERVICES APRIL'16,2248,86.88
DEPARTMENT OF ENERGY AND CLIMATE CHANGE,THE COAL AUTHORITY,22/06/2016,Minewater Monitoring & Flow Measurement,Environment - DEFRA - LEP Programme,1873 SEVERN TRENT SERVICES APRIL'16,2248,29.88
DEPARTMENT OF ENERGY AND CLIMATE CHANGE,THE COAL AUTHORITY,22/06/2016,Minewater Sampling - Operational Sites,Environment - DEFRA - LEP Programme,1873 SEVERN TRENT SERVICES APRIL'16,2248,96.39
DEPARTMENT OF ENERGY AND CLIMATE CHANGE,THE COAL AUTHORITY,22/06/2016,Minewater Sampling - Operational Sites,Environment - DEFRA - LEP Programme,1873 SEVERN TRENT SERVICES APRIL'16,2248,64.81
DEPARTMENT OF ENERGY AND CLIMATE CHANGE,THE COAL AUTHORITY,22/06/2016,Minewater Sampling - Operational Sites,Environment - DEFRA - LEP Programme,1873 SEVERN TRENT SERVICES APRIL'16,2248,129.62
DEPARTMENT OF ENERGY AND CLIMATE CHANGE,THE COAL AUTHORITY,05/06/2016,CY - Non-coal Minewater - Additions,Environment - DEFRA - LEP Programme,J N Bentley Limited,2406,56516.96
DEPARTMENT OF ENERGY AND CLIMATE CHANGE,THE COAL AUTHORITY,06/06/2016,Innovation Costs,Environment - Innovation,Clare McCallan Consulting,1957,375
DEPARTMENT OF ENERGY AND CLIMATE CHANGE,THE COAL AUTHORITY,24/05/2016,Innovation Costs,Environment - Innovation,Jim Davies Civil Engineering,1659,520
DEPARTMENT OF ENERGY AND CLIMATE CHANGE,THE COAL AUTHORITY,10/05/2016,Innovation Costs,Environment - Innovation,Environmental Scientifics Grp,1963,1750.37
DEPARTMENT OF ENERGY AND CLIMATE CHANGE,THE COAL AUTHORITY,13/06/2016,Stationery,Environment - Innovation,P/Cash - Sticker Dots,1979,1
DEPARTMENT OF ENERGY AND CLIMATE CHANGE,THE COAL AUTHORITY,03/04/2016,Incidentals,Environment - Innovation,RBS GPC March 2016,2460,22
DEPARTMENT OF ENERGY AND CLIMATE CHANGE,THE COAL AUTHORITY,03/04/2016,Subsistence Allowances,Environment - Innovation,RBS GPC March 2016,2460,6.45
DEPARTMENT OF ENERGY AND CLIMATE CHANGE,THE COAL AUTHORITY,03/05/2016,Fuel (Vehicle),Environment - Innovation,RBS GPC April 2016,2463,5.49
DEPARTMENT OF ENERGY AND CLIMATE CHANGE,THE COAL AUTHORITY,03/05/2016,Innovation Costs,Environment - Innovation,RBS GPC April 2016,2463,9.45
DEPARTMENT OF ENERGY AND CLIMATE CHANGE,THE COAL AUTHORITY,03/05/2016,Subsistence Allowances,Environment - Innovation,RBS GPC April 2016,2463,8.1
DEPARTMENT OF ENERGY AND CLIMATE CHANGE,THE COAL AUTHORITY,30/06/2016,Innovation Costs,Environment - Innovation,2360 SEVERN TRENT SERVICES MAY'16,2490,16670.48
DEPARTMENT OF ENERGY AND CLIMATE CHANGE,THE COAL AUTHORITY,31/05/2016,Innovation Costs,Environment - Innovation,AquaEnviro,2018,5965
DEPARTMENT OF ENERGY AND CLIMATE CHANGE,THE COAL AUTHORITY,31/05/2016,Temporary Contractors,Environment - Innovation,Huxley Associates,1745,2160
DEPARTMENT OF ENERGY AND CLIMATE CHANGE,THE COAL AUTHORITY,31/05/2016,Temporary Contractors,Environment - Innovation,Huxley Associates,1744,26.55
DEPARTMENT OF ENERGY AND CLIMATE CHANGE,THE COAL AUTHORITY,06/06/2016,Temporary Contractors,Environment - Innovation,Huxley Associates,1750,1755
DEPARTMENT OF ENERGY AND CLIMATE CHANGE,THE COAL AUTHORITY,13/06/2016,Temporary Contractors,Environment - Innovation,Huxley Associates,2020,2160
DEPARTMENT OF ENERGY AND CLIMATE CHANGE,THE COAL AUTHORITY,20/06/2016,Temporary Contractors,Environment - Innovation,Huxley Associates,2225,20.83
DEPARTMENT OF ENERGY AND CLIMATE CHANGE,THE COAL AUTHORITY,20/06/2016,Temporary Contractors,Environment - Innovation,Huxley Associates,2228,2160
DEPARTMENT OF ENERGY AND CLIMATE CHANGE,THE COAL AUTHORITY,31/05/2016,Fares - Rail,Environment - Innovation,Redfern Travel Ltd,1843,172
DEPARTMENT OF ENERGY AND CLIMATE CHANGE,THE COAL AUTHORITY,31/05/2016,Hotel & Accommodation,Environment - Innovation,Redfern Travel Ltd,1849,1.17
DEPARTMENT OF ENERGY AND CLIMATE CHANGE,THE COAL AUTHORITY,27/05/2016,Works Projects,Environment - Management,Environmental Scientifics Grp,1676,416
DEPARTMENT OF ENERGY AND CLIMATE CHANGE,THE COAL AUTHORITY,15/06/2016,Business Meetings,Environment - Management,701-RANSOMWOOD IRRECVRBLE VAT,2035,11.73
DEPARTMENT OF ENERGY AND CLIMATE CHANGE,THE COAL AUTHORITY,03/04/2016,Incidentals,Environment - Management,RBS GPC March 2016,2460,24.42
DEPARTMENT OF ENERGY AND CLIMATE CHANGE,THE COAL AUTHORITY,03/04/2016,Subsistence Allowances,Environment - Management,RBS GPC March 2016,2460,6.45
DEPARTMENT OF ENERGY AND CLIMATE CHANGE,THE COAL AUTHORITY,03/04/2016,Training & Education,Environment - Management,RBS GPC March 2016,2460,595
DEPARTMENT OF ENERGY AND CLIMATE CHANGE,THE COAL AUTHORITY,03/05/2016,Professional Subscriptions,Environment - Management,RBS GPC April 2016,2463,190
DEPARTMENT OF ENERGY AND CLIMATE CHANGE,THE COAL AUTHORITY,05/07/2016,CY - Minewater Scheme - Additions,Environment - Management,1937 Mott Macdonald Ltd,2598,-513
DEPARTMENT OF ENERGY AND CLIMATE CHANGE,THE COAL AUTHORITY,05/07/2016,Works Projects,Environment - Management,2130 Balfour Beatty,2598,-3545.06
DEPARTMENT OF ENERGY AND CLIMATE CHANGE,THE COAL AUTHORITY,05/07/2016,Works Projects,Environment - Management,1676 Scientifics,2598,-416
DEPARTMENT OF ENERGY AND CLIMATE CHANGE,THE COAL AUTHORITY,31/05/2016,Fares - Air,Environment - Management,Redfern Travel Ltd,1843,320.45
DEPARTMENT OF ENERGY AND CLIMATE CHANGE,THE COAL AUTHORITY,31/05/2016,Fares - Rail,Environment - Management,Redfern Travel Ltd,1843,487.1
DEPARTMENT OF ENERGY AND CLIMATE CHANGE,THE COAL AUTHORITY,31/05/2016,Hotel & Accommodation,Environment - Management,Redfern Travel Ltd,1849,199.72
DEPARTMENT OF ENERGY AND CLIMATE CHANGE,THE COAL AUTHORITY,31/05/2016,CY - Minewater Scheme - Additions,Environment - Management,Mott Macdonald Ltd,1937,513
DEPARTMENT OF ENERGY AND CLIMATE CHANGE,THE COAL AUTHORITY,05/05/2016,Works Projects,Environment - Management,Balfour Beatty Civil Eng Ltd,2130,3545.06
DEPARTMENT OF ENERGY AND CLIMATE CHANGE,THE COAL AUTHORITY,03/04/2016,Membership Subscriptions,Environment - Metal Mine Build,RBS GPC March 2016,2460,152
DEPARTMENT OF ENERGY AND CLIMATE CHANGE,THE COAL AUTHORITY,03/04/2016,Training & Education,Environment - Metal Mine Build,RBS GPC March 2016,2460,1000
DEPARTMENT OF ENERGY AND CLIMATE CHANGE,THE COAL AUTHORITY,03/05/2016,Incidentals,Environment - Metal Mine Build,RBS GPC April 2016,2463,50
DEPARTMENT OF ENERGY AND CLIMATE CHANGE,THE COAL AUTHORITY,03/05/2016,Subsistence Allowances,Environment - Metal Mine Build,RBS GPC April 2016,2463,33.43
DEPARTMENT OF ENERGY AND CLIMATE CHANGE,THE COAL AUTHORITY,03/05/2016,Training & Education,Environment - Metal Mine Build,RBS GPC April 2016,2463,41
DEPARTMENT OF ENERGY AND CLIMATE CHANGE,THE COAL AUTHORITY,31/05/2016,Fares - Rail,Environment - Metal Mine Build,Redfern Travel Ltd,1843,290.1
DEPARTMENT OF ENERGY AND CLIMATE CHANGE,THE COAL AUTHORITY,31/05/2016,Fares - Rail,Environment - Metal Mine Build,Redfern Travel Ltd,1845,-146.17
DEPARTMENT OF ENERGY AND CLIMATE CHANGE,THE COAL AUTHORITY,31/05/2016,Hotel & Accommodation,Environment - Metal Mine Build,Redfern Travel Ltd,1849,291.17
DEPARTMENT OF ENERGY AND CLIMATE CHANGE,THE COAL AUTHORITY,24/05/2016,Central Training,Environment - Metal Mine Build,Symmons Madge Associates Llp,1772,174.91
DEPARTMENT OF ENERGY AND CLIMATE CHANGE,THE COAL AUTHORITY,23/06/2016,Fares - Public Transport,Environment - Technical,Accruals - Staff Expenses Control,2274,4.8
DEPARTMENT OF ENERGY AND CLIMATE CHANGE,THE COAL AUTHORITY,22/06/2016,Incidentals,Environment - Technical,Accruals - Staff Expenses Control,2260,4.58
DEPARTMENT OF ENERGY AND CLIMATE CHANGE,THE COAL AUTHORITY,22/06/2016,Incidentals,Environment - Technical,Accruals - Staff Expenses Control,2261,9.16
DEPARTMENT OF ENERGY AND CLIMATE CHANGE,THE COAL AUTHORITY,22/06/2016,Mileage Payments,Environment - Technical,Accruals - Staff Expenses Control,2260,40.8
DEPARTMENT OF ENERGY AND CLIMATE CHANGE,THE COAL AUTHORITY,22/06/2016,Subsistence Allowances,Environment - Technical,Accruals - Staff Expenses Control,2261,1.63
DEPARTMENT OF ENERGY AND CLIMATE CHANGE,THE COAL AUTHORITY,31/05/2016,Minewater Land Agents (Acquisitions),Environment - Technical,Mark N Carey Limited,1738,149.5
DEPARTMENT OF ENERGY AND CLIMATE CHANGE,THE COAL AUTHORITY,31/05/2016,Minewater Land Agents (Acquisitions),Environment - Technical,Mark N Carey Limited,1737,52
DEPARTMENT OF ENERGY AND CLIMATE CHANGE,THE COAL AUTHORITY,03/04/2016,Incidentals,Environment - Technical,RBS GPC March 2016,2460,14
DEPARTMENT OF ENERGY AND CLIMATE CHANGE,THE COAL AUTHORITY,03/04/2016,Subsistence Allowances,Environment - Technical,RBS GPC March 2016,2460,31.04
DEPARTMENT OF ENERGY AND CLIMATE CHANGE,THE COAL AUTHORITY,03/04/2016,Subsistence Allowances,Environment - Technical,RBS GPC March 2016,2460,38.79
DEPARTMENT OF ENERGY AND CLIMATE CHANGE,THE COAL AUTHORITY,03/05/2016,Incidentals,Environment - Technical,RBS GPC April 2016,2463,3.33
DEPARTMENT OF ENERGY AND CLIMATE CHANGE,THE COAL AUTHORITY,03/05/2016,Subsistence Allowances,Environment - Technical,RBS GPC April 2016,2463,6.75
DEPARTMENT OF ENERGY AND CLIMATE CHANGE,THE COAL AUTHORITY,03/05/2016,Training & Education,Environment - Technical,RBS GPC April 2016,2463,487.3
DEPARTMENT OF ENERGY AND CLIMATE CHANGE,THE COAL AUTHORITY,14/06/2016,Minewater Investigation Studies,Environment - Technical,Mouchel Ltd,2071,5545.86
DEPARTMENT OF ENERGY AND CLIMATE CHANGE,THE COAL AUTHORITY,31/05/2016,Temporary Contractors,Environment - Technical,Huxley Associates,1742,1880
DEPARTMENT OF ENERGY AND CLIMATE CHANGE,THE COAL AUTHORITY,06/06/2016,Temporary Contractors,Environment - Technical,Huxley Associates,1752,1880
DEPARTMENT OF ENERGY AND CLIMATE CHANGE,THE COAL AUTHORITY,13/06/2016,Temporary Contractors,Environment - Technical,Huxley Associates,2021,1504
DEPARTMENT OF ENERGY AND CLIMATE CHANGE,THE COAL AUTHORITY,20/06/2016,Temporary Contractors,Environment - Technical,Huxley Associates,2226,143.8
DEPARTMENT OF ENERGY AND CLIMATE CHANGE,THE COAL AUTHORITY,20/06/2016,Temporary Contractors,Environment - Technical,Huxley Associates,2227,1880
DEPARTMENT OF ENERGY AND CLIMATE CHANGE,THE COAL AUTHORITY,26/06/2016,Temporary Contractors,Environment - Technical,Huxley Associates,2368,1880
DEPARTMENT OF ENERGY AND CLIMATE CHANGE,THE COAL AUTHORITY,31/05/2016,Minewater Land Agents (Acquisitions),Environment - Technical,Jmc Engineering Uk Ltd,1719,103.6
DEPARTMENT OF ENERGY AND CLIMATE CHANGE,THE COAL AUTHORITY,31/05/2016,Minewater Land Agents (Acquisitions),Environment - Technical,Jmc Engineering Uk Ltd,1721,310.8
DEPARTMENT OF ENERGY AND CLIMATE CHANGE,THE COAL AUTHORITY,31/05/2016,Minewater Land Agents (Acquisitions),Environment - Technical,Jmc Engineering Uk Ltd,1723,111
DEPARTMENT OF ENERGY AND CLIMATE CHANGE,THE COAL AUTHORITY,31/05/2016,Minewater Land Agents (Acquisitions),Environment - Technical,Jmc Engineering Uk Ltd,1724,37
DEPARTMENT OF ENERGY AND CLIMATE CHANGE,THE COAL AUTHORITY,31/05/2016,Fares - Air,Environment - Technical,Redfern Travel Ltd,1843,113.98
DEPARTMENT OF ENERGY AND CLIMATE CHANGE,THE COAL AUTHORITY,31/05/2016,Fares - Rail,Environment - Technical,Redfern Travel Ltd,1843,475
DEPARTMENT OF ENERGY AND CLIMATE CHANGE,THE COAL AUTHORITY,31/05/2016,Hotel & Accommodation,Environment - Technical,Redfern Travel Ltd,1849,284.55
DEPARTMENT OF ENERGY AND CLIMATE CHANGE,THE COAL AUTHORITY,22/06/2016,Minewater Pumping Tests,Environment - Technical,1873 SEVERN TRENT SERVICES APRIL'16,2248,7916.78
DEPARTMENT OF ENERGY AND CLIMATE CHANGE,THE COAL AUTHORITY,22/06/2016,Minewater Pumping Tests,Environment - Technical,1873 SEVERN TRENT SERVICES APRIL'16,2248,803.95
DEPARTMENT OF ENERGY AND CLIMATE CHANGE,THE COAL AUTHORITY,22/06/2016,Minewater Pumping Tests,Environment - Technical,1873 SEVERN TRENT SERVICES APRIL'16,2248,19205.38
DEPARTMENT OF ENERGY AND CLIMATE CHANGE,THE COAL AUTHORITY,22/06/2016,Minewater Sampling - 'Non-operational' Sites,Environment - Technical,1873 SEVERN TRENT SERVICES APRIL'16,2248,4361.43
DEPARTMENT OF ENERGY AND CLIMATE CHANGE,THE COAL AUTHORITY,22/06/2016,Minewater Sampling - 'Non-operational' Sites,Environment - Technical,1873 SEVERN TRENT SERVICES APRIL'16,2248,2116.8
DEPARTMENT OF ENERGY AND CLIMATE CHANGE,THE COAL AUTHORITY,22/06/2016,Minewater Cost Benefit Analysis,Environment - Technical,Risk & Policy Analysts Ltd,2395,5840
DEPARTMENT OF ENERGY AND CLIMATE CHANGE,THE COAL AUTHORITY,22/06/2016,Fares - Public Transport,Executive,Accruals - Staff Expenses Control,2263,11
DEPARTMENT OF ENERGY AND CLIMATE CHANGE,THE COAL AUTHORITY,22/06/2016,Mileage Payments,Executive,Accruals - Staff Expenses Control,2263,6.12
DEPARTMENT OF ENERGY AND CLIMATE CHANGE,THE COAL AUTHORITY,22/06/2016,Subsistence Allowances,Executive,Accruals - Staff Expenses Control,2263,1.79
DEPARTMENT OF ENERGY AND CLIMATE CHANGE,THE COAL AUTHORITY,23/06/2016,Fares - Public Transport,Executive,Accruals - Staff Expenses Control,2274,43
DEPARTMENT OF ENERGY AND CLIMATE CHANGE,THE COAL AUTHORITY,23/06/2016,Fares - Rail,Executive,Accruals - Staff Expenses Control,2274,41
DEPARTMENT OF ENERGY AND CLIMATE CHANGE,THE COAL AUTHORITY,23/06/2016,Hotel & Accommodation,Executive,Accruals - Staff Expenses Control,2274,186.45
DEPARTMENT OF ENERGY AND CLIMATE CHANGE,THE COAL AUTHORITY,23/06/2016,Incidentals,Executive,Accruals - Staff Expenses Control,2274,123.16
DEPARTMENT OF ENERGY AND CLIMATE CHANGE,THE COAL AUTHORITY,23/06/2016,Mileage Payments,Executive,Accruals - Staff Expenses Control,2274,62.16
DEPARTMENT OF ENERGY AND CLIMATE CHANGE,THE COAL AUTHORITY,23/06/2016,Staff Events,Executive,Accruals - Staff Expenses Control,2274,191.75
DEPARTMENT OF ENERGY AND CLIMATE CHANGE,THE COAL AUTHORITY,23/06/2016,Subsistence Allowances,Executive,Accruals - Staff Expenses Control,2274,67.56
DEPARTMENT OF ENERGY AND CLIMATE CHANGE,THE COAL AUTHORITY,23/06/2016,Subsistence Allowances,Executive,Accruals - Staff Expenses Control,2273,21.45
DEPARTMENT OF ENERGY AND CLIMATE CHANGE,THE COAL AUTHORITY,31/05/2016,Fares - Public Transport,Executive,Ace Of Mansfield Ltd,1768,35
DEPARTMENT OF ENERGY AND CLIMATE CHANGE,THE COAL AUTHORITY,03/04/2016,Business Meetings,Executive,RBS GPC March 2016,2460,41.67
DEPARTMENT OF ENERGY AND CLIMATE CHANGE,THE COAL AUTHORITY,03/04/2016,Business Publications,Executive,RBS GPC March 2016,2460,9.48
DEPARTMENT OF ENERGY AND CLIMATE CHANGE,THE COAL AUTHORITY,03/04/2016,Incidentals,Executive,RBS GPC March 2016,2460,28
DEPARTMENT OF ENERGY AND CLIMATE CHANGE,THE COAL AUTHORITY,03/04/2016,Professional Subscriptions,Executive,RBS GPC March 2016,2460,31.67
DEPARTMENT OF ENERGY AND CLIMATE CHANGE,THE COAL AUTHORITY,03/04/2016,Subsistence Allowances,Executive,RBS GPC March 2016,2460,4.25
DEPARTMENT OF ENERGY AND CLIMATE CHANGE,THE COAL AUTHORITY,03/05/2016,Fares - Public Transport,Executive,RBS GPC April 2016,2463,14.2
DEPARTMENT OF ENERGY AND CLIMATE CHANGE,THE COAL AUTHORITY,03/05/2016,Fares - Rail,Executive,RBS GPC April 2016,2463,111
DEPARTMENT OF ENERGY AND CLIMATE CHANGE,THE COAL AUTHORITY,03/05/2016,Hotel & Accommodation,Executive,RBS GPC April 2016,2463,105
DEPARTMENT OF ENERGY AND CLIMATE CHANGE,THE COAL AUTHORITY,03/05/2016,Incidentals,Executive,RBS GPC April 2016,2463,76.48
DEPARTMENT OF ENERGY AND CLIMATE CHANGE,THE COAL AUTHORITY,03/05/2016,Subsistence Allowances,Executive,RBS GPC April 2016,2463,32.65
DEPARTMENT OF ENERGY AND CLIMATE CHANGE,THE COAL AUTHORITY,31/05/2016,Fares - Air,Executive,Redfern Travel Ltd,1843,792.14
DEPARTMENT OF ENERGY AND CLIMATE CHANGE,THE COAL AUTHORITY,31/05/2016,Fares - Rail,Executive,Redfern Travel Ltd,1843,997.72
DEPARTMENT OF ENERGY AND CLIMATE CHANGE,THE COAL AUTHORITY,31/05/2016,Hotel & Accommodation,Executive,Redfern Travel Ltd,1849,1193.74
DEPARTMENT OF ENERGY AND CLIMATE CHANGE,THE COAL AUTHORITY,27/06/2016,Training & Education,Executive,9.9 World Class Performance,2425,1008.78
DEPARTMENT OF ENERGY AND CLIMATE CHANGE,THE COAL AUTHORITY,27/06/2016,Staff Events,Executive,P Lawrence,2357,138
DEPARTMENT OF ENERGY AND CLIMATE CHANGE,THE COAL AUTHORITY,31/05/2016,Business Entertainment / Hospitality,Facilities,S P Foods,1935,344.25
DEPARTMENT OF ENERGY AND CLIMATE CHANGE,THE COAL AUTHORITY,31/05/2016,Contract Hire Vehicles,Facilities,Auto Smart Valeting Ltd,1879,351
DEPARTMENT OF ENERGY AND CLIMATE CHANGE,THE COAL AUTHORITY,04/05/2016,Site Services,Facilities,Key West Pest Control Limited,2336,625
DEPARTMENT OF ENERGY AND CLIMATE CHANGE,THE COAL AUTHORITY,18/06/2016,Site Services,Facilities,Key West Pest Control Limited,2194,80
DEPARTMENT OF ENERGY AND CLIMATE CHANGE,THE COAL AUTHORITY,09/06/2016,Canteen Equipment,Facilities,ITN Plus,1872,146.53
DEPARTMENT OF ENERGY AND CLIMATE CHANGE,THE COAL AUTHORITY,29/05/2016,Temporary Contractors,Facilities,Venture Finance Plc,1747,1021.02
DEPARTMENT OF ENERGY AND CLIMATE CHANGE,THE COAL AUTHORITY,31/05/2016,Site Repairs & Maintenance,Facilities,Ulyett Landscapes Ltd,1806,749.16
DEPARTMENT OF ENERGY AND CLIMATE CHANGE,THE COAL AUTHORITY,15/06/2016,Site Repairs & Maintenance,Facilities,Ulyett Landscapes Ltd,2197,550
DEPARTMENT OF ENERGY AND CLIMATE CHANGE,THE COAL AUTHORITY,22/06/2016,Plant Maintenance,Facilities,Turner Engine Powered Services,2369,935
DEPARTMENT OF ENERGY AND CLIMATE CHANGE,THE COAL AUTHORITY,31/05/2016,Plant Maintenance,Facilities,Dakro Environmental Ltd,1816,624
DEPARTMENT OF ENERGY AND CLIMATE CHANGE,THE COAL AUTHORITY,28/04/2016,Canteen Equipment,Facilities,All Shires Foods Ltd,1803,407
DEPARTMENT OF ENERGY AND CLIMATE CHANGE,THE COAL AUTHORITY,03/05/2016,Canteen Equipment,Facilities,All Shires Foods Ltd,1802,17.1
DEPARTMENT OF ENERGY AND CLIMATE CHANGE,THE COAL AUTHORITY,05/05/2016,Canteen Equipment,Facilities,All Shires Foods Ltd,1801,17.1
DEPARTMENT OF ENERGY AND CLIMATE CHANGE,THE COAL AUTHORITY,10/05/2016,Canteen Equipment,Facilities,All Shires Foods Ltd,1800,17.1
DEPARTMENT OF ENERGY AND CLIMATE CHANGE,THE COAL AUTHORITY,12/05/2016,Canteen Equipment,Facilities,All Shires Foods Ltd,1799,17.1
DEPARTMENT OF ENERGY AND CLIMATE CHANGE,THE COAL AUTHORITY,24/05/2016,Temporary Contractors,Facilities,Thorn Baker Limited,1739,477
DEPARTMENT OF ENERGY AND CLIMATE CHANGE,THE COAL AUTHORITY,01/06/2016,Temporary Contractors,Facilities,Thorn Baker Limited,1749,366
DEPARTMENT OF ENERGY AND CLIMATE CHANGE,THE COAL AUTHORITY,17/05/2016,Canteen Equipment,Facilities,All Shires Foods Ltd,1798,17.1
DEPARTMENT OF ENERGY AND CLIMATE CHANGE,THE COAL AUTHORITY,07/06/2016,Temporary Contractors,Facilities,Thorn Baker Limited,1923,216
DEPARTMENT OF ENERGY AND CLIMATE CHANGE,THE COAL AUTHORITY,19/05/2016,Canteen Equipment,Facilities,All Shires Foods Ltd,1797,17.1
DEPARTMENT OF ENERGY AND CLIMATE CHANGE,THE COAL AUTHORITY,24/05/2016,Canteen Equipment,Facilities,All Shires Foods Ltd,1796,17.1
DEPARTMENT OF ENERGY AND CLIMATE CHANGE,THE COAL AUTHORITY,26/05/2016,Canteen Equipment,Facilities,All Shires Foods Ltd,1795,354.9
DEPARTMENT OF ENERGY AND CLIMATE CHANGE,THE COAL AUTHORITY,31/05/2016,Canteen Equipment,Facilities,All Shires Foods Ltd,1794,17.1
DEPARTMENT OF ENERGY AND CLIMATE CHANGE,THE COAL AUTHORITY,26/05/2016,Site Services,Facilities,Allen Vending Services,1811,100
DEPARTMENT OF ENERGY AND CLIMATE CHANGE,THE COAL AUTHORITY,31/05/2016,Cleaning Materials,Facilities,Floorbrite Cleaning & Facilities Services,1817,592.91
DEPARTMENT OF ENERGY AND CLIMATE CHANGE,THE COAL AUTHORITY,01/06/2016,Outsourced Cleaning Staff,Facilities,Floorbrite Cleaning & Facilities Services,1866,3861.52
DEPARTMENT OF ENERGY AND CLIMATE CHANGE,THE COAL AUTHORITY,27/05/2016,Contract Hire Vehicles,Facilities,Pentagon,1765,21.15
DEPARTMENT OF ENERGY AND CLIMATE CHANGE,THE COAL AUTHORITY,27/05/2016,Contract Hire Vehicles,Facilities,Pentagon,1764,21.15
DEPARTMENT OF ENERGY AND CLIMATE CHANGE,THE COAL AUTHORITY,31/05/2016,Contract Hire Vehicles,Facilities,Pentagon,1810,21.15
DEPARTMENT OF ENERGY AND CLIMATE CHANGE,THE COAL AUTHORITY,31/05/2016,Contract Hire Vehicles,Facilities,Pentagon,1809,21.15
DEPARTMENT OF ENERGY AND CLIMATE CHANGE,THE COAL AUTHORITY,24/06/2016,Contract Hire Vehicles,Facilities,Pentagon,2373,133.13
DEPARTMENT OF ENERGY AND CLIMATE CHANGE,THE COAL AUTHORITY,24/06/2016,Contract Hire Vehicles,Facilities,Pentagon,2372,21.15
DEPARTMENT OF ENERGY AND CLIMATE CHANGE,THE COAL AUTHORITY,25/06/2016,Contract Hire Vehicles,Facilities,Pentagon,2371,21.15
DEPARTMENT OF ENERGY AND CLIMATE CHANGE,THE COAL AUTHORITY,27/06/2016,Contract Hire Vehicles,Facilities,Pentagon,2409,128.13
DEPARTMENT OF ENERGY AND CLIMATE CHANGE,THE COAL AUTHORITY,27/06/2016,Contract Hire Vehicles,Facilities,Pentagon,2403,21.15
DEPARTMENT OF ENERGY AND CLIMATE CHANGE,THE COAL AUTHORITY,28/06/2016,Contract Hire Vehicles,Facilities,Pentagon,2474,21.15
DEPARTMENT OF ENERGY AND CLIMATE CHANGE,THE COAL AUTHORITY,25/05/2016,Site Services,Facilities,Banner Business Solutions,1807,68.4
DEPARTMENT OF ENERGY AND CLIMATE CHANGE,THE COAL AUTHORITY,26/05/2016,Stationery,Facilities,Banner Business Solutions,1814,855.47
DEPARTMENT OF ENERGY AND CLIMATE CHANGE,THE COAL AUTHORITY,01/06/2016,Site Services,Facilities,Banner Business Solutions,1863,81
DEPARTMENT OF ENERGY AND CLIMATE CHANGE,THE COAL AUTHORITY,13/06/2016,Canteen Equipment,Facilities,P/Cash - Thermo Kettle,1979,24.99
DEPARTMENT OF ENERGY AND CLIMATE CHANGE,THE COAL AUTHORITY,03/04/2016,Site Repairs & Maintenance,Facilities,RBS GPC March 2016,2460,726.09
DEPARTMENT OF ENERGY AND CLIMATE CHANGE,THE COAL AUTHORITY,03/04/2016,Site Repairs & Maintenance,Facilities,RBS GPC March 2016,2460,183.43
DEPARTMENT OF ENERGY AND CLIMATE CHANGE,THE COAL AUTHORITY,03/04/2016,Stationery,Facilities,RBS GPC March 2016,2460,15.75
DEPARTMENT OF ENERGY AND CLIMATE CHANGE,THE COAL AUTHORITY,03/05/2016,Site Repairs & Maintenance,Facilities,RBS GPC April 2016,2463,39.42
DEPARTMENT OF ENERGY AND CLIMATE CHANGE,THE COAL AUTHORITY,30/06/2016,Business Entertainment / Hospitality,Facilities,1935 - SP Foods - irr VAT entertainment,2496,21.52
DEPARTMENT OF ENERGY AND CLIMATE CHANGE,THE COAL AUTHORITY,07/07/2016,Canteen Equipment,Facilities,1872 - ITN Plus,2726,-146.53
DEPARTMENT OF ENERGY AND CLIMATE CHANGE,THE COAL AUTHORITY,07/07/2016,Site Repairs & Maintenance,Facilities,1872 - ITN Plus,2726,146.53
DEPARTMENT OF ENERGY AND CLIMATE CHANGE,THE COAL AUTHORITY,24/02/2016,Site Services,Facilities,Personnel Hygiene Services Ltd,2484,764.4
DEPARTMENT OF ENERGY AND CLIMATE CHANGE,THE COAL AUTHORITY,01/06/2016,Contract Hire Vehicles,Facilities,Alphabet (Uk) Fleet Man Ltd,1883,1893.1
DEPARTMENT OF ENERGY AND CLIMATE CHANGE,THE COAL AUTHORITY,01/06/2016,Fuel (Vehicle),Facilities,Allstar Business Solutions Ltd,1700,63.9
DEPARTMENT OF ENERGY AND CLIMATE CHANGE,THE COAL AUTHORITY,01/06/2016,Fuel (Vehicle),Facilities,Allstar Business Solutions Ltd,1697,47.78
DEPARTMENT OF ENERGY AND CLIMATE CHANGE,THE COAL AUTHORITY,01/06/2016,Fuel (Vehicle),Facilities,Allstar Business Solutions Ltd,1699,32.31
DEPARTMENT OF ENERGY AND CLIMATE CHANGE,THE COAL AUTHORITY,01/06/2016,Fuel (Vehicle),Facilities,Allstar Business Solutions Ltd,1695,32.53
DEPARTMENT OF ENERGY AND CLIMATE CHANGE,THE COAL AUTHORITY,01/06/2016,Fuel (Vehicle),Facilities,Allstar Business Solutions Ltd,1696,56.49
DEPARTMENT OF ENERGY AND CLIMATE CHANGE,THE COAL AUTHORITY,01/06/2016,Fuel (Vehicle),Facilities,Allstar Business Solutions Ltd,1698,52.66
DEPARTMENT OF ENERGY AND CLIMATE CHANGE,THE COAL AUTHORITY,01/06/2016,Fuel (Vehicle),Facilities,Allstar Business Solutions Ltd,1694,33.02
DEPARTMENT OF ENERGY AND CLIMATE CHANGE,THE COAL AUTHORITY,08/06/2016,Fuel (Vehicle),Facilities,Allstar Business Solutions Ltd,1905,55.56
DEPARTMENT OF ENERGY AND CLIMATE CHANGE,THE COAL AUTHORITY,08/06/2016,Fuel (Vehicle),Facilities,Allstar Business Solutions Ltd,1904,55.64
DEPARTMENT OF ENERGY AND CLIMATE CHANGE,THE COAL AUTHORITY,08/06/2016,Fuel (Vehicle),Facilities,Allstar Business Solutions Ltd,1903,13.53
DEPARTMENT OF ENERGY AND CLIMATE CHANGE,THE COAL AUTHORITY,08/06/2016,Fuel (Vehicle),Facilities,Allstar Business Solutions Ltd,1900,33.57
DEPARTMENT OF ENERGY AND CLIMATE CHANGE,THE COAL AUTHORITY,08/06/2016,Fuel (Vehicle),Facilities,Allstar Business Solutions Ltd,1902,53.89
DEPARTMENT OF ENERGY AND CLIMATE CHANGE,THE COAL AUTHORITY,08/06/2016,Fuel (Vehicle),Facilities,Allstar Business Solutions Ltd,1899,40.87
DEPARTMENT OF ENERGY AND CLIMATE CHANGE,THE COAL AUTHORITY,08/06/2016,Fuel (Vehicle),Facilities,Allstar Business Solutions Ltd,1898,66.14
DEPARTMENT OF ENERGY AND CLIMATE CHANGE,THE COAL AUTHORITY,15/06/2016,Fuel (Vehicle),Facilities,Allstar Business Solutions Ltd,2156,45.08
DEPARTMENT OF ENERGY AND CLIMATE CHANGE,THE COAL AUTHORITY,15/06/2016,Fuel (Vehicle),Facilities,Allstar Business Solutions Ltd,2157,84.97
DEPARTMENT OF ENERGY AND CLIMATE CHANGE,THE COAL AUTHORITY,15/06/2016,Fuel (Vehicle),Facilities,Allstar Business Solutions Ltd,2158,26.98
DEPARTMENT OF ENERGY AND CLIMATE CHANGE,THE COAL AUTHORITY,15/06/2016,Fuel (Vehicle),Facilities,Allstar Business Solutions Ltd,2152,69.61
DEPARTMENT OF ENERGY AND CLIMATE CHANGE,THE COAL AUTHORITY,15/06/2016,Fuel (Vehicle),Facilities,Allstar Business Solutions Ltd,2155,78.46
DEPARTMENT OF ENERGY AND CLIMATE CHANGE,THE COAL AUTHORITY,15/06/2016,Fuel (Vehicle),Facilities,Allstar Business Solutions Ltd,2154,39.32
DEPARTMENT OF ENERGY AND CLIMATE CHANGE,THE COAL AUTHORITY,15/06/2016,Fuel (Vehicle),Facilities,Allstar Business Solutions Ltd,2153,41.07
DEPARTMENT OF ENERGY AND CLIMATE CHANGE,THE COAL AUTHORITY,22/06/2016,Fuel (Vehicle),Facilities,Allstar Business Solutions Ltd,2295,24.61
DEPARTMENT OF ENERGY AND CLIMATE CHANGE,THE COAL AUTHORITY,22/06/2016,Fuel (Vehicle),Facilities,Allstar Business Solutions Ltd,2293,33.23
DEPARTMENT OF ENERGY AND CLIMATE CHANGE,THE COAL AUTHORITY,22/06/2016,Fuel (Vehicle),Facilities,Allstar Business Solutions Ltd,2294,30.36
DEPARTMENT OF ENERGY AND CLIMATE CHANGE,THE COAL AUTHORITY,22/06/2016,Fuel (Vehicle),Facilities,Allstar Business Solutions Ltd,2292,33.57
DEPARTMENT OF ENERGY AND CLIMATE CHANGE,THE COAL AUTHORITY,23/06/2016,Fuel (Vehicle),Facilities,Allstar Business Solutions Ltd,2291,71.67
DEPARTMENT OF ENERGY AND CLIMATE CHANGE,THE COAL AUTHORITY,03/06/2016,Electricity Usage,Facilities,Edf Energy,1829,11268.28
DEPARTMENT OF ENERGY AND CLIMATE CHANGE,THE COAL AUTHORITY,31/05/2016,Fares - Rail,Facilities,Redfern Travel Ltd,1843,497.1
DEPARTMENT OF ENERGY AND CLIMATE CHANGE,THE COAL AUTHORITY,06/06/2016,Site Repairs & Maintenance,Facilities,British Gas Energy Services Ltd T/A BMSI,2202,440
DEPARTMENT OF ENERGY AND CLIMATE CHANGE,THE COAL AUTHORITY,20/06/2016,Site Repairs & Maintenance,Facilities,British Gas Energy Services Ltd T/A BMSI,2476,247.5
DEPARTMENT OF ENERGY AND CLIMATE CHANGE,THE COAL AUTHORITY,20/05/2016,Site Services,Facilities,Biffa Waste Services Ltd,1812,358.24
DEPARTMENT OF ENERGY AND CLIMATE CHANGE,THE COAL AUTHORITY,24/06/2016,Site Services,Facilities,Biffa Waste Services Ltd,2419,447.8
DEPARTMENT OF ENERGY AND CLIMATE CHANGE,THE COAL AUTHORITY,26/05/2016,Plant Maintenance,Facilities,Mansfield Refrigeration & Air Conditioning Co Ltd,1808,296.1
DEPARTMENT OF ENERGY AND CLIMATE CHANGE,THE COAL AUTHORITY,31/05/2016,Plant Maintenance,Facilities,Mansfield Refrigeration & Air Conditioning Co Ltd,1813,86.1
DEPARTMENT OF ENERGY AND CLIMATE CHANGE,THE COAL AUTHORITY,31/05/2016,Site Services,Facilities,Ics Waste Management,1815,158
DEPARTMENT OF ENERGY AND CLIMATE CHANGE,THE COAL AUTHORITY,03/06/2016,Training & Education,Finance Projects & Business Planning,Academy Of High Achievers,1862,550
DEPARTMENT OF ENERGY AND CLIMATE CHANGE,THE COAL AUTHORITY,03/06/2016,Bank Charges,Finance Projects & Business Planning,National Westminster Bank Plc,2060,66.67
DEPARTMENT OF ENERGY AND CLIMATE CHANGE,THE COAL AUTHORITY,03/06/2016,Bank Charges,Finance Projects & Business Planning,National Westminster Bank Plc,2074,25
DEPARTMENT OF ENERGY AND CLIMATE CHANGE,THE COAL AUTHORITY,01/06/2016,Postage & Couriers,Finance Projects & Business Planning,Security Plus Limited,1767,51.75
DEPARTMENT OF ENERGY AND CLIMATE CHANGE,THE COAL AUTHORITY,03/04/2016,Subsistence Allowances,Finance Projects & Business Planning,RBS GPC March 2016,2460,26.95
DEPARTMENT OF ENERGY AND CLIMATE CHANGE,THE COAL AUTHORITY,03/04/2016,Training & Education,Finance Projects & Business Planning,RBS GPC March 2016,2460,691
DEPARTMENT OF ENERGY AND CLIMATE CHANGE,THE COAL AUTHORITY,03/05/2016,Incidentals,Finance Projects & Business Planning,RBS GPC April 2016,2463,5.83
DEPARTMENT OF ENERGY AND CLIMATE CHANGE,THE COAL AUTHORITY,03/05/2016,Training & Education,Finance Projects & Business Planning,RBS GPC April 2016,2463,2367.02
DEPARTMENT OF ENERGY AND CLIMATE CHANGE,THE COAL AUTHORITY,06/06/2016,Tax Advisors,Finance Projects & Business Planning,Deloitte Llp No 2 Acc,1860,9000
DEPARTMENT OF ENERGY AND CLIMATE CHANGE,THE COAL AUTHORITY,31/05/2016,Payroll Processing Fees,Finance Projects & Business Planning,Cgi It Uk Ltd,1782,1063.02
DEPARTMENT OF ENERGY AND CLIMATE CHANGE,THE COAL AUTHORITY,31/05/2016,Fares - Rail,Finance Projects & Business Planning,Redfern Travel Ltd,1843,536.4
DEPARTMENT OF ENERGY AND CLIMATE CHANGE,THE COAL AUTHORITY,31/05/2016,Software Support & Maintenance - SaaS,Finance Projects & Business Planning,Bottomline Technologies,2079,91
DEPARTMENT OF ENERGY AND CLIMATE CHANGE,THE COAL AUTHORITY,16/03/2016,Training & Education,Finance Projects & Business Planning,Pcs Ltd,1932,790
DEPARTMENT OF ENERGY AND CLIMATE CHANGE,THE COAL AUTHORITY,22/06/2016,Subsistence Allowances,HR & OD,Accruals - Staff Expenses Control,2255,9.37
DEPARTMENT OF ENERGY AND CLIMATE CHANGE,THE COAL AUTHORITY,01/06/2016,External Agency / Introduction Fees,HR & OD,Thorn Baker Limited,2006,1500
DEPARTMENT OF ENERGY AND CLIMATE CHANGE,THE COAL AUTHORITY,31/05/2016,Fares - Public Transport,HR & OD,Ace Of Mansfield Ltd,1768,75
DEPARTMENT OF ENERGY AND CLIMATE CHANGE,THE COAL AUTHORITY,28/06/2016,External Agency / Introduction Fees,HR & OD,Conrad Consulting,2477,6235
DEPARTMENT OF ENERGY AND CLIMATE CHANGE,THE COAL AUTHORITY,28/06/2016,External Agency / Introduction Fees,HR & OD,Conrad Consulting,2478,7177.5
DEPARTMENT OF ENERGY AND CLIMATE CHANGE,THE COAL AUTHORITY,01/06/2016,Membership Subscriptions,HR & OD,Central Law Training,1773,650
DEPARTMENT OF ENERGY AND CLIMATE CHANGE,THE COAL AUTHORITY,03/04/2016,External Agency / Introduction Fees,HR & OD,RBS GPC March 2016,2460,264.99
DEPARTMENT OF ENERGY AND CLIMATE CHANGE,THE COAL AUTHORITY,03/04/2016,Recruitment Advertising,HR & OD,RBS GPC March 2016,2460,1500.47
DEPARTMENT OF ENERGY AND CLIMATE CHANGE,THE COAL AUTHORITY,03/05/2016,External Agency / Introduction Fees,HR & OD,RBS GPC April 2016,2463,2108
DEPARTMENT OF ENERGY AND CLIMATE CHANGE,THE COAL AUTHORITY,03/05/2016,Professional Subscriptions,HR & OD,RBS GPC April 2016,2463,181
DEPARTMENT OF ENERGY AND CLIMATE CHANGE,THE COAL AUTHORITY,03/05/2016,Sundry Office Expenses,HR & OD,RBS GPC April 2016,2463,31.98
DEPARTMENT OF ENERGY AND CLIMATE CHANGE,THE COAL AUTHORITY,04/05/2016,Staff Medicals,HR & OD,Bupa Wellness Finance,2102,669
DEPARTMENT OF ENERGY AND CLIMATE CHANGE,THE COAL AUTHORITY,31/05/2016,Fares - Air,HR & OD,Redfern Travel Ltd,1843,112.09
DEPARTMENT OF ENERGY AND CLIMATE CHANGE,THE COAL AUTHORITY,31/05/2016,Fares - Rail,HR & OD,Redfern Travel Ltd,1843,120.5
DEPARTMENT OF ENERGY AND CLIMATE CHANGE,THE COAL AUTHORITY,31/05/2016,Hotel & Accommodation,HR & OD,Redfern Travel Ltd,1849,134.5
DEPARTMENT OF ENERGY AND CLIMATE CHANGE,THE COAL AUTHORITY,26/05/2016,External Agency / Introduction Fees,HR & OD,Cherry Professional Ltd,1961,2625
DEPARTMENT OF ENERGY AND CLIMATE CHANGE,THE COAL AUTHORITY,10/06/2016,Fares - Rail,HR & OD,James Figg,1922,151.76
DEPARTMENT OF ENERGY AND CLIMATE CHANGE,THE COAL AUTHORITY,27/06/2016,Mileage Payments,HR & OD,James Rough,2376,169
DEPARTMENT OF ENERGY AND CLIMATE CHANGE,THE COAL AUTHORITY,02/06/2016,Payroll Processing Fees,HR & OD,Capita Concessionary Fuel,1774,1602.66
DEPARTMENT OF ENERGY AND CLIMATE CHANGE,THE COAL AUTHORITY,27/06/2016,External Agency / Introduction Fees,HR & OD,Cherry Professional Ltd,2412,6000
DEPARTMENT OF ENERGY AND CLIMATE CHANGE,THE COAL AUTHORITY,13/06/2016,Legal - General,HR & OD,Kerry Davis,1962,5003
DEPARTMENT OF ENERGY AND CLIMATE CHANGE,THE COAL AUTHORITY,01/06/2016,Temporary Contractors,Infrastructure Management,Playcool Limited,1748,7004
DEPARTMENT OF ENERGY AND CLIMATE CHANGE,THE COAL AUTHORITY,29/04/2016,CY - Tangible IT - Additions,Infrastructure Management,PMD Magnetics,2075,3370
DEPARTMENT OF ENERGY AND CLIMATE CHANGE,THE COAL AUTHORITY,15/06/2016,Information Security software support,Infrastructure Management,Bytes Software,2190,1139.02
DEPARTMENT OF ENERGY AND CLIMATE CHANGE,THE COAL AUTHORITY,17/06/2016,Hardware Equipment & Support,Infrastructure Management,Rmve 2077 paid on GPC,2146,-2217.36
DEPARTMENT OF ENERGY AND CLIMATE CHANGE,THE COAL AUTHORITY,03/04/2016,Hardware Equipment & Support,Infrastructure Management,RBS GPC March 2016,2460,92.35
DEPARTMENT OF ENERGY AND CLIMATE CHANGE,THE COAL AUTHORITY,03/04/2016,Hardware Equipment & Support,Infrastructure Management,RBS GPC March 2016,2460,620.8
DEPARTMENT OF ENERGY AND CLIMATE CHANGE,THE COAL AUTHORITY,03/04/2016,Software Support & Maintenance - On Premise,Infrastructure Management,RBS GPC March 2016,2460,42.98
DEPARTMENT OF ENERGY AND CLIMATE CHANGE,THE COAL AUTHORITY,03/04/2016,Training & Education,Infrastructure Management,RBS GPC March 2016,2460,3242.56
DEPARTMENT OF ENERGY AND CLIMATE CHANGE,THE COAL AUTHORITY,03/05/2016,Networking / Cabling,Infrastructure Management,RBS GPC April 2016,2463,33.2
DEPARTMENT OF ENERGY AND CLIMATE CHANGE,THE COAL AUTHORITY,03/05/2016,Training & Education,Infrastructure Management,RBS GPC April 2016,2463,890
DEPARTMENT OF ENERGY AND CLIMATE CHANGE,THE COAL AUTHORITY,05/07/2016,Hardware Equipment & Support,Infrastructure Management,RMVE 2077 paid on GPC,2596,369.56
DEPARTMENT OF ENERGY AND CLIMATE CHANGE,THE COAL AUTHORITY,02/06/2016,Hardware Equipment & Support,Infrastructure Management,Software Box Limited,2077,1847.8
DEPARTMENT OF ENERGY AND CLIMATE CHANGE,THE COAL AUTHORITY,23/06/2016,Subsistence Allowances,Mining Information,Accruals - Staff Expenses Control,2274,5.27
DEPARTMENT OF ENERGY AND CLIMATE CHANGE,THE COAL AUTHORITY,27/06/2016,Mileage Payments,Mining Information,Accruals - Staff Expenses Control,2382,30.4
DEPARTMENT OF ENERGY AND CLIMATE CHANGE,THE COAL AUTHORITY,01/06/2016,Office Machinery - Hire,Mining Information,Canon (Uk) Ltd,1788,753.6
DEPARTMENT OF ENERGY AND CLIMATE CHANGE,THE COAL AUTHORITY,31/05/2016,Fares - Rail,Mining Information,Redfern Travel Ltd,1843,521
DEPARTMENT OF ENERGY AND CLIMATE CHANGE,THE COAL AUTHORITY,01/06/2016,eCommerce Commission Charges,Mining Information,Worldpay,2098,21.21
DEPARTMENT OF ENERGY AND CLIMATE CHANGE,THE COAL AUTHORITY,23/06/2016,Fares - Public Transport,Mining Reports Retail,Accruals - Staff Expenses Control,2273,7.2
DEPARTMENT OF ENERGY AND CLIMATE CHANGE,THE COAL AUTHORITY,23/06/2016,Incidentals,Mining Reports Retail,Accruals - Staff Expenses Control,2273,10
DEPARTMENT OF ENERGY AND CLIMATE CHANGE,THE COAL AUTHORITY,23/06/2016,Subsistence Allowances,Mining Reports Retail,Accruals - Staff Expenses Control,2273,21.45
DEPARTMENT OF ENERGY AND CLIMATE CHANGE,THE COAL AUTHORITY,22/06/2016,Incidentals,Mining Reports Retail,Accruals - Staff Expenses Control,2264,15.83
DEPARTMENT OF ENERGY AND CLIMATE CHANGE,THE COAL AUTHORITY,22/06/2016,Subsistence Allowances,Mining Reports Retail,Accruals - Staff Expenses Control,2264,20.06
DEPARTMENT OF ENERGY AND CLIMATE CHANGE,THE COAL AUTHORITY,01/06/2016,Postage & Couriers,Mining Reports Retail,Security Plus Limited,1767,51.75
DEPARTMENT OF ENERGY AND CLIMATE CHANGE,THE COAL AUTHORITY,03/04/2016,Stationery,Mining Reports Retail,RBS GPC March 2016,2460,60
DEPARTMENT OF ENERGY AND CLIMATE CHANGE,THE COAL AUTHORITY,03/04/2016,Subsistence Allowances,Mining Reports Retail,RBS GPC March 2016,2460,55.54
DEPARTMENT OF ENERGY AND CLIMATE CHANGE,THE COAL AUTHORITY,03/05/2016,Business Entertainment / Hospitality,Mining Reports Retail,RBS GPC April 2016,2463,2150
DEPARTMENT OF ENERGY AND CLIMATE CHANGE,THE COAL AUTHORITY,03/05/2016,Fares - Public Transport,Mining Reports Retail,RBS GPC April 2016,2463,13.8
DEPARTMENT OF ENERGY AND CLIMATE CHANGE,THE COAL AUTHORITY,03/05/2016,Incidentals,Mining Reports Retail,RBS GPC April 2016,2463,35
DEPARTMENT OF ENERGY AND CLIMATE CHANGE,THE COAL AUTHORITY,03/05/2016,Software Support & Maintenance - On Premise,Mining Reports Retail,RBS GPC April 2016,2463,-15.4
DEPARTMENT OF ENERGY AND CLIMATE CHANGE,THE COAL AUTHORITY,03/05/2016,Subsistence Allowances,Mining Reports Retail,RBS GPC April 2016,2463,43.28
DEPARTMENT OF ENERGY AND CLIMATE CHANGE,THE COAL AUTHORITY,30/06/2016,Business Entertainment / Hospitality,Mining Reports Retail,2463 - GPC - irr VAT entertainment,2496,430
DEPARTMENT OF ENERGY AND CLIMATE CHANGE,THE COAL AUTHORITY,07/06/2016,Legal - General,Mining Reports Retail,Dla Piper Uk Llp,1920,240
DEPARTMENT OF ENERGY AND CLIMATE CHANGE,THE COAL AUTHORITY,27/05/2016,Temporary Contractors,Mining Reports Retail,Key Personnel Solutions Ltd,1741,413.54
DEPARTMENT OF ENERGY AND CLIMATE CHANGE,THE COAL AUTHORITY,27/05/2016,Temporary Contractors,Mining Reports Retail,Key Personnel Solutions Ltd,1741,260.1
DEPARTMENT OF ENERGY AND CLIMATE CHANGE,THE COAL AUTHORITY,27/05/2016,Temporary Contractors,Mining Reports Retail,Key Personnel Solutions Ltd,1741,521.8
DEPARTMENT OF ENERGY AND CLIMATE CHANGE,THE COAL AUTHORITY,03/06/2016,Temporary Contractors,Mining Reports Retail,Key Personnel Solutions Ltd,1755,435.93
DEPARTMENT OF ENERGY AND CLIMATE CHANGE,THE COAL AUTHORITY,03/06/2016,Temporary Contractors,Mining Reports Retail,Key Personnel Solutions Ltd,1755,433.5
DEPARTMENT OF ENERGY AND CLIMATE CHANGE,THE COAL AUTHORITY,03/06/2016,Temporary Contractors,Mining Reports Retail,Key Personnel Solutions Ltd,1755,415.58
DEPARTMENT OF ENERGY AND CLIMATE CHANGE,THE COAL AUTHORITY,03/06/2016,Temporary Contractors,Mining Reports Retail,Key Personnel Solutions Ltd,1755,260.09
DEPARTMENT OF ENERGY AND CLIMATE CHANGE,THE COAL AUTHORITY,10/06/2016,Temporary Contractors,Mining Reports Retail,Key Personnel Solutions Ltd,2024,511.89
DEPARTMENT OF ENERGY AND CLIMATE CHANGE,THE COAL AUTHORITY,10/06/2016,Temporary Contractors,Mining Reports Retail,Key Personnel Solutions Ltd,2024,378.21
DEPARTMENT OF ENERGY AND CLIMATE CHANGE,THE COAL AUTHORITY,10/06/2016,Temporary Contractors,Mining Reports Retail,Key Personnel Solutions Ltd,2024,433.5
DEPARTMENT OF ENERGY AND CLIMATE CHANGE,THE COAL AUTHORITY,10/06/2016,Temporary Contractors,Mining Reports Retail,Key Personnel Solutions Ltd,2024,427.72
DEPARTMENT OF ENERGY AND CLIMATE CHANGE,THE COAL AUTHORITY,17/06/2016,Temporary Contractors,Mining Reports Retail,Key Personnel Solutions Ltd,2222,315.97
DEPARTMENT OF ENERGY AND CLIMATE CHANGE,THE COAL AUTHORITY,17/06/2016,Temporary Contractors,Mining Reports Retail,Key Personnel Solutions Ltd,2222,544.91
DEPARTMENT OF ENERGY AND CLIMATE CHANGE,THE COAL AUTHORITY,17/06/2016,Temporary Contractors,Mining Reports Retail,Key Personnel Solutions Ltd,2222,427.72
DEPARTMENT OF ENERGY AND CLIMATE CHANGE,THE COAL AUTHORITY,17/06/2016,Temporary Contractors,Mining Reports Retail,Key Personnel Solutions Ltd,2222,427.72
DEPARTMENT OF ENERGY AND CLIMATE CHANGE,THE COAL AUTHORITY,24/06/2016,Temporary Contractors,Mining Reports Retail,Key Personnel Solutions Ltd,2479,435.93
DEPARTMENT OF ENERGY AND CLIMATE CHANGE,THE COAL AUTHORITY,24/06/2016,Temporary Contractors,Mining Reports Retail,Key Personnel Solutions Ltd,2479,439.28
DEPARTMENT OF ENERGY AND CLIMATE CHANGE,THE COAL AUTHORITY,31/05/2016,Fares - Air,Mining Reports Retail,Redfern Travel Ltd,1843,444.54
DEPARTMENT OF ENERGY AND CLIMATE CHANGE,THE COAL AUTHORITY,31/05/2016,Fares - Rail,Mining Reports Retail,Redfern Travel Ltd,1843,120
DEPARTMENT OF ENERGY AND CLIMATE CHANGE,THE COAL AUTHORITY,31/05/2016,Hotel & Accommodation,Mining Reports Retail,Redfern Travel Ltd,1849,85.5
DEPARTMENT OF ENERGY AND CLIMATE CHANGE,THE COAL AUTHORITY,11/05/2016,Cheshire Brine Search Services,Mining Reports Retail,Cheshire Brine Subsidence Comp,2080,20150
DEPARTMENT OF ENERGY AND CLIMATE CHANGE,THE COAL AUTHORITY,18/05/2016,Cheshire Brine Search Services,Mining Reports Retail,Cheshire Brine Subsidence Comp,2081,675
DEPARTMENT OF ENERGY AND CLIMATE CHANGE,THE COAL AUTHORITY,06/06/2016,Damages Insurance,Mining Reports Retail,Mr E Brodrick,1652,1188
DEPARTMENT OF ENERGY AND CLIMATE CHANGE,THE COAL AUTHORITY,01/06/2016,eCommerce Commission Charges,Mining Reports Retail,Worldpay,2098,1892.46
DEPARTMENT OF ENERGY AND CLIMATE CHANGE,THE COAL AUTHORITY,13/06/2016,Other Hosting / IaaS,Mining Reports Retail,Bytemark Limited,1960,124
DEPARTMENT OF ENERGY AND CLIMATE CHANGE,THE COAL AUTHORITY,27/05/2016,CY - Intangible IT - Additions,Mining Reports Retail,Scisys Uk Ltd,2180,55026.82
DEPARTMENT OF ENERGY AND CLIMATE CHANGE,THE COAL AUTHORITY,01/06/2016,eCommerce Commission Charges,Mining Reports Retail,Worldpay Limited,1789,1001.94
DEPARTMENT OF ENERGY AND CLIMATE CHANGE,THE COAL AUTHORITY,22/06/2016,Incidentals,Procurement,Accruals - Staff Expenses Control,2252,31.58
DEPARTMENT OF ENERGY AND CLIMATE CHANGE,THE COAL AUTHORITY,22/06/2016,Mileage Payments,Procurement,Accruals - Staff Expenses Control,2252,54.9
DEPARTMENT OF ENERGY AND CLIMATE CHANGE,THE COAL AUTHORITY,22/06/2016,Subsistence Allowances,Procurement,Accruals - Staff Expenses Control,2252,2.42
DEPARTMENT OF ENERGY AND CLIMATE CHANGE,THE COAL AUTHORITY,27/06/2016,Mileage Payments,Procurement,Accruals - Staff Expenses Control,2383,157.5
DEPARTMENT OF ENERGY AND CLIMATE CHANGE,THE COAL AUTHORITY,20/06/2016,Training & Education,Procurement,Faversham House Ltd,2208,395
DEPARTMENT OF ENERGY AND CLIMATE CHANGE,THE COAL AUTHORITY,03/05/2016,Membership Subscriptions,Procurement,RBS GPC April 2016,2463,102
DEPARTMENT OF ENERGY AND CLIMATE CHANGE,THE COAL AUTHORITY,31/05/2016,Fares - Rail,Procurement,Redfern Travel Ltd,1843,290
DEPARTMENT OF ENERGY AND CLIMATE CHANGE,THE COAL AUTHORITY,31/05/2016,Hotel & Accommodation,Procurement,Redfern Travel Ltd,1849,80.29
DEPARTMENT OF ENERGY AND CLIMATE CHANGE,THE COAL AUTHORITY,13/06/2016,Software Licenses - SaaS,Procurement,Bravosolution Uk Ltd,2139,11994
DEPARTMENT OF ENERGY AND CLIMATE CHANGE,THE COAL AUTHORITY,31/05/2016,Consultancy - Commercialisation Costs,PS&S - Commercial,Jmc Engineering Uk Ltd,1804,948.2
DEPARTMENT OF ENERGY AND CLIMATE CHANGE,THE COAL AUTHORITY,10/06/2016,Tips - Maintenance,PS&S - Commercial Delivery,Jim Davies Civil Engineering,2068,5680.16
DEPARTMENT OF ENERGY AND CLIMATE CHANGE,THE COAL AUTHORITY,16/06/2016,Tips - Maintenance,PS&S - Commercial Delivery,Jim Davies Civil Engineering,2207,27794.33
DEPARTMENT OF ENERGY AND CLIMATE CHANGE,THE COAL AUTHORITY,21/06/2016,Tips - Maintenance,PS&S - Commercial Delivery,Jim Davies Civil Engineering,2328,9476.75
DEPARTMENT OF ENERGY AND CLIMATE CHANGE,THE COAL AUTHORITY,31/05/2016,Mine Entry Inspection - Outsourced Management,PS&S - Commercial Delivery,Interlock Surveys,1856,11976.25
DEPARTMENT OF ENERGY AND CLIMATE CHANGE,THE COAL AUTHORITY,09/06/2016,Mine Entry Inspection - Outsourced Management,PS&S - Commercial Delivery,Interlock Surveys,1857,5733
DEPARTMENT OF ENERGY AND CLIMATE CHANGE,THE COAL AUTHORITY,08/06/2016,Mine Entry Inspection - Contractor & Claim Costs,PS&S - Commercial Delivery,Llettyshenkin Cons Co Ltd,1838,1112.25
DEPARTMENT OF ENERGY AND CLIMATE CHANGE,THE COAL AUTHORITY,08/06/2016,Mine Entry Inspection - Contractor & Claim Costs,PS&S - Commercial Delivery,Llettyshenkin Cons Co Ltd,1837,580
DEPARTMENT OF ENERGY AND CLIMATE CHANGE,THE COAL AUTHORITY,08/06/2016,Mine Entry Inspection - Contractor & Claim Costs,PS&S - Commercial Delivery,Llettyshenkin Cons Co Ltd,1836,322.5
DEPARTMENT OF ENERGY AND CLIMATE CHANGE,THE COAL AUTHORITY,09/06/2016,Mine Entry Inspection - Contractor & Claim Costs,PS&S - Commercial Delivery,Llettyshenkin Cons Co Ltd,1919,445
DEPARTMENT OF ENERGY AND CLIMATE CHANGE,THE COAL AUTHORITY,27/05/2016,Mine Entry Inspection - Contractor & Claim Costs,PS&S - Commercial Delivery,Cornerstone  Projects Ltd,1679,312.9
DEPARTMENT OF ENERGY AND CLIMATE CHANGE,THE COAL AUTHORITY,10/06/2016,Tips - Outsourced Management,PS&S - Commercial Delivery,Halcrow Group Limited,1971,5672
DEPARTMENT OF ENERGY AND CLIMATE CHANGE,THE COAL AUTHORITY,26/05/2016,Tips - Maintenance,PS&S - Commercial Delivery,Onsite Central Limited,1675,441
DEPARTMENT OF ENERGY AND CLIMATE CHANGE,THE COAL AUTHORITY,28/06/2016,Fuel (Vehicle),PS&S - Commercial Delivery,VAT RECLMD PM BUSNESS MLGE,2414,-31.73
DEPARTMENT OF ENERGY AND CLIMATE CHANGE,THE COAL AUTHORITY,03/04/2016,Fares - Public Transport,PS&S - Commercial Delivery,RBS GPC March 2016,2460,29.13
DEPARTMENT OF ENERGY AND CLIMATE CHANGE,THE COAL AUTHORITY,03/04/2016,Stationery,PS&S - Commercial Delivery,RBS GPC March 2016,2460,30
DEPARTMENT OF ENERGY AND CLIMATE CHANGE,THE COAL AUTHORITY,03/04/2016,Subsistence Allowances,PS&S - Commercial Delivery,RBS GPC March 2016,2460,12.89
DEPARTMENT OF ENERGY AND CLIMATE CHANGE,THE COAL AUTHORITY,03/05/2016,Subsistence Allowances,PS&S - Commercial Delivery,RBS GPC April 2016,2463,23.62
DEPARTMENT OF ENERGY AND CLIMATE CHANGE,THE COAL AUTHORITY,03/05/2016,Subsistence Allowances,PS&S - Commercial Delivery,RBS GPC April 2016,2463,101.78
DEPARTMENT OF ENERGY AND CLIMATE CHANGE,THE COAL AUTHORITY,30/06/2016,Tips - Monitoring & Equipment,PS&S - Commercial Delivery,2360 SEVERN TRENT SERVICES MAY'16,2490,5046.32
DEPARTMENT OF ENERGY AND CLIMATE CHANGE,THE COAL AUTHORITY,01/06/2016,Office Telephony - Line Rent,PS&S - Commercial Delivery,1465 - British Telecom,2546,-2328.09
DEPARTMENT OF ENERGY AND CLIMATE CHANGE,THE COAL AUTHORITY,04/07/2016,Mine Entry Inspection - Contractor & Claim Costs,PS&S - Commercial Delivery,2191 Mr W Raine,2575,-60
DEPARTMENT OF ENERGY AND CLIMATE CHANGE,THE COAL AUTHORITY,01/06/2016,Fuel (Vehicle),PS&S - Commercial Delivery,Allstar Business Solutions Ltd,1704,59.9
DEPARTMENT OF ENERGY AND CLIMATE CHANGE,THE COAL AUTHORITY,08/06/2016,Fuel (Vehicle),PS&S - Commercial Delivery,Allstar Business Solutions Ltd,1907,66.59
DEPARTMENT OF ENERGY AND CLIMATE CHANGE,THE COAL AUTHORITY,15/06/2016,Fuel (Vehicle),PS&S - Commercial Delivery,Allstar Business Solutions Ltd,2166,65.99
DEPARTMENT OF ENERGY AND CLIMATE CHANGE,THE COAL AUTHORITY,22/06/2016,Fuel (Vehicle),PS&S - Commercial Delivery,Allstar Business Solutions Ltd,2297,66.76
DEPARTMENT OF ENERGY AND CLIMATE CHANGE,THE COAL AUTHORITY,22/06/2016,Tips - Monitoring & Equipment,PS&S - Commercial Delivery,1873 SEVERN TRENT SERVICES APRIL'16,2248,3206.75
DEPARTMENT OF ENERGY AND CLIMATE CHANGE,THE COAL AUTHORITY,15/06/2016,Mine Entry Inspection - Contractor & Claim Costs,PS&S - Commercial Delivery,Cornerstone  Projects Ltd,2063,-312.9
DEPARTMENT OF ENERGY AND CLIMATE CHANGE,THE COAL AUTHORITY,31/05/2016,Mine Entry Inspection - Contractor & Claim Costs,PS&S - Commercial Delivery,Alliance Contracting Solutions Ltd,2031,2219.14
DEPARTMENT OF ENERGY AND CLIMATE CHANGE,THE COAL AUTHORITY,23/06/2016,Tips - Maintenance,PS&S - Commercial Delivery,Alliance Contracting Solutions Ltd,2279,1235.76
DEPARTMENT OF ENERGY AND CLIMATE CHANGE,THE COAL AUTHORITY,23/06/2016,Mine Entry Inspection - Contractor & Claim Costs,PS&S - Commercial Delivery,Alliance Contracting Solutions Ltd,2290,78.85
DEPARTMENT OF ENERGY AND CLIMATE CHANGE,THE COAL AUTHORITY,23/06/2016,Mine Entry Inspection - Contractor & Claim Costs,PS&S - Commercial Delivery,Alliance Contracting Solutions Ltd,2287,1495.43
DEPARTMENT OF ENERGY AND CLIMATE CHANGE,THE COAL AUTHORITY,20/06/2016,Mine Entry Inspection - Contractor & Claim Costs,PS&S - Commercial Delivery,Balfour Beatty Civil Eng Ltd,2186,828.14
DEPARTMENT OF ENERGY AND CLIMATE CHANGE,THE COAL AUTHORITY,23/06/2016,Mine Entry Inspection - Contractor & Claim Costs,PS&S - Commercial Delivery,Balfour Beatty Civil Eng Ltd,2327,225.15
DEPARTMENT OF ENERGY AND CLIMATE CHANGE,THE COAL AUTHORITY,08/06/2016,Mine Entry Inspection - Outsourced Management,PS&S - Commercial Delivery,Mines Rescue Service Limited,1871,24612
DEPARTMENT OF ENERGY AND CLIMATE CHANGE,THE COAL AUTHORITY,16/06/2016,Tips - Maintenance,PS&S - Commercial Delivery,Onsite Central Limited,2330,441
DEPARTMENT OF ENERGY AND CLIMATE CHANGE,THE COAL AUTHORITY,16/06/2016,Tips - Maintenance,PS&S - Commercial Delivery,Onsite Central Limited,2329,441
DEPARTMENT OF ENERGY AND CLIMATE CHANGE,THE COAL AUTHORITY,20/06/2016,Mine Entry Inspection - Contractor & Claim Costs,PS&S - Commercial Delivery,Ayle Colliery Co Ltd,2192,1050
DEPARTMENT OF ENERGY AND CLIMATE CHANGE,THE COAL AUTHORITY,20/06/2016,Mine Entry Inspection - Contractor & Claim Costs,PS&S - Commercial Delivery,Mr W Raine,2191,60
DEPARTMENT OF ENERGY AND CLIMATE CHANGE,THE COAL AUTHORITY,07/06/2016,Legal - General,PS&S - Daw Mill,Dla Piper Uk Llp,1920,1184
DEPARTMENT OF ENERGY AND CLIMATE CHANGE,THE COAL AUTHORITY,16/06/2016,Subsidence - Contractor & Claim Costs,PS&S - Daw Mill,P Mcfadden,2059,985.76
DEPARTMENT OF ENERGY AND CLIMATE CHANGE,THE COAL AUTHORITY,27/06/2016,Subsistence Allowances,PS&S - Engineering,Accruals - Staff Expenses Control,2345,12.82
DEPARTMENT OF ENERGY AND CLIMATE CHANGE,THE COAL AUTHORITY,05/06/2016,Temporary Contractors,PS&S - Engineering,Venture Finance Plc,1882,866.32
DEPARTMENT OF ENERGY AND CLIMATE CHANGE,THE COAL AUTHORITY,12/06/2016,Temporary Contractors,PS&S - Engineering,Venture Finance Plc,2097,1036.49
DEPARTMENT OF ENERGY AND CLIMATE CHANGE,THE COAL AUTHORITY,19/06/2016,Temporary Contractors,PS&S - Engineering,Venture Finance Plc,2361,1051.96
DEPARTMENT OF ENERGY AND CLIMATE CHANGE,THE COAL AUTHORITY,03/04/2016,Incidentals,PS&S - Engineering,RBS GPC March 2016,2460,11
DEPARTMENT OF ENERGY AND CLIMATE CHANGE,THE COAL AUTHORITY,03/04/2016,Subsistence Allowances,PS&S - Engineering,RBS GPC March 2016,2460,42.25
DEPARTMENT OF ENERGY AND CLIMATE CHANGE,THE COAL AUTHORITY,03/05/2016,Hotel & Accommodation,PS&S - Engineering,RBS GPC April 2016,2463,75.42
DEPARTMENT OF ENERGY AND CLIMATE CHANGE,THE COAL AUTHORITY,03/05/2016,Incidentals,PS&S - Engineering,RBS GPC April 2016,2463,18
DEPARTMENT OF ENERGY AND CLIMATE CHANGE,THE COAL AUTHORITY,03/05/2016,Membership Subscriptions,PS&S - Engineering,RBS GPC April 2016,2463,190
DEPARTMENT OF ENERGY AND CLIMATE CHANGE,THE COAL AUTHORITY,03/05/2016,Subsistence Allowances,PS&S - Engineering,RBS GPC April 2016,2463,177.34
DEPARTMENT OF ENERGY AND CLIMATE CHANGE,THE COAL AUTHORITY,03/05/2016,Subsistence Allowances,PS&S - Engineering,RBS GPC April 2016,2463,4.99
DEPARTMENT OF ENERGY AND CLIMATE CHANGE,THE COAL AUTHORITY,01/06/2016,Office Telephony - Line Rent,PS&S - Engineering,1465 - British Telecom,2546,-27.09
DEPARTMENT OF ENERGY AND CLIMATE CHANGE,THE COAL AUTHORITY,31/05/2016,Fares - Rail,PS&S - Engineering,Redfern Travel Ltd,1843,268.5
DEPARTMENT OF ENERGY AND CLIMATE CHANGE,THE COAL AUTHORITY,31/05/2016,Hotel & Accommodation,PS&S - Engineering,Redfern Travel Ltd,1849,356.6
DEPARTMENT OF ENERGY AND CLIMATE CHANGE,THE COAL AUTHORITY,01/06/2016,Office Telephony - Line Rent,PS&S - Engineering,1465 - British Telecom,2594,27.09
DEPARTMENT OF ENERGY AND CLIMATE CHANGE,THE COAL AUTHORITY,24/05/2016,Central Training,PS&S - Engineering,Symmons Madge Associates Llp,1772,349.83
DEPARTMENT OF ENERGY AND CLIMATE CHANGE,THE COAL AUTHORITY,24/06/2016,Research & Development,PS&S - Engineering,ITM Monitoring Ltd,2473,8400
DEPARTMENT OF ENERGY AND CLIMATE CHANGE,THE COAL AUTHORITY,07/06/2016,Subsidence - Contractor & Claim Costs,PS&S - General Claims,Nal Plant Limited,1966,654.96
DEPARTMENT OF ENERGY AND CLIMATE CHANGE,THE COAL AUTHORITY,09/06/2016,Surface Hazards - Contractor & Claim Costs,PS&S - General Claims,Nal Plant Limited,1917,2078.64
DEPARTMENT OF ENERGY AND CLIMATE CHANGE,THE COAL AUTHORITY,22/06/2016,Subsistence Allowances,PS&S - General Claims,Accruals - Staff Expenses Control,2258,27.05
DEPARTMENT OF ENERGY AND CLIMATE CHANGE,THE COAL AUTHORITY,24/06/2016,Surface Hazards - Contractor & Claim Costs,PS&S - General Claims,Nal Plant Limited,2410,316.19
DEPARTMENT OF ENERGY AND CLIMATE CHANGE,THE COAL AUTHORITY,24/06/2016,Surface Hazards - Contractor & Claim Costs,PS&S - General Claims,Nal Plant Limited,2408,1058.55
DEPARTMENT OF ENERGY AND CLIMATE CHANGE,THE COAL AUTHORITY,24/06/2016,Surface Hazards - Contractor & Claim Costs,PS&S - General Claims,Nal Plant Limited,2411,122.37
DEPARTMENT OF ENERGY AND CLIMATE CHANGE,THE COAL AUTHORITY,27/06/2016,Mileage Payments,PS&S - General Claims,Accruals - Staff Expenses Control,2379,11
DEPARTMENT OF ENERGY AND CLIMATE CHANGE,THE COAL AUTHORITY,27/06/2016,Mileage Payments,PS&S - General Claims,Accruals - Staff Expenses Control,2380,16.45
DEPARTMENT OF ENERGY AND CLIMATE CHANGE,THE COAL AUTHORITY,27/06/2016,Subsistence Allowances,PS&S - General Claims,Accruals - Staff Expenses Control,2381,9.5
DEPARTMENT OF ENERGY AND CLIMATE CHANGE,THE COAL AUTHORITY,31/05/2016,Surface Hazards - Contractor & Claim Costs,PS&S - General Claims,Geol-Consultants Ltd,1674,1435
DEPARTMENT OF ENERGY AND CLIMATE CHANGE,THE COAL AUTHORITY,13/06/2016,Surface Hazards - Contractor & Claim Costs,PS&S - General Claims,Geol-Consultants Ltd,2012,407
DEPARTMENT OF ENERGY AND CLIMATE CHANGE,THE COAL AUTHORITY,13/06/2016,Subsidence - Contractor & Claim Costs,PS&S - General Claims,Geol-Consultants Ltd,2013,1224
DEPARTMENT OF ENERGY AND CLIMATE CHANGE,THE COAL AUTHORITY,13/06/2016,Subsidence - Contractor & Claim Costs,PS&S - General Claims,Geol-Consultants Ltd,2014,23912.89
DEPARTMENT OF ENERGY AND CLIMATE CHANGE,THE COAL AUTHORITY,13/06/2016,Surface Hazards - Contractor & Claim Costs,PS&S - General Claims,Geol-Consultants Ltd,2015,22082.89
DEPARTMENT OF ENERGY AND CLIMATE CHANGE,THE COAL AUTHORITY,13/06/2016,Surface Hazards - Contractor & Claim Costs,PS&S - General Claims,Geol-Consultants Ltd,2016,12125
DEPARTMENT OF ENERGY AND CLIMATE CHANGE,THE COAL AUTHORITY,13/06/2016,Subsidence - Contractor & Claim Costs,PS&S - General Claims,Geol-Consultants Ltd,2017,4680
DEPARTMENT OF ENERGY AND CLIMATE CHANGE,THE COAL AUTHORITY,16/06/2016,Subsidence - Contractor & Claim Costs,PS&S - General Claims,Geol-Consultants Ltd,2110,1680
DEPARTMENT OF ENERGY AND CLIMATE CHANGE,THE COAL AUTHORITY,16/06/2016,Surface Hazards - Contractor & Claim Costs,PS&S - General Claims,Geol-Consultants Ltd,2113,1435
DEPARTMENT OF ENERGY AND CLIMATE CHANGE,THE COAL AUTHORITY,16/06/2016,Surface Hazards - Contractor & Claim Costs,PS&S - General Claims,Geol-Consultants Ltd,2112,1290
DEPARTMENT OF ENERGY AND CLIMATE CHANGE,THE COAL AUTHORITY,16/05/2016,Surface Hazards - Contractor & Claim Costs,PS&S - General Claims,Crest Photography,2335,185
DEPARTMENT OF ENERGY AND CLIMATE CHANGE,THE COAL AUTHORITY,16/06/2016,Surface Hazards - Contractor & Claim Costs,PS&S - General Claims,Jim Davies Civil Engineering,2206,255.65
DEPARTMENT OF ENERGY AND CLIMATE CHANGE,THE COAL AUTHORITY,16/06/2016,Surface Hazards - Contractor & Claim Costs,PS&S - General Claims,Jim Davies Civil Engineering,2204,267.6
DEPARTMENT OF ENERGY AND CLIMATE CHANGE,THE COAL AUTHORITY,16/06/2016,Surface Hazards - Contractor & Claim Costs,PS&S - General Claims,Jim Davies Civil Engineering,2205,6362.35
DEPARTMENT OF ENERGY AND CLIMATE CHANGE,THE COAL AUTHORITY,23/06/2016,Surface Hazards - Contractor & Claim Costs,PS&S - General Claims,Jim Davies Civil Engineering,2307,1000
DEPARTMENT OF ENERGY AND CLIMATE CHANGE,THE COAL AUTHORITY,23/06/2016,Surface Hazards - Contractor & Claim Costs,PS&S - General Claims,Jim Davies Civil Engineering,2308,390.54
DEPARTMENT OF ENERGY AND CLIMATE CHANGE,THE COAL AUTHORITY,23/06/2016,Surface Hazards - Contractor & Claim Costs,PS&S - General Claims,Jim Davies Civil Engineering,2309,436.5
DEPARTMENT OF ENERGY AND CLIMATE CHANGE,THE COAL AUTHORITY,31/05/2016,Surface Hazards - Contractor & Claim Costs,PS&S - General Claims,Llettyshenkin Cons Co Ltd,1685,7271.31
DEPARTMENT OF ENERGY AND CLIMATE CHANGE,THE COAL AUTHORITY,03/06/2016,Subsidence - Contractor & Claim Costs,PS&S - General Claims,Llettyshenkin Cons Co Ltd,1686,76
DEPARTMENT OF ENERGY AND CLIMATE CHANGE,THE COAL AUTHORITY,21/06/2016,Subsidence - Contractor & Claim Costs,PS&S - General Claims,Llettyshenkin Cons Co Ltd,2334,9519.42
DEPARTMENT OF ENERGY AND CLIMATE CHANGE,THE COAL AUTHORITY,27/05/2016,Surface Hazards - Contractor & Claim Costs,PS&S - General Claims,Cornerstone  Projects Ltd,1684,121
DEPARTMENT OF ENERGY AND CLIMATE CHANGE,THE COAL AUTHORITY,27/05/2016,Surface Hazards - Contractor & Claim Costs,PS&S - General Claims,Cornerstone  Projects Ltd,1683,58
DEPARTMENT OF ENERGY AND CLIMATE CHANGE,THE COAL AUTHORITY,27/05/2016,Surface Hazards - Contractor & Claim Costs,PS&S - General Claims,Cornerstone  Projects Ltd,1682,114.48
DEPARTMENT OF ENERGY AND CLIMATE CHANGE,THE COAL AUTHORITY,27/05/2016,Surface Hazards - Contractor & Claim Costs,PS&S - General Claims,Cornerstone  Projects Ltd,1681,274.38
DEPARTMENT OF ENERGY AND CLIMATE CHANGE,THE COAL AUTHORITY,27/05/2016,Surface Hazards - Contractor & Claim Costs,PS&S - General Claims,Cornerstone  Projects Ltd,1680,237.9
DEPARTMENT OF ENERGY AND CLIMATE CHANGE,THE COAL AUTHORITY,27/05/2016,Surface Hazards - Contractor & Claim Costs,PS&S - General Claims,Cornerstone  Projects Ltd,1677,153
DEPARTMENT OF ENERGY AND CLIMATE CHANGE,THE COAL AUTHORITY,13/06/2016,Surface Hazards - Contractor & Claim Costs,PS&S - General Claims,Cornerstone  Projects Ltd,1989,145
DEPARTMENT OF ENERGY AND CLIMATE CHANGE,THE COAL AUTHORITY,13/06/2016,Surface Hazards - Contractor & Claim Costs,PS&S - General Claims,Cornerstone  Projects Ltd,1987,88
DEPARTMENT OF ENERGY AND CLIMATE CHANGE,THE COAL AUTHORITY,13/06/2016,Surface Hazards - Contractor & Claim Costs,PS&S - General Claims,Cornerstone  Projects Ltd,1988,262.9
DEPARTMENT OF ENERGY AND CLIMATE CHANGE,THE COAL AUTHORITY,13/06/2016,Surface Hazards - Contractor & Claim Costs,PS&S - General Claims,Cornerstone  Projects Ltd,1991,58
DEPARTMENT OF ENERGY AND CLIMATE CHANGE,THE COAL AUTHORITY,13/06/2016,Surface Hazards - Contractor & Claim Costs,PS&S - General Claims,Cornerstone  Projects Ltd,1990,153
DEPARTMENT OF ENERGY AND CLIMATE CHANGE,THE COAL AUTHORITY,13/06/2016,Surface Hazards - Contractor & Claim Costs,PS&S - General Claims,Cornerstone  Projects Ltd,1980,312.9
DEPARTMENT OF ENERGY AND CLIMATE CHANGE,THE COAL AUTHORITY,17/06/2016,Surface Hazards - Contractor & Claim Costs,PS&S - General Claims,Cornerstone  Projects Ltd,2171,123
DEPARTMENT OF ENERGY AND CLIMATE CHANGE,THE COAL AUTHORITY,17/06/2016,Surface Hazards - Contractor & Claim Costs,PS&S - General Claims,Cornerstone  Projects Ltd,2168,121
DEPARTMENT OF ENERGY AND CLIMATE CHANGE,THE COAL AUTHORITY,17/06/2016,Surface Hazards - Contractor & Claim Costs,PS&S - General Claims,Cornerstone  Projects Ltd,2167,78
DEPARTMENT OF ENERGY AND CLIMATE CHANGE,THE COAL AUTHORITY,17/06/2016,Surface Hazards - Contractor & Claim Costs,PS&S - General Claims,Cornerstone  Projects Ltd,2175,304.9
DEPARTMENT OF ENERGY AND CLIMATE CHANGE,THE COAL AUTHORITY,08/06/2016,Subsidence - Contractor & Claim Costs,PS&S - General Claims,Idrs Limited,1968,80
DEPARTMENT OF ENERGY AND CLIMATE CHANGE,THE COAL AUTHORITY,13/06/2016,Surface Hazards - Contractor & Claim Costs,PS&S - General Claims,West Star Property & Inv Lt,2062,45.83
DEPARTMENT OF ENERGY AND CLIMATE CHANGE,THE COAL AUTHORITY,16/06/2016,Surface Hazards - Contractor & Claim Costs,PS&S - General Claims,Onsite Central Limited,2331,934.5
DEPARTMENT OF ENERGY AND CLIMATE CHANGE,THE COAL AUTHORITY,31/05/2016,Surface Hazards - Equipment,PS&S - General Claims,Environmental Scientifics Grp,1662,333.35
DEPARTMENT OF ENERGY AND CLIMATE CHANGE,THE COAL AUTHORITY,28/06/2016,Surface Hazards - Equipment,PS&S - General Claims,Environmental Scientifics Grp,2472,2985.89
DEPARTMENT OF ENERGY AND CLIMATE CHANGE,THE COAL AUTHORITY,02/06/2016,Subsidence - Contractor & Claim Costs,PS&S - General Claims,Soil Engineering Geoservices L,1663,5875
DEPARTMENT OF ENERGY AND CLIMATE CHANGE,THE COAL AUTHORITY,15/06/2016,Surface Hazards - Contractor & Claim Costs,PS&S - General Claims,Soil Engineering Geoservices L,2099,37420.18
DEPARTMENT OF ENERGY AND CLIMATE CHANGE,THE COAL AUTHORITY,22/06/2016,Subsidence - Contractor & Claim Costs,PS&S - General Claims,Soil Engineering Geoservices L,2306,10565.35
DEPARTMENT OF ENERGY AND CLIMATE CHANGE,THE COAL AUTHORITY,27/05/2016,Subsidence - Contractor & Claim Costs,PS&S - General Claims,Aecom Infrastructure & Env,1668,9774.74
DEPARTMENT OF ENERGY AND CLIMATE CHANGE,THE COAL AUTHORITY,17/06/2016,Subsidence - Contractor & Claim Costs,PS&S - General Claims,RMVE DOC 2067,2107,-146.64
DEPARTMENT OF ENERGY AND CLIMATE CHANGE,THE COAL AUTHORITY,28/06/2016,Fuel (Vehicle),PS&S - General Claims,VAT RECLMD PM BUSNESS MLGE,2414,-227.45
DEPARTMENT OF ENERGY AND CLIMATE CHANGE,THE COAL AUTHORITY,03/04/2016,Contract Hire Vehicles,PS&S - General Claims,RBS GPC March 2016,2460,10.83
DEPARTMENT OF ENERGY AND CLIMATE CHANGE,THE COAL AUTHORITY,03/04/2016,Incidentals,PS&S - General Claims,RBS GPC March 2016,2460,13.18
DEPARTMENT OF ENERGY AND CLIMATE CHANGE,THE COAL AUTHORITY,03/04/2016,Postage & Couriers,PS&S - General Claims,RBS GPC March 2016,2460,33.08
DEPARTMENT OF ENERGY AND CLIMATE CHANGE,THE COAL AUTHORITY,03/04/2016,Subsistence Allowances,PS&S - General Claims,RBS GPC March 2016,2460,33.97
DEPARTMENT OF ENERGY AND CLIMATE CHANGE,THE COAL AUTHORITY,03/04/2016,Surface Hazards - Contractor & Claim Costs,PS&S - General Claims,RBS GPC March 2016,2460,71.1
DEPARTMENT OF ENERGY AND CLIMATE CHANGE,THE COAL AUTHORITY,03/04/2016,Surface Hazards - Equipment,PS&S - General Claims,RBS GPC March 2016,2460,3.99
DEPARTMENT OF ENERGY AND CLIMATE CHANGE,THE COAL AUTHORITY,03/04/2016,Surface Hazards - Equipment,PS&S - General Claims,RBS GPC March 2016,2460,227.98
DEPARTMENT OF ENERGY AND CLIMATE CHANGE,THE COAL AUTHORITY,03/05/2016,Business Publications,PS&S - General Claims,RBS GPC April 2016,2463,14.99
DEPARTMENT OF ENERGY AND CLIMATE CHANGE,THE COAL AUTHORITY,03/05/2016,Contract Hire Vehicles,PS&S - General Claims,RBS GPC April 2016,2463,51.97
DEPARTMENT OF ENERGY AND CLIMATE CHANGE,THE COAL AUTHORITY,03/05/2016,Fuel (Vehicle),PS&S - General Claims,RBS GPC April 2016,2463,12.5
DEPARTMENT OF ENERGY AND CLIMATE CHANGE,THE COAL AUTHORITY,03/05/2016,Incidentals,PS&S - General Claims,RBS GPC April 2016,2463,16.5
DEPARTMENT OF ENERGY AND CLIMATE CHANGE,THE COAL AUTHORITY,03/05/2016,Personal Protective Equipment,PS&S - General Claims,RBS GPC April 2016,2463,16.27
DEPARTMENT OF ENERGY AND CLIMATE CHANGE,THE COAL AUTHORITY,03/05/2016,Subsidence - Consultancy,PS&S - General Claims,RBS GPC April 2016,2463,245
DEPARTMENT OF ENERGY AND CLIMATE CHANGE,THE COAL AUTHORITY,03/05/2016,Subsistence Allowances,PS&S - General Claims,RBS GPC April 2016,2463,205.63
DEPARTMENT OF ENERGY AND CLIMATE CHANGE,THE COAL AUTHORITY,03/05/2016,Sundry Office Expenses,PS&S - General Claims,RBS GPC April 2016,2463,181
DEPARTMENT OF ENERGY AND CLIMATE CHANGE,THE COAL AUTHORITY,04/07/2016,Subsidence - Contractor & Claim Costs,PS&S - General Claims,1061 Nal Plant Limited,2575,617.47
DEPARTMENT OF ENERGY AND CLIMATE CHANGE,THE COAL AUTHORITY,04/07/2016,Subsidence - Contractor & Claim Costs,PS&S - General Claims,1409 Jim Davies Civil Engineering,2575,-281.7
DEPARTMENT OF ENERGY AND CLIMATE CHANGE,THE COAL AUTHORITY,04/07/2016,Subsidence - Contractor & Claim Costs,PS&S - General Claims,1412 Jim Davies Civil Engineering,2575,-558
DEPARTMENT OF ENERGY AND CLIMATE CHANGE,THE COAL AUTHORITY,04/07/2016,Subsidence - Contractor & Claim Costs,PS&S - General Claims,1646 Mr S Gallagher,2575,-1200
DEPARTMENT OF ENERGY AND CLIMATE CHANGE,THE COAL AUTHORITY,04/07/2016,Surface Hazards - Contractor & Claim Costs,PS&S - General Claims,2191 Mr W Raine,2575,60
DEPARTMENT OF ENERGY AND CLIMATE CHANGE,THE COAL AUTHORITY,04/07/2016,Surface Hazards - Contractor & Claim Costs,PS&S - General Claims,1409 Jim Davies Civil Engineering,2575,281.7
DEPARTMENT OF ENERGY AND CLIMATE CHANGE,THE COAL AUTHORITY,04/07/2016,Surface Hazards - Contractor & Claim Costs,PS&S - General Claims,1412 Jim Davies Civil Engineering,2575,558
DEPARTMENT OF ENERGY AND CLIMATE CHANGE,THE COAL AUTHORITY,04/07/2016,Surface Hazards - Contractor & Claim Costs,PS&S - General Claims,1646 Mr S Gallagher,2575,1200
DEPARTMENT OF ENERGY AND CLIMATE CHANGE,THE COAL AUTHORITY,04/07/2016,Surface Hazards - Contractor & Claim Costs,PS&S - General Claims,1061 Nal Plant Limited,2575,-617.47
DEPARTMENT OF ENERGY AND CLIMATE CHANGE,THE COAL AUTHORITY,07/06/2016,Legal - General,PS&S - General Claims,Dla Piper Uk Llp,1920,1380
DEPARTMENT OF ENERGY AND CLIMATE CHANGE,THE COAL AUTHORITY,07/06/2016,Legal - General,PS&S - General Claims,Dla Piper Uk Llp,1920,34343.97
DEPARTMENT OF ENERGY AND CLIMATE CHANGE,THE COAL AUTHORITY,27/05/2016,Temporary Contractors,PS&S - General Claims,Key Personnel Solutions Ltd,1741,1925.71
DEPARTMENT OF ENERGY AND CLIMATE CHANGE,THE COAL AUTHORITY,27/05/2016,Temporary Contractors,PS&S - General Claims,Key Personnel Solutions Ltd,1740,399.68
DEPARTMENT OF ENERGY AND CLIMATE CHANGE,THE COAL AUTHORITY,03/06/2016,Temporary Contractors,PS&S - General Claims,Key Personnel Solutions Ltd,1755,1444.29
DEPARTMENT OF ENERGY AND CLIMATE CHANGE,THE COAL AUTHORITY,03/06/2016,Temporary Contractors,PS&S - General Claims,Key Personnel Solutions Ltd,1756,140.85
DEPARTMENT OF ENERGY AND CLIMATE CHANGE,THE COAL AUTHORITY,10/06/2016,Temporary Contractors,PS&S - General Claims,Key Personnel Solutions Ltd,2024,1444.29
DEPARTMENT OF ENERGY AND CLIMATE CHANGE,THE COAL AUTHORITY,10/06/2016,Temporary Contractors,PS&S - General Claims,Key Personnel Solutions Ltd,2023,138.6
DEPARTMENT OF ENERGY AND CLIMATE CHANGE,THE COAL AUTHORITY,17/06/2016,Temporary Contractors,PS&S - General Claims,Key Personnel Solutions Ltd,2222,1428.09
DEPARTMENT OF ENERGY AND CLIMATE CHANGE,THE COAL AUTHORITY,17/06/2016,Temporary Contractors,PS&S - General Claims,Key Personnel Solutions Ltd,2221,139.5
DEPARTMENT OF ENERGY AND CLIMATE CHANGE,THE COAL AUTHORITY,24/06/2016,Temporary Contractors,PS&S - General Claims,Key Personnel Solutions Ltd,2479,1444.29
DEPARTMENT OF ENERGY AND CLIMATE CHANGE,THE COAL AUTHORITY,27/05/2016,Contract Hire Vehicles,PS&S - General Claims,Alphabet (Uk) Fleet Man Ltd,1771,4365.49
DEPARTMENT OF ENERGY AND CLIMATE CHANGE,THE COAL AUTHORITY,17/06/2016,Surface Hazards - Contractor & Claim Costs,PS&S - General Claims,Mouchel Ltd,2337,1669.69
DEPARTMENT OF ENERGY AND CLIMATE CHANGE,THE COAL AUTHORITY,03/06/2016,Legal - Property Title Search,PS&S - General Claims,Land Registry,1781,9
DEPARTMENT OF ENERGY AND CLIMATE CHANGE,THE COAL AUTHORITY,10/06/2016,Legal - Property Title Search,PS&S - General Claims,Land Registry,1921,3
DEPARTMENT OF ENERGY AND CLIMATE CHANGE,THE COAL AUTHORITY,10/06/2016,Legal - Property Title Search,PS&S - General Claims,Land Registry,1921,9
DEPARTMENT OF ENERGY AND CLIMATE CHANGE,THE COAL AUTHORITY,14/06/2016,Legal - Property Title Search,PS&S - General Claims,Land Registry,2026,39
DEPARTMENT OF ENERGY AND CLIMATE CHANGE,THE COAL AUTHORITY,17/06/2016,Legal - Property Title Search,PS&S - General Claims,Land Registry,2116,6
DEPARTMENT OF ENERGY AND CLIMATE CHANGE,THE COAL AUTHORITY,14/06/2016,Surface Hazards - Contractor & Claim Costs,PS&S - General Claims,Northumberland County Council,2135,1329.84
DEPARTMENT OF ENERGY AND CLIMATE CHANGE,THE COAL AUTHORITY,01/06/2016,Fuel (Vehicle),PS&S - General Claims,Allstar Business Solutions Ltd,1701,54.44
DEPARTMENT OF ENERGY AND CLIMATE CHANGE,THE COAL AUTHORITY,01/06/2016,Fuel (Vehicle),PS&S - General Claims,Allstar Business Solutions Ltd,1702,89.84
DEPARTMENT OF ENERGY AND CLIMATE CHANGE,THE COAL AUTHORITY,01/06/2016,Fuel (Vehicle),PS&S - General Claims,Allstar Business Solutions Ltd,1706,48.34
DEPARTMENT OF ENERGY AND CLIMATE CHANGE,THE COAL AUTHORITY,01/06/2016,Fuel (Vehicle),PS&S - General Claims,Allstar Business Solutions Ltd,1705,53.29
DEPARTMENT OF ENERGY AND CLIMATE CHANGE,THE COAL AUTHORITY,10/06/2016,Fuel (Vehicle),PS&S - General Claims,Allstar Business Solutions Ltd,1908,67.51
DEPARTMENT OF ENERGY AND CLIMATE CHANGE,THE COAL AUTHORITY,08/06/2016,Fuel (Vehicle),PS&S - General Claims,Allstar Business Solutions Ltd,1906,50.93
DEPARTMENT OF ENERGY AND CLIMATE CHANGE,THE COAL AUTHORITY,08/06/2016,Fuel (Vehicle),PS&S - General Claims,Allstar Business Solutions Ltd,1913,49.28
